Workbook

Sheet instructions
A1: How to Use The EEM Selection & Cost Evaluation Tool Small Office Developed by the National Renewable Energy Laboratory Rois Langner Rois.Langner@nrel.gov
A6: First, Take These Steps: | F6: Terms:
A7: Step 1: Enable Macros on your spreadsheet. | F7: Energy Efficiency Measure: | G7: (EEM) the energy efficiency improvement.
A8: Step 2: In the Summary tab, enter information about your building, under "Input Building Data." | F8: Energy Savings Threshold: | G8: The minimum desired savings the owner or evaluator expects to achieve cost effectively.
A9: Step 3: Update additional data (if known) for efficiency measure costs, utility costs, and loan information for your project. | F9: Pre-1980 Construction | G9: Buildings built before 1980.
A10: Step 4: Press the "Run" button to generate a list of applicable energy efficiency measure (EEM) packages and associated cost analysis. | F10: Post-1980 Construction | G10: Buildings built after 1980.
A11: Step 5: Review recommended EEM packages and cost analysis listed under the orange headers. Each header is described in full - below and to the right. | F11: 90.1-2004 Construction | G11: Buildings built after 2004, and that comply to ASHRAE Standard 90.1-2004.
A12: Step 6: To restart analysis, press "Clear" and start from Step 1. | F12: Energy Savings: | G12: Expected energy savings for each EEM package.
F13: Energy Cost Savings: | G13: Expected annual energy cost savings for each EEM package, calculated with user input of electric and gas utility rates.
A14: Things to note: | F14: Net Initial Cost: | G14: The net initial cost sums the relevant first cost or incremental costs together for each EEM noted in the EEM package. This cost subtracts the cost of a code-minimum system if the system is due for replacement at the time of a retrofit.
A15: 1. The predicted energy and energy cost savings represented in the EEM selection and Cost Evaluation Tool may not be accurate for all small office buildings. It is intended to be used by building owners to gain understanding of a wider range of possible EEM options that can be implemented within a building cost effectively. 2. Other EEMs not represented in this tool may also be cost effective and appropriate for a particular building. The EEMs included in this tool represent "typical" EEMs that are commonly applied to small office buildings. 3. The full set of EEM combinations, energy savings results, and energy cost savings results (used as input for this tool) is located in the Results tab. It is not intended that the user use this tab; however, these results are provided in the event that the user may want to understand or modify how the cost savings calculations are calculated. | F15: Full Initial Cost: | G15: The full initial cost quantifies total project costs covered by the lease.
F16: QA Fee: | G16: The QA fee is equal to the minimum of either 1% of the net initial cost, or $500. This is part of the Michigan Saves financing program.
F17: Rebate: | G17: No rebates are applied to this model at this time.
F18: Annual Payment: | G18: The annual energy-related lease payment is a factor of the net initial cost, the interest rate, the lease period, fees associated with the loan transaction, and any potential rebates.
F19: O&M Cost: | G19: Costs associated with operation and maintenance (O&M) of each EEM.
F20: M&V Cost: | G20: Costs associated with measurement and verification (M&V) of energy cost savings.
F21: Total 1st Year Cost: | G21: Total first year costs equate to the sum of the annual energy-related lease payment (including annualized fees and rebates), O&M costs, and M&V costs.
A22: Tool Assumptions and How To Interpret EEM Recommendations: | F22: Net Cash Flow: | G22: The net cash flow over the lease period is calculated by subtracting the total first year cost from the expected annual energy cost savings. Cost effective is defined as a net positive cash flow, meaning the energy cost savings is greater than the annual costs associated with the lease.
A23: Results Column Name | B23: Baseline Option | C23: Low Energy Option 1 | D23: Low Energy Option 2
A24: Roof Insulation | B24: Baseline Roof Insulation: Adding insulation to the roof is not recommended as part of this EEM package. Model assumes baseline values: - R-30 for roofs with attics (post-1980 and 90.1-2004 construction) - R-14 (pre-1980 construction) | C24: Increased Roof Insulation: Increasing roof insulation is recommended. Increase insulation to: - R-49 for roofs with attics (post-1980 and 90.1-2004 construction) - R-30 continuous insulation for insulation entirely above deck (pre-1980 construction) | D24: N/A
A25: Window Type | B25: Baseline Windows: Replacing windows is not recommended. Model assumes baseline values of: - U-0.62 (pre-1980 construction) - U-0.59 (post-1980 construction) - U-0.57 (90.1-2004 construction) | C25: Replace Windows: Upgrading windows is recommended. Use windows that meet or come close to these specifications: - U-0.45, SHGC 0.25, double-glazed, low-e, spectrally selective, aluminum frame with thermal break | D25: N/A
A26: Infiltration | B26: Baseline Infiltration: Weather-stripping and building sealing are not recommended. Model assumes baseline values of (average leakage rates of): - 1.5 cfm/ft2 (pre-1980 and post-1980 construction) - 0.4 cfm/ft2 (90.1-2004 construction) | C26: Reduce Infiltration: Taking action to reduce building leakage is recommended. It is recommended to reduce infiltration by: - 40% (pre-1980 construction) - 25% (post-1980 construction) - 10% (90.1-2004 construction) | D26: N/A
A27: Lighting Power Density | B27: Baseline Lighting Levels: Lighting upgrades are not recommended. Model assume baseline lighting power density (LPD) values of: - 1.8 W/ft2 at 40 fc (pre-1980 construction) - 1.8 W/ft2 at 40 fc (post-1980 construction) - 1.0 W/ft2 at 40 fc (90.1-2004 construction) | C27: Reduce Lighting Levels to 4 fc: Lighting upgrades are recommended. Retrofit from T12 bulbs to T8 blubs, assuming that 0.5 W/ft2 of the office lighting will remain in place (office ambient LPD moves from 1.3 W/ft2 to 0.9 W/ft2). Recommended LPD targets include: - 1.4 W/ft2 at 40 fc (pre-1980 construction) - 1.4 W/ft2 at 40 fc (post-1980 construction) - 1.0 W/ft2 at 40 fc (90.1-2004 construction) | D27: Reduce Light Levels to 25 fc: Lighting upgrades are recommended. Retrofit to T8 bulbs and change the lighting design (e.g., de-lamp fixtures and/or increase fixture spacing), assuming 0.5 W/ft2 of the office lighting will remain in place (office ambient LPD moves from 0.9 W/ft2 to 0.6 W/ft2). Recommended LPD targets include: - 1.1 W/ft2 at 25 fc (pre-1980 construction) - 1.1 W/ft2 at 25 fc (post-1980 construction) - 0.8 W/ft2 at 25 fc (90.1-2004 construction)
A28: Daylight Sensors | B28: No Daylighting Sensors: Installing daylighting sensors is not recommended. | C28: Install Daylighting Sensors: Daylighting sensors are recommended in areas close to windows.
A29: Occupancy Sensors | B29: No Occupancy Sensors: Installing occupancy sensors is not recommended | C29: Install Occupancy Sensors: Occupancy sensors are recommended, particularly in areas such as lavatories and conference rooms that are not consistently occupied.
A30: Plug Loads | B30: No Plug Load Control: Plug load controls are not recommended. | C30: Install Plug Load Controls: Plug load controls, such as advanced power strips, are recommended. Advanced power strips allow occupants to easily turn off office equipment at the end of the day. Based on measured data, advanced power strips can help reduce plug load power to 10% at night.
A31: HVAC Efficiency | B31: Baseline HVAC Equipment: HVAC equipment upgrades are not recommended. Assumed efficiencies are noted in the HVAC Heating and Cooling Efficiency tables to the right. | C31: Install High-Efficiency HVAC Equipment: HVAC upgrades are recommended. Low-energy efficiency recommendations are noted in the HVAC Heating and Cooling Efficiency tables to the right. | F31: HVAC System Cooling and Heating Efficiency
F32: Note 1: High-efficiency values are derived from the U.S. Department of Energy's High Performance Rooftop Unit Challenge, proposed in the Tier 2 Category of the Consortium of Energy Efficiency Commercial Unitary AC and HP Specification.
F33: Note 2: Baseline efficiency values were developed by the national laboratories to represent typical efficiency values for each building vintage.
F34: HVAC System Cooling Efficiency:
F35: System Type | G35: Pre-1980 | I35: Post-1980 | K35: 90.1-2004
G36: Baseline (COP) | H36: Low Energy (COP) | I36: Baseline (COP) | J36: Low Energy (COP) | K36: Baseline (COP) | L36: Low Energy (COP)
F37: PSZ-AC* | G37: 2.81 | H37: 3.52 | I37: 2.55 | J37: 3.52 | K37: 3.05 | L37: 3.52
F38: PTAC** | G38: 2.92 | H38: 3.66 | I38: 2.65 | J38: 3.66 | K38: 3.17 | L38: 3.66
F39: PTHP*** | G39: 2.92 | H39: 3.66 | I39: 2.65 | J39: 3.66 | K39: 3.17 | L39: 3.66
F40: HVAC System Heating Efficiency:
F42: System Type | G42: Pre-1980 | I42: Post-1980 | K42: 90.1-2004
G43: Baseline | H43: Low Energy | I43: Baseline | J43: Low Energy | K43: Baseline | L43: Low Energy
F44: PSZ-AC* | G44: 0.78 | H44: 0.8 | I44: 0.8
F45: PTAC** | G45: 0.78 | H45: 0.9 | I45: 0.8 | J45: 0.9 | K45: 0.8 | L45: 0.9
F46: PTHP*** (COP) | G46: 1.95 | H46: 2.64 | I46: 2 | J46: 2.64 | K46: 2 | L46: 2.64
F47: *Packaged single zone air-conditioner (rooftop unit with DX cooling and gas forced-air furnace)
F48: **Packaged terminal air-conditioner (split system DX air-conditioner with gas forced-air furnace)
F49: ***Packaged terminal heat pump (split system heat pump with electric supplemental heat)

Sheet summary
E1: EEM Selection & Cost Evaluation Tool Small Office Developed by the National Renewable Energy Laboratory Rois Langner Rois.Langner@nrel.gov
B2: Input Building Data: | E2: Roof Insulation | F2: Window Type | G2: Infiltration | H2: Lighting Power Density | I2: Daylight Sensors | J2: Occupancy Sensors | K2: Plug Loads | L2: HVAC Efficiency | M2: Energy Savings | N2: Energy Cost Savings | O2: Net Initial Cost | P2: Full Initial Cost | Q2: QA Fee | R2: Rebate | S2: Annual Payment | T2: O&M Cost | U2: M&V Cost | V2: Total 1st Year Cost | W2: Net Cash Flow
B3: Vintage | C3: Post 1980 Construction
B4: Square Footage | C4: 10,000 SF
B5: HVAC System Type | C5: Packaged Air Conditioner
B6: Boundary Conditions | C6: Above Ground, 1 Side Attached
B7: Major Renovation Planned? | C7: Yes
B8: Roof Replacement Planned? | C8: No
B9: HVAC Replacement Planned? | C9: No
B10: Energy Savings Threshold | C10: 0.2
B13: Additional Data - Update as Necessary
B14: Efficiency Measure Costs
B15: Increase Roof Insulation ($/ft2 of Roof Area)
B16: Incremental Cost: | C16: 3
B17: Full Cost: | C17: 12.15
B18: O&M Cost: | C18: 0
B19: Replace Windows ($/ft2 of Window Area)
B20: Incremental Cost: | C20: 7.18
B21: Full Cost: | C21: 43
B22: O&M Cost: | C22: 0
B23: Reduce Building Leakage ($/ft2 of Exterior Wall Area)
B24: Incremental Cost: | C24: 0.43
B25: Full Cost: | C25: 0.43
B26: O&M Cost: | C26: 0
B27: LPD Reduction: Retrofit from T12s to T8s, 40fc ($/ft2)
B28: Incremental Cost: | C28: 0.66
B29: Full Cost: | C29: 2.06
B30: O&M Cost: | C30: -0.12
B31: LPD Reduction: Retrofit to T8s and Change Design, 25fc ($/ft2)
B32: Incremental Cost: | C32: 0.79
B33: Full Cost: | C33: 11.15
B34: O&M Cost: | C34: -0.19
B35: Daylighting Controls Added to Perimeter Zones ($/ft2)
B36: Incremental Cost: | C36: 0.55
B37: Full Cost: | C37: 3.41
B38: O&M Cost: | C38: 0
B39: Occupancy Sensors Applied to Entire Office Building ($/ft2)
B40: Incremental Cost: | C40: 0.36
B41: Full Cost: | C41: 0.36
B42: O&M Cost: | C42: 0
B43: Advanced Power Strips ($/ft2)
B44: Incremental Cost: | C44: 0.15
B45: Full Cost: | C45: 0.15
B46: O&M Cost: | C46: 0
B47: Replace HVAC Equipment PSZ-AC: Rooftop Unit with Gas Furnace ($/ft2)
B48: Incremental Cost: | C48: 0.41
B49: Full Cost: | C49: 6.09
B50: O&M Cost: | C50: 0
B51: Replace HVAC Equipment - PTAC: Split System Air-Conditioner with Gas Furnace ($/ft2)
B52: Incremental Cost: | C52: 0.66
B53: Full Cost: | C53: 2.85
B54: O&M Cost: | C54: 0
B55: Replace HVAC Equipment - PTHP: Heat Pump ($/ft2)
B56: Incremental Cost: | C56: 1.53
B57: Full Cost: | C57: 3.3
B58: O&M Cost: | C58: 0
B60: Utility Costs
B61: Electricity ($/kWh): | C61: 0.1
B62: Gas ($/1000 ft3): | C62: 9.14
B64: Loan Information
B65: Interest Rate: | C65: 0.059
B66: Loan Term (yrs): | C66: 5

Sheet results
A1: Comments: Fields highlighted in GREEN are inputs that can be selected on the summary tab. Fields highlighted in GRAY are displayed as results in the summary tab. Fields highlighted in BLUE can be updated by the user if necessary - on the summary tab. | C1: Increase Roof Insulation | D1: Replace Windows Option 1 | F1: Reduce Building Leakage | G1: LPD Reduction, Retrofit to T8s, 40 fc | H1: LPD Reduction, Retrofit to T8s and change design (e.g., delamp) to 25 fc plus task lights | I1: Daylighting Controls - reduce total power at perimeter zones by 50% | J1: Occupancy Sensors applied to entire office building. If vacancy, manual-on sensors are used and savings is 20%. If auto-on, use 10% savings. | K1: Add equipment controls to turn equipment off at night | L1: Replace PSZ-AC | M1: Replace PTAC | N1: Replace PTHP
B2: Normalizing Factor: | C2: Roof area | D2: Window Area | F2: Exterior Wall Area | G2: Floor Area | H2: Floor Area | I2: Floor Area | J2: Floor Area | K2: Floor Area | L2: Floor Area | M2: Floor Area | N2: Floor Area | O2: 1GJ=277.78kWh | R2: Averate State Electricity and Gas Prices for Michigan (179D DOE Calculator) | W2: Enter "yes" or "no" below: | AD2: Financial Factors:
B3: Incremental Cost: | C3: =summary!C16 -> 3 | D3: =summary!C20 -> 7.18 | F3: =summary!C24 -> 0.43 | G3: =summary!C28 -> 0.66 | H3: =summary!C32 -> 0.79 | I3: =summary!C36 -> 0.55 | J3: =summary!C40 -> 0.36 | K3: =summary!C44 -> 0.15 | L3: =summary!C48 -> 0.41 | M3: =summary!C52 -> 0.66 | N3: =summary!C56 -> 1.53 | R3: Electricity: | S3: =summary!C61 -> 0.1 | T3: $/kWh | W3: Major Renovation Planned? | X3: Roof Replacement Planned? | Y3: HVAC Replacement Planned? | AD3: Interest Rate: | AE3: =summary!C65 -> 0.059
B4: Full Cost: | C4: =summary!C17 -> 12.15 | D4: =summary!C21 -> 43 | F4: =summary!C25 -> 0.43 | G4: =summary!C29 -> 2.06 | H4: =summary!C33 -> 11.15 | I4: =summary!C37 -> 3.41 | J4: =summary!C41 -> 0.36 | K4: =summary!C45 -> 0.15 | L4: =summary!C49 -> 6.09 | M4: =summary!C53 -> 2.85 | N4: =summary!C57 -> 3.3 | P4: Gas $/1000 ft3: | Q4: =summary!C62 -> 9.14 | R4: Gas: | S4: =(Q4/1000)*(1/1000)*(3412) -> 0.03118568 | T4: $/kWh | W4: =summary!C7 -> Yes | X4: =summary!C8 -> No | Y4: =summary!C9 -> No | AD4: Loan Term (yrs): | AE4: =summary!C66 -> 5
B5: O&M Cost Increase | C5: =summary!C18 -> 0 | D5: =summary!C22 -> 0 | F5: =summary!C26 -> 0 | G5: =summary!C30 -> -0.12 | H5: =summary!C34 -> -0.19 | I5: =summary!C38 -> 0 | J5: =summary!C42 -> 0 | K5: =summary!C46 -> 0 | L5: =summary!C50 -> 0 | M5: =summary!C54 -> 0 | N5: =summary!C58 -> 0
A6: Vintage | B6: Square Footage | C6: HVAC System Type | D6: Boundaries | E6: Run Code | F6: Roof Insulation | G6: Window Type | H6: Infiltration | I6: Lighting Power Density | J6: Daylight Sensors | K6: Occ Sensors | L6: Plug Loads | M6: HVAC Efficiency | N6: Electric Usage (GJ) | O6: Gas Usage (GJ) | P6: Energy Savings | Q6: Elec Savings | R6: Gas Savings | S6: Elec Cost Savings | T6: Gas Cost Savings | U6: Energy Cost Savings | V6: 20% savings? | W6: Floor Area ( ft2) | X6: Window Area ( ft2) | Y6: Opaque Wall Area ( ft2) | AA6: Net Initial Cost | AB6: Full Initial Cost | AC6: QA Fee | AD6: Rebate | AE6: Annual Payment | AF6: O&M Costs | AG6: M&V Costs | AH6: Total 1st Yr Costs | AI6: Net Cash Flow | AM6: Vintage | AN6: Square Footage | AO6: HVAC System Type | AP6: Boundary Conditions | AQ6: Roof Insulation | AR6: Window Type | AS6: Infiltration | AT6: Lighting Power Density | AU6: Daylight Sensors | AV6: Occ Sensors | AW6: Plug Loads | AX6: HVAC Efficiency | AZ6: Vintage | BA6: Square Footage | BB6: HVAC System Type | BC6: Boundary Conditions | BD6: Yes/No
A7: new90.1-2004 | B7: 5500 ft2 | C7: psz-ac | D7: stand-alone | E7: new90.1-20045500 ft2psz-acstand-alonebaseline | N7: 227.49 | O7: 96.32 | S7: =277.8*($N$7-N7)*$S$3 -> 0 | T7: =277.78*($O$7-O7)*$S$4 -> 0 | U7: =SUM(S7:T7) -> 0 | V7: =IF(P7>0.2,"yes","no") -> no | W7: =IF(B7="5500 ft2",5500,IF(B7="10000 ft2",10000,25000)) -> 5500 | X7: =IF(B7="5500 ft2",IF(D7="stand-alone",642.39,IF(D7="ad-e&flr",522.37,402.25)),IF(B7="10000 ft2",IF(D7="stand-alone",866.06,IF(D7="ad-e&flr",704.17,542.29)),IF(B7="25000 ft2",IF(D7="stand-alone",1369.38,IF(D7="ad-e&flr",1113.42,857.45))))) -> 642.39 | Y7: =IF(B7="5500 ft2",IF(D7="stand-alone",3030.15,IF(D7="ad-e&flr",2424.14,1818.13)),IF(B7="10000 ft2",IF(D7="stand-alone",4085.12,IF(D7="ad-e&flr",3268.14,2451.05)),IF(B7="25000 ft2",IF(D7="stand-alone",6459.2,IF(D7="ad-e&flr",5167.32,3875.54))))) -> 3030.15 | AA7: =SUM(IF(F7="eff-roof",W7*IF(AND(W$4="no",X$4="no"),$C$4,$C$3)),IF(G7="eff-win",X7*IF(W$4="no",$D$4,$D$3),0),IF(H7="red-inf",Y7*IF(W$4="no",$F$4,$F$3),0),IF(I7="25 fc",W7*IF(W$4="no",$H$4,$H$3),0),IF(I7="40 fc",W7*IF(W$4="no",$G$4,$G$3),0),IF(J7="yes-day",W7*IF(W$4="no",$I$4,$I$3),0),IF(K7="yes-occ",W7*IF(W$4="no",$J$4,$J$3),0),IF(L7="red-epd",W7*IF(W$4="no",$K$4,$K$3),0),IF(AND(M7="high-eff",C7="psz-ac"),W7*IF(AND(W$4="no",Y$4="no"),$L$4,$L$3),0),IF(AND(M7="high-eff",C7="ptac"),W7*IF(AND(W$4="no",Y$4="no"),$M$4,$M$3),0),IF(AND(M7="high-eff",C7="pthp"),W7*IF(AND(W$4="no",Y$4="no"),$N$4,$N$3),0)) -> 0 | AB7: =SUM(IF(F7="eff-roof",W7*$C$4),IF(G7="eff-win",X7*$D$4,0),IF(H7="red-inf",Y7*$F$4,0),IF(I7="25 fc",W7*$H$4,0),IF(I7="40 fc",W7*$G$4,0),IF(J7="yes-day",W7*$I$4,0),IF(K7="yes-occ",W7*$J$4,0),IF(L7="red-epd",W7*$K$4,0),IF(AND(M7="high-eff",C7="psz-ac"),W7*$L$4,0),IF(AND(M7="high-eff",C7="ptac"),W7*$M$4,0),IF(AND(M7="high-eff",C7="pthp"),W7*$N$4,0)) -> 0 | AC7: =MIN(0.01*AA7,500) -> 0 | AD7: =IF(V7="yes",0,0) -> 0 | AE7: =-PMT($AE$3,$AE$4,AA7+AC7-AD7) -> 0 | AF7: =SUM(IF(F7="eff-roof",($C$5*W7),0),IF(G7="eff-win",($D$5*X7),0),IF(H7="red-inf",$F$5*(Y7-X7),0),IF(I7="25 fc",($H$5*W7),0),IF(I7="40 fc",($G$5*W7),0),IF(J7="yes-day",($I$5*W7),0),IF(K7="yes-occ",($J$5*W7),0),IF(L7="red-epd",($K$5*W7),0),IF(M7="high-eff",($L$5*W7),0)) -> 0 | AG7: =0.05*U7 -> 0 | AH7: =SUM(AE7:AG7) -> 0 | AI7: =U7-AH7 -> 0 | AM7: =IF(A7="new90.1-2004","New Construction",IF(A7="post1980","Post 1980 Construction",IF(A7="pre1980","Pre 1980 Construction"))) -> New Construction | AN7: =IF(B7="5500 ft2","5,500 SF",IF(B7="10000 ft2","10,000 SF",IF(B7="25000 ft2","25,000 SF"))) -> 5,500 SF | AO7: =IF(C7="psz-ac","Packaged Air Conditioner",IF(C7="ptac","Split System Air Conditioner",IF(C7="pthp","Split System Heat Pump"))) -> Packaged Air Conditioner | AP7: =IF(D7="stand-alone","Stand Alone",IF(D7="ad-e&flr","Above Ground, 1 Side Attached",IF(D7="ad-e&w&flr","Above Ground, 2 Sides Attached"))) -> Stand Alone | AQ7: =IF(F7="base-roof","Baseline Roof Insulation",IF(F7="eff-roof","Increased Roof Insulation")) -> FALSE | AR7: =IF(G7="base-win","Baseline Windows",IF(G7="eff-win","Replace Windows")) -> FALSE | AS7: =IF(H7="base-inf","Baseline Infiltration",IF(H7="red-inf","Reduce Infiltration")) -> FALSE | AT7: =IF(I7="base-lpd","Baseline Lighting Levels",IF(I7="40 fc","Reduce Lighting Levels to 40 fc",IF(I7="25 fc","Reduce Lighting Levels to 25 fc"))) -> FALSE | AU7: =IF(J7="no-day","No Daylighting Sensors",IF(J7="yes-day","Install Daylighting Sensors")) -> FALSE | AV7: =IF(K7="no-occ","No Occupancy Sensors",IF(K7="yes-occ","Install Occupancy Sensors")) -> FALSE | AW7: =IF(L7="base-epd","No Plug Load Control",IF(L7="red-epd","Install Plug Load Controls")) -> FALSE | AX7: =IF(M7="base-eff","Baseline HVAC Equipment",IF(M7="high-eff","Install High Efficiency HVAC Equipment")) -> FALSE | AZ7: New Construction | BA7: 5,500 SF | BB7: Packaged Air Conditioner | BC7: Stand Alone | BD7: Yes
A8: new90.1-2004 | B8: 5500 ft2 | C8: psz-ac | D8: stand-alone | E8: new90.1-20045500 ft2psz-acstand-alone | F8: base-roof | G8: base-win | H8: base-inf | I8: base-lpd | J8: no-day | K8: no-occ | L8: base-epd | M8: high-eff | N8: 225.86 | O8: 96.32 | P8: 0.005019969375 | Q8: 0.007165150116 | R8: 0 | S8: =277.8*($N$7-N8)*$S$3 -> 45.2814 | T8: =277.78*($O$7-O8)*$S$4 -> 0 | U8: =SUM(S8:T8) -> 45.2814 | V8: no | W8: 5500 | X8: 642.39 | Y8: 3030.15 | AA8: 2255 | AB8: 33495 | AC8: =MIN(0.01*AA8,500) -> 22.55 | AD8: =IF(V8="yes",0,0) -> 0 | AE8: =-PMT($AE$3,$AE$4,AA8+AC8-AD8) -> 539.2121235 | AF8: 0 | AG8: 2.26407 | AH8: =SUM(AE8:AG8) -> 541.4761935 | AI8: =U8-AH8 -> -496.1947935 | AM8: =IF(A8="new90.1-2004","New Construction",IF(A8="post1980","Post 1980 Construction",IF(A8="pre1980","Pre 1980 Construction"))) -> New Construction | AN8: 5,500 SF | AO8: =IF(C8="psz-ac","Packaged Air Conditioner",IF(C8="ptac","Split System Air Conditioner",IF(C8="pthp","Split System Heat Pump"))) -> Packaged Air Conditioner | AP8: =IF(D8="stand-alone","Stand Alone",IF(D8="ad-e&flr","Above Ground, 1 Side Attached",IF(D8="ad-e&w&flr","Above Ground, 2 Sides Attached"))) -> Stand Alone | AQ8: =IF(F8="base-roof","Baseline Roof Insulation",IF(F8="eff-roof","Increased Roof Insulation")) -> Baseline Roof Insulation | AR8: =IF(G8="base-win","Baseline Windows",IF(G8="eff-win","Replace Windows")) -> Baseline Windows | AS8: =IF(H8="base-inf","Baseline Infiltration",IF(H8="red-inf","Reduce Infiltration")) -> Baseline Infiltration | AT8: Baseline Lighting Levels | AU8: =IF(J8="no-day","No Daylighting Sensors",IF(J8="yes-day","Install Daylighting Sensors")) -> No Daylighting Sensors | AV8: =IF(K8="no-occ","No Occupancy Sensors",IF(K8="yes-occ","Install Occupancy Sensors")) -> No Occupancy Sensors | AW8: =IF(L8="base-epd","No Plug Load Control",IF(L8="red-epd","Install Plug Load Controls")) -> No Plug Load Control | AX8: =IF(M8="base-eff","Baseline HVAC Equipment",IF(M8="high-eff","Install High Efficiency HVAC Equipment")) -> Install High Efficiency HVAC Equipment | AZ8: Post 1980 Construction | BA8: 10,000 SF | BB8: Split System Air Conditioner | BC8: Above Ground, 1 Side Attached | BD8: No
A9: new90.1-2004 | B9: 5500 ft2 | C9: psz-ac | D9: stand-alone | E9: new90.1-20045500 ft2psz-acstand-alone | F9: base-roof | G9: base-win | H9: base-inf | I9: base-lpd | J9: no-day | K9: no-occ | L9: red-epd | M9: base-eff | N9: 196.69 | O9: 107.71 | P9: 0.05990812509 | Q9: 0.1353905666 | R9: -0.1182516611 | S9: 855.624 | T9: -98.66881579 | U9: 756.9551842 | V9: no | W9: 5500 | X9: 642.39 | Y9: 3030.15 | AA9: 825 | AB9: 825 | AC9: 8.25 | AD9: 0 | AE9: 197.2727281 | AF9: 0 | AG9: 37.84775921 | AH9: 235.1204873 | AI9: 521.8346969 | AM9: =IF(A9="new90.1-2004","New Construction",IF(A9="post1980","Post 1980 Construction",IF(A9="pre1980","Pre 1980 Construction"))) -> New Construction | AN9: 5,500 SF | AO9: Packaged Air Conditioner | AP9: Stand Alone | AQ9: Baseline Roof Insulation | AR9: Baseline Windows | AS9: Baseline Infiltration | AT9: Baseline Lighting Levels | AU9: No Daylighting Sensors | AV9: No Occupancy Sensors | AW9: Install Plug Load Controls | AX9: Baseline HVAC Equipment | AZ9: Pre 1980 Construction | BA9: 25,000 SF | BB9: Split System Heat Pump | BC9: Above Ground, 2 Sides Attached
A10: new90.1-2004 | B10: 5500 ft2 | C10: psz-ac | D10: stand-alone | E10: new90.1-20045500 ft2psz-acstand-alone | F10: base-roof | G10: base-win | H10: base-inf | I10: base-lpd | J10: no-day | K10: no-occ | L10: red-epd | M10: high-eff | N10: 195.25 | O10: 107.71 | P10: 0.06437558211 | Q10: 0.1417205152 | R10: -0.1182516611 | S10: 895.6272 | T10: -98.66881579 | U10: 796.9583842 | V10: no | W10: 5500 | X10: 642.39 | Y10: 3030.15 | AA10: 3080 | AB10: 34320 | AC10: 30.8 | AD10: 0 | AE10: 736.4848517 | AF10: 0 | AG10: 39.84791921 | AH10: 776.3327709 | AI10: 20.62561334 | AM10: New Construction | AN10: 5,500 SF | AO10: Packaged Air Conditioner | AP10: Stand Alone | AQ10: Baseline Roof Insulation | AR10: Baseline Windows | AS10: Baseline Infiltration | AT10: Baseline Lighting Levels | AU10: No Daylighting Sensors | AV10: No Occupancy Sensors | AW10: Install Plug Load Controls | AX10: Install High Efficiency HVAC Equipment
A11: new90.1-2004 | B11: 5500 ft2 | C11: psz-ac | D11: stand-alone | E11: new90.1-20045500 ft2psz-acstand-alone | F11: base-roof | G11: base-win | H11: base-inf | I11: base-lpd | J11: no-day | K11: yes-occ | L11: base-epd | M11: base-eff | N11: 212.79 | O11: 102.2 | P11: 0.02721517988 | Q11: 0.06461822498 | R11: -0.06104651163 | S11: 408.366 | T11: -50.93701816 | U11: 357.4289818 | V11: no | W11: 5500 | X11: 642.39 | Y11: 3030.15 | AA11: 1980 | AB11: 1980 | AC11: 19.8 | AD11: 0 | AE11: 473.4545475 | AF11: 0 | AG11: 17.87144909 | AH11: 491.3259966 | AI11: -133.8970147 | AM11: New Construction | AN11: 5,500 SF | AO11: Packaged Air Conditioner | AP11: Stand Alone | AQ11: Baseline Roof Insulation | AR11: Baseline Windows | AS11: Baseline Infiltration | AT11: Baseline Lighting Levels | AU11: No Daylighting Sensors | AV11: Install Occupancy Sensors | AW11: No Plug Load Control | AX11: Baseline HVAC Equipment
A12: new90.1-2004 | B12: 5500 ft2 | C12: psz-ac | D12: stand-alone | E12: new90.1-20045500 ft2psz-acstand-alone | F12: base-roof | G12: base-win | H12: base-inf | I12: base-lpd | J12: no-day | K12: yes-occ | L12: base-epd | M12: high-eff | N12: 211.3 | O12: 102.2 | P12: 0.03180892544 | Q12: 0.07116796343 | R12: -0.06104651163 | S12: 449.7582 | T12: -50.93701816 | U12: 398.8211818 | V12: no | W12: 5500 | X12: 642.39 | Y12: 3030.15 | AA12: 4235 | AB12: 35475 | AC12: 42.35 | AD12: 0 | AE12: 1012.666671 | AF12: 0 | AG12: 19.94105909 | AH12: 1032.60773 | AI12: -633.7865483 | AM12: New Construction | AN12: 5,500 SF | AO12: Packaged Air Conditioner | AP12: Stand Alone | AQ12: Baseline Roof Insulation | AR12: Baseline Windows | AS12: Baseline Infiltration | AT12: Baseline Lighting Levels | AU12: No Daylighting Sensors | AV12: Install Occupancy Sensors | AW12: No Plug Load Control | AX12: Install High Efficiency HVAC Equipment
A13: new90.1-2004 | B13: 5500 ft2 | C13: psz-ac | D13: stand-alone | E13: new90.1-20045500 ft2psz-acstand-alone | F13: base-roof | G13: base-win | H13: base-inf | I13: base-lpd | J13: no-day | K13: yes-occ | L13: red-epd | M13: base-eff | N13: 182.02 | O13: 113.88 | P13: 0.08620771307 | Q13: 0.1998769177 | R13: -0.1823089701 | S13: 1263.1566 | T13: -152.1180338 | U13: 1111.038566 | V13: no | W13: 5500 | X13: 642.39 | Y13: 3030.15 | AA13: 2805 | AB13: 2805 | AC13: 28.05 | AD13: 0 | AE13: 670.7272756 | AF13: 0 | AG13: 55.55192831 | AH13: 726.2792039 | AI13: 384.7593622 | AM13: New Construction | AN13: 5,500 SF | AO13: Packaged Air Conditioner | AP13: Stand Alone | AQ13: Baseline Roof Insulation | AR13: Baseline Windows | AS13: Baseline Infiltration | AT13: Baseline Lighting Levels | AU13: No Daylighting Sensors | AV13: Install Occupancy Sensors | AW13: Install Plug Load Controls | AX13: Baseline HVAC Equipment
A14: new90.1-2004 | B14: 5500 ft2 | C14: psz-ac | D14: stand-alone | E14: new90.1-20045500 ft2psz-acstand-alone | F14: base-roof | G14: base-win | H14: base-inf | I14: base-lpd | J14: no-day | K14: yes-occ | L14: red-epd | M14: high-eff | N14: 180.7 | O14: 113.88 | P14: 0.09026473235 | Q14: 0.2056793705 | R14: -0.1823089701 | S14: 1299.8262 | T14: -152.1180338 | U14: 1147.708166 | V14: no | W14: 5500 | X14: 642.39 | Y14: 3030.15 | AA14: 5060 | AB14: 36300 | AC14: 50.6 | AD14: 0 | AE14: 1209.939399 | AF14: 0 | AG14: 57.38540831 | AH14: 1267.324807 | AI14: -119.6166413 | AM14: New Construction | AN14: 5,500 SF | AO14: Packaged Air Conditioner | AP14: Stand Alone | AQ14: Baseline Roof Insulation | AR14: Baseline Windows | AS14: Baseline Infiltration | AT14: Baseline Lighting Levels | AU14: No Daylighting Sensors | AV14: Install Occupancy Sensors | AW14: Install Plug Load Controls | AX14: Install High Efficiency HVAC Equipment
A15: new90.1-2004 | B15: 5500 ft2 | C15: psz-ac | D15: stand-alone | E15: new90.1-20045500 ft2psz-acstand-alone | F15: base-roof | G15: base-win | H15: base-inf | I15: base-lpd | J15: yes-day | K15: no-occ | L15: base-epd | M15: base-eff | N15: 204.69 | O15: 104.71 | P15: 0.04446935135 | Q15: 0.1002241857 | R15: -0.08710548173 | S15: 633.384 | T15: -72.68054122 | U15: 560.7034588 | V15: no | W15: 5500 | X15: 642.39 | Y15: 3030.15 | AA15: 3025 | AB15: 18755 | AC15: 30.25 | AD15: 0 | AE15: 723.3333365 | AF15: 0 | AG15: 28.03517294 | AH15: 751.3685094 | AI15: -190.6650506 | AM15: New Construction | AN15: 5,500 SF | AO15: Packaged Air Conditioner | AP15: Stand Alone | AQ15: Baseline Roof Insulation | AR15: Baseline Windows | AS15: Baseline Infiltration | AT15: Baseline Lighting Levels | AU15: Install Daylighting Sensors | AV15: No Occupancy Sensors | AW15: No Plug Load Control | AX15: Baseline HVAC Equipment
A16: new90.1-2004 | B16: 5500 ft2 | C16: psz-ac | D16: stand-alone | E16: new90.1-20045500 ft2psz-acstand-alone | F16: base-roof | G16: base-win | H16: base-inf | I16: base-lpd | J16: yes-day | K16: no-occ | L16: base-epd | M16: high-eff | N16: 203.28 | O16: 104.71 | P16: 0.0488263059 | Q16: 0.1064222603 | R16: -0.08710548173 | S16: 672.5538 | T16: -72.68054122 | U16: 599.8732588 | V16: no | W16: 5500 | X16: 642.39 | Y16: 3030.15 | AA16: 5280 | AB16: 52250 | AC16: 52.8 | AD16: 0 | AE16: 1262.54546 | AF16: 0 | AG16: 29.99366294 | AH16: 1292.539123 | AI16: -692.6658642 | AM16: New Construction | AN16: 5,500 SF | AO16: Packaged Air Conditioner | AP16: Stand Alone | AQ16: Baseline Roof Insulation | AR16: Baseline Windows | AS16: Baseline Infiltration | AT16: Baseline Lighting Levels | AU16: Install Daylighting Sensors | AV16: No Occupancy Sensors | AW16: No Plug Load Control | AX16: Install High Efficiency HVAC Equipment
A17: new90.1-2004 | B17: 5500 ft2 | C17: psz-ac | D17: stand-alone | E17: new90.1-20045500 ft2psz-acstand-alone | F17: base-roof | G17: base-win | H17: base-inf | I17: base-lpd | J17: yes-day | K17: no-occ | L17: red-epd | M17: base-eff | N17: 173.97 | O17: 116.47 | P17: 0.1030514468 | Q17: 0.2352630885 | R17: -0.209198505 | S17: 1486.7856 | T17: -174.5545775 | U17: 1312.231022 | V17: no | W17: 5500 | X17: 642.39 | Y17: 3030.15 | AA17: 3850 | AB17: 19580 | AC17: 38.5 | AD17: 0 | AE17: 920.6060646 | AF17: 0 | AG17: 65.61155112 | AH17: 986.2176157 | AI17: 326.0134068 | AM17: New Construction | AN17: 5,500 SF | AO17: Packaged Air Conditioner | AP17: Stand Alone | AQ17: Baseline Roof Insulation | AR17: Baseline Windows | AS17: Baseline Infiltration | AT17: Baseline Lighting Levels | AU17: Install Daylighting Sensors | AV17: No Occupancy Sensors | AW17: Install Plug Load Controls | AX17: Baseline HVAC Equipment
A18: new90.1-2004 | B18: 5500 ft2 | C18: psz-ac | D18: stand-alone | E18: new90.1-20045500 ft2psz-acstand-alone | F18: base-roof | G18: base-win | H18: base-inf | I18: base-lpd | J18: yes-day | K18: no-occ | L18: red-epd | M18: high-eff | N18: 172.73 | O18: 116.47 | P18: 0.1068874611 | Q18: 0.2407138775 | R18: -0.209198505 | S18: 1521.2328 | T18: -174.5545775 | U18: 1346.678222 | V18: no | W18: 5500 | X18: 642.39 | Y18: 3030.15 | AA18: 6105 | AB18: 53075 | AC18: 61.05 | AD18: 0 | AE18: 1459.818188 | AF18: 0 | AG18: 67.33391112 | AH18: 1527.152099 | AI18: -180.4738768 | AM18: New Construction | AN18: 5,500 SF | AO18: Packaged Air Conditioner | AP18: Stand Alone | AQ18: Baseline Roof Insulation | AR18: Baseline Windows | AS18: Baseline Infiltration | AT18: Baseline Lighting Levels | AU18: Install Daylighting Sensors | AV18: No Occupancy Sensors | AW18: Install Plug Load Controls | AX18: Install High Efficiency HVAC Equipment
A19: new90.1-2004 | B19: 5500 ft2 | C19: psz-ac | D19: stand-alone | E19: new90.1-20045500 ft2psz-acstand-alone | F19: base-roof | G19: base-win | H19: base-inf | I19: base-lpd | J19: yes-day | K19: yes-occ | L19: base-epd | M19: base-eff | N19: 194.58 | O19: 109.16 | P19: 0.06196031383 | Q19: 0.1446656996 | R19: -0.1333056478 | S19: 914.2398 | T19: -111.2298152 | U19: 803.0099848 | V19: no | W19: 5500 | X19: 642.39 | Y19: 3030.15 | AA19: 5005 | AB19: 20735 | AC19: 50.05 | AD19: 0 | AE19: 1196.787884 | AF19: 0 | AG19: 40.15049924 | AH19: 1236.938383 | AI19: -433.9283984 | AM19: New Construction | AN19: 5,500 SF | AO19: Packaged Air Conditioner | AP19: Stand Alone | AQ19: Baseline Roof Insulation | AR19: Baseline Windows | AS19: Baseline Infiltration | AT19: Baseline Lighting Levels | AU19: Install Daylighting Sensors | AV19: Install Occupancy Sensors | AW19: No Plug Load Control | AX19: Baseline HVAC Equipment
A20: new90.1-2004 | B20: 5500 ft2 | C20: psz-ac | D20: stand-alone | E20: new90.1-20045500 ft2psz-acstand-alone | F20: base-roof | G20: base-win | H20: base-inf | I20: base-lpd | J20: yes-day | K20: yes-occ | L20: base-epd | M20: high-eff | N20: 193.26 | O20: 109.16 | P20: 0.0660173331 | Q20: 0.1504681524 | R20: -0.1333056478 | S20: 950.9094 | T20: -111.2298152 | U20: 839.6795848 | V20: no | W20: 5500 | X20: 642.39 | Y20: 3030.15 | AA20: 7260 | AB20: 54230 | AC20: 72.6 | AD20: 0 | AE20: 1736.000007 | AF20: 0 | AG20: 41.98397924 | AH20: 1777.983987 | AI20: -938.3044019 | AM20: New Construction | AN20: 5,500 SF | AO20: Packaged Air Conditioner | AP20: Stand Alone | AQ20: Baseline Roof Insulation | AR20: Baseline Windows | AS20: Baseline Infiltration | AT20: Baseline Lighting Levels | AU20: Install Daylighting Sensors | AV20: Install Occupancy Sensors | AW20: No Plug Load Control | AX20: Install High Efficiency HVAC Equipment
A21: new90.1-2004 | B21: 5500 ft2 | C21: psz-ac | D21: stand-alone | E21: new90.1-20045500 ft2psz-acstand-alone | F21: base-roof | G21: base-win | H21: base-inf | I21: base-lpd | J21: yes-day | K21: yes-occ | L21: red-epd | M21: base-eff | N21: 163.86 | O21: 121.08 | P21: 0.120005683 | Q21: 0.2797046024 | R21: -0.2570598007 | S21: 1767.6414 | T21: -214.4898928 | U21: 1553.151507 | V21: no | W21: 5500 | X21: 642.39 | Y21: 3030.15 | AA21: 5830 | AB21: 21560 | AC21: 58.3 | AD21: 0 | AE21: 1394.060612 | AF21: 0 | AG21: 77.65757536 | AH21: 1471.718187 | AI21: 81.43331977 | AM21: New Construction | AN21: 5,500 SF | AO21: Packaged Air Conditioner | AP21: Stand Alone | AQ21: Baseline Roof Insulation | AR21: Baseline Windows | AS21: Baseline Infiltration | AT21: Baseline Lighting Levels | AU21: Install Daylighting Sensors | AV21: Install Occupancy Sensors | AW21: Install Plug Load Controls | AX21: Baseline HVAC Equipment
A22: new90.1-2004 | B22: 5500 ft2 | C22: psz-ac | D22: stand-alone | E22: new90.1-20045500 ft2psz-acstand-alone | F22: base-roof | G22: base-win | H22: base-inf | I22: base-lpd | J22: yes-day | K22: yes-occ | L22: red-epd | M22: high-eff | N22: 162.71 | O22: 121.08 | P22: 0.1235575481 | Q22: 0.2847597697 | R22: -0.2570598007 | S22: 1799.5884 | T22: -214.4898928 | U22: 1585.098507 | V22: no | W22: 5500 | X22: 642.39 | Y22: 3030.15 | AA22: 8085 | AB22: 55055 | AC22: 80.85 | AD22: 0 | AE22: 1933.272736 | AF22: 0 | AG22: 79.25492536 | AH22: 2012.527661 | AI22: -427.4291538 | AM22: New Construction | AN22: 5,500 SF | AO22: Packaged Air Conditioner | AP22: Stand Alone | AQ22: Baseline Roof Insulation | AR22: Baseline Windows | AS22: Baseline Infiltration | AT22: Baseline Lighting Levels | AU22: Install Daylighting Sensors | AV22: Install Occupancy Sensors | AW22: Install Plug Load Controls | AX22: Install High Efficiency HVAC Equipment
A23: new90.1-2004 | B23: 5500 ft2 | C23: psz-ac | D23: stand-alone | E23: new90.1-20045500 ft2psz-acstand-alone | F23: base-roof | G23: base-win | H23: base-inf | I23: 40 fc | J23: no-day | K23: no-occ | L23: base-epd | M23: base-eff | N23: 227.49 | O23: 96.32 | P23: 0 | Q23: 0 | R23: 0 | S23: 0 | T23: 0 | U23: 0 | V23: no | W23: 5500 | X23: 642.39 | Y23: 3030.15 | AA23: 3630 | AB23: 11330 | AC23: 36.3 | AD23: 0 | AE23: 868.0000037 | AF23: -660 | AG23: 0 | AH23: 208.0000037 | AI23: -208.0000037 | AM23: New Construction | AN23: 5,500 SF | AO23: Packaged Air Conditioner | AP23: Stand Alone | AQ23: Baseline Roof Insulation | AR23: Baseline Windows | AS23: Baseline Infiltration | AT23: Reduce Lighting Levels to 40 fc | AU23: No Daylighting Sensors | AV23: No Occupancy Sensors | AW23: No Plug Load Control | AX23: Baseline HVAC Equipment
A24: new90.1-2004 | B24: 5500 ft2 | C24: psz-ac | D24: stand-alone | E24: new90.1-20045500 ft2psz-acstand-alone | F24: base-roof | G24: base-win | H24: base-inf | I24: 40 fc | J24: no-day | K24: no-occ | L24: base-epd | M24: high-eff | N24: 225.86 | O24: 96.32 | P24: 0.005019969375 | Q24: 0.007165150116 | R24: 0 | S24: 45.2814 | T24: 0 | U24: 45.2814 | V24: no | W24: 5500 | X24: 642.39 | Y24: 3030.15 | AA24: 5885 | AB24: 44825 | AC24: 58.85 | AD24: 0 | AE24: 1407.212127 | AF24: -660 | AG24: 2.26407 | AH24: 749.4761973 | AI24: -704.1947973 | AM24: New Construction | AN24: 5,500 SF | AO24: Packaged Air Conditioner | AP24: Stand Alone | AQ24: Baseline Roof Insulation | AR24: Baseline Windows | AS24: Baseline Infiltration | AT24: Reduce Lighting Levels to 40 fc | AU24: No Daylighting Sensors | AV24: No Occupancy Sensors | AW24: No Plug Load Control | AX24: Install High Efficiency HVAC Equipment
A25: new90.1-2004 | B25: 5500 ft2 | C25: psz-ac | D25: stand-alone | E25: new90.1-20045500 ft2psz-acstand-alone | F25: base-roof | G25: base-win | H25: base-inf | I25: 40 fc | J25: no-day | K25: no-occ | L25: red-epd | M25: base-eff | N25: 196.69 | O25: 107.71 | P25: 0.05990812509 | Q25: 0.1353905666 | R25: -0.1182516611 | S25: 855.624 | T25: -98.66881579 | U25: 756.9551842 | V25: no | W25: 5500 | X25: 642.39 | Y25: 3030.15 | AA25: 4455 | AB25: 12155 | AC25: 44.55 | AD25: 0 | AE25: 1065.272732 | AF25: -660 | AG25: 37.84775921 | AH25: 443.1204911 | AI25: 313.8346931 | AM25: New Construction | AN25: 5,500 SF | AO25: Packaged Air Conditioner | AP25: Stand Alone | AQ25: Baseline Roof Insulation | AR25: Baseline Windows | AS25: Baseline Infiltration | AT25: Reduce Lighting Levels to 40 fc | AU25: No Daylighting Sensors | AV25: No Occupancy Sensors | AW25: Install Plug Load Controls | AX25: Baseline HVAC Equipment
A26: new90.1-2004 | B26: 5500 ft2 | C26: psz-ac | D26: stand-alone | E26: new90.1-20045500 ft2psz-acstand-alone | F26: base-roof | G26: base-win | H26: base-inf | I26: 40 fc | J26: no-day | K26: no-occ | L26: red-epd | M26: high-eff | N26: 195.25 | O26: 107.71 | P26: 0.06437558211 | Q26: 0.1417205152 | R26: -0.1182516611 | S26: 895.6272 | T26: -98.66881579 | U26: 796.9583842 | V26: no | W26: 5500 | X26: 642.39 | Y26: 3030.15 | AA26: 6710 | AB26: 45650 | AC26: 67.1 | AD26: 0 | AE26: 1604.484855 | AF26: -660 | AG26: 39.84791921 | AH26: 984.3327746 | AI26: -187.3743904 | AM26: New Construction | AN26: 5,500 SF | AO26: Packaged Air Conditioner | AP26: Stand Alone | AQ26: Baseline Roof Insulation | AR26: Baseline Windows | AS26: Baseline Infiltration | AT26: Reduce Lighting Levels to 40 fc | AU26: No Daylighting Sensors | AV26: No Occupancy Sensors | AW26: Install Plug Load Controls | AX26: Install High Efficiency HVAC Equipment
A27: new90.1-2004 | B27: 5500 ft2 | C27: psz-ac | D27: stand-alone | E27: new90.1-20045500 ft2psz-acstand-alone | F27: base-roof | G27: base-win | H27: base-inf | I27: 40 fc | J27: no-day | K27: yes-occ | L27: base-epd | M27: base-eff | N27: 212.79 | O27: 102.2 | P27: 0.02721517988 | Q27: 0.06461822498 | R27: -0.06104651163 | S27: 408.366 | T27: -50.93701816 | U27: 357.4289818 | V27: no | W27: 5500 | X27: 642.39 | Y27: 3030.15 | AA27: 5610 | AB27: 13310 | AC27: 56.1 | AD27: 0 | AE27: 1341.454551 | AF27: -660 | AG27: 17.87144909 | AH27: 699.3260003 | AI27: -341.8970185 | AM27: New Construction | AN27: 5,500 SF | AO27: Packaged Air Conditioner | AP27: Stand Alone | AQ27: Baseline Roof Insulation | AR27: Baseline Windows | AS27: Baseline Infiltration | AT27: Reduce Lighting Levels to 40 fc | AU27: No Daylighting Sensors | AV27: Install Occupancy Sensors | AW27: No Plug Load Control | AX27: Baseline HVAC Equipment
A28: new90.1-2004 | B28: 5500 ft2 | C28: psz-ac | D28: stand-alone | E28: new90.1-20045500 ft2psz-acstand-alone | F28: base-roof | G28: base-win | H28: base-inf | I28: 40 fc | J28: no-day | K28: yes-occ | L28: base-epd | M28: high-eff | N28: 211.3 | O28: 102.2 | P28: 0.03180892544 | Q28: 0.07116796343 | R28: -0.06104651163 | S28: 449.7582 | T28: -50.93701816 | U28: 398.8211818 | V28: no | W28: 5500 | X28: 642.39 | Y28: 3030.15 | AA28: 7865 | AB28: 46805 | AC28: 78.65 | AD28: 0 | AE28: 1880.666675 | AF28: -660 | AG28: 19.94105909 | AH28: 1240.607734 | AI28: -841.786552 | AM28: New Construction | AN28: 5,500 SF | AO28: Packaged Air Conditioner | AP28: Stand Alone | AQ28: Baseline Roof Insulation | AR28: Baseline Windows | AS28: Baseline Infiltration | AT28: Reduce Lighting Levels to 40 fc | AU28: No Daylighting Sensors | AV28: Install Occupancy Sensors | AW28: No Plug Load Control | AX28: Install High Efficiency HVAC Equipment
A29: new90.1-2004 | B29: 5500 ft2 | C29: psz-ac | D29: stand-alone | E29: new90.1-20045500 ft2psz-acstand-alone | F29: base-roof | G29: base-win | H29: base-inf | I29: 40 fc | J29: no-day | K29: yes-occ | L29: red-epd | M29: base-eff | N29: 182.02 | O29: 113.88 | P29: 0.08620771307 | Q29: 0.1998769177 | R29: -0.1823089701 | S29: 1263.1566 | T29: -152.1180338 | U29: 1111.038566 | V29: no | W29: 5500 | X29: 642.39 | Y29: 3030.15 | AA29: 6435 | AB29: 14135 | AC29: 64.35 | AD29: 0 | AE29: 1538.727279 | AF29: -660 | AG29: 55.55192831 | AH29: 934.2792077 | AI29: 176.7593585 | AM29: New Construction | AN29: 5,500 SF | AO29: Packaged Air Conditioner | AP29: Stand Alone | AQ29: Baseline Roof Insulation | AR29: Baseline Windows | AS29: Baseline Infiltration | AT29: Reduce Lighting Levels to 40 fc | AU29: No Daylighting Sensors | AV29: Install Occupancy Sensors | AW29: Install Plug Load Controls | AX29: Baseline HVAC Equipment
A30: new90.1-2004 | B30: 5500 ft2 | C30: psz-ac | D30: stand-alone | E30: new90.1-20045500 ft2psz-acstand-alone | F30: base-roof | G30: base-win | H30: base-inf | I30: 40 fc | J30: no-day | K30: yes-occ | L30: red-epd | M30: high-eff | N30: 180.7 | O30: 113.88 | P30: 0.09026473235 | Q30: 0.2056793705 | R30: -0.1823089701 | S30: 1299.8262 | T30: -152.1180338 | U30: 1147.708166 | V30: no | W30: 5500 | X30: 642.39 | Y30: 3030.15 | AA30: 8690 | AB30: 47630 | AC30: 86.9 | AD30: 0 | AE30: 2077.939403 | AF30: -660 | AG30: 57.38540831 | AH30: 1475.324811 | AI30: -327.616645 | AM30: New Construction | AN30: 5,500 SF | AO30: Packaged Air Conditioner | AP30: Stand Alone | AQ30: Baseline Roof Insulation | AR30: Baseline Windows | AS30: Baseline Infiltration | AT30: Reduce Lighting Levels to 40 fc | AU30: No Daylighting Sensors | AV30: Install Occupancy Sensors | AW30: Install Plug Load Controls | AX30: Install High Efficiency HVAC Equipment
A31: new90.1-2004 | B31: 5500 ft2 | C31: psz-ac | D31: stand-alone | E31: new90.1-20045500 ft2psz-acstand-alone | F31: base-roof | G31: base-win | H31: base-inf | I31: 40 fc | J31: yes-day | K31: no-occ | L31: base-epd | M31: base-eff | N31: 204.69 | O31: 104.71 | P31: 0.04446935135 | Q31: 0.1002241857 | R31: -0.08710548173 | S31: 633.384 | T31: -72.68054122 | U31: 560.7034588 | V31: no | W31: 5500 | X31: 642.39 | Y31: 3030.15 | AA31: 6655 | AB31: 30085 | AC31: 66.55 | AD31: 0 | AE31: 1591.33334 | AF31: -660 | AG31: 28.03517294 | AH31: 959.3685131 | AI31: -398.6650544 | AM31: New Construction | AN31: 5,500 SF | AO31: Packaged Air Conditioner | AP31: Stand Alone | AQ31: Baseline Roof Insulation | AR31: Baseline Windows | AS31: Baseline Infiltration | AT31: Reduce Lighting Levels to 40 fc | AU31: Install Daylighting Sensors | AV31: No Occupancy Sensors | AW31: No Plug Load Control | AX31: Baseline HVAC Equipment
A32: new90.1-2004 | B32: 5500 ft2 | C32: psz-ac | D32: stand-alone | E32: new90.1-20045500 ft2psz-acstand-alone | F32: base-roof | G32: base-win | H32: base-inf | I32: 40 fc | J32: yes-day | K32: no-occ | L32: base-epd | M32: high-eff | N32: 203.28 | O32: 104.71 | P32: 0.0488263059 | Q32: 0.1064222603 | R32: -0.08710548173 | S32: 672.5538 | T32: -72.68054122 | U32: 599.8732588 | V32: no | W32: 5500 | X32: 642.39 | Y32: 3030.15 | AA32: 8910 | AB32: 63580 | AC32: 89.1 | AD32: 0 | AE32: 2130.545464 | AF32: -660 | AG32: 29.99366294 | AH32: 1500.539127 | AI32: -900.6658679 | AM32: New Construction | AN32: 5,500 SF | AO32: Packaged Air Conditioner | AP32: Stand Alone | AQ32: Baseline Roof Insulation | AR32: Baseline Windows | AS32: Baseline Infiltration | AT32: Reduce Lighting Levels to 40 fc | AU32: Install Daylighting Sensors | AV32: No Occupancy Sensors | AW32: No Plug Load Control | AX32: Install High Efficiency HVAC Equipment
A33: new90.1-2004 | B33: 5500 ft2 | C33: psz-ac | D33: stand-alone | E33: new90.1-20045500 ft2psz-acstand-alone | F33: base-roof | G33: base-win | H33: base-inf | I33: 40 fc | J33: yes-day | K33: no-occ | L33: red-epd | M33: base-eff | N33: 173.97 | O33: 116.47 | P33: 0.1030514468 | Q33: 0.2352630885 | R33: -0.209198505 | S33: 1486.7856 | T33: -174.5545775 | U33: 1312.231022 | V33: no | W33: 5500 | X33: 642.39 | Y33: 3030.15 | AA33: 7480 | AB33: 30910 | AC33: 74.8 | AD33: 0 | AE33: 1788.606068 | AF33: -660 | AG33: 65.61155112 | AH33: 1194.217619 | AI33: 118.013403 | AM33: New Construction | AN33: 5,500 SF | AO33: Packaged Air Conditioner | AP33: Stand Alone | AQ33: Baseline Roof Insulation | AR33: Baseline Windows | AS33: Baseline Infiltration | AT33: Reduce Lighting Levels to 40 fc | AU33: Install Daylighting Sensors | AV33: No Occupancy Sensors | AW33: Install Plug Load Controls | AX33: Baseline HVAC Equipment
A34: new90.1-2004 | B34: 5500 ft2 | C34: psz-ac | D34: stand-alone | E34: new90.1-20045500 ft2psz-acstand-alone | F34: base-roof | G34: base-win | H34: base-inf | I34: 40 fc | J34: yes-day | K34: no-occ | L34: red-epd | M34: high-eff | N34: 172.73 | O34: 116.47 | P34: 0.1068874611 | Q34: 0.2407138775 | R34: -0.209198505 | S34: 1521.2328 | T34: -174.5545775 | U34: 1346.678222 | V34: no | W34: 5500 | X34: 642.39 | Y34: 3030.15 | AA34: 9735 | AB34: 64405 | AC34: 97.35 | AD34: 0 | AE34: 2327.818192 | AF34: -660 | AG34: 67.33391112 | AH34: 1735.152103 | AI34: -388.4738805 | AM34: New Construction | AN34: 5,500 SF | AO34: Packaged Air Conditioner | AP34: Stand Alone | AQ34: Baseline Roof Insulation | AR34: Baseline Windows | AS34: Baseline Infiltration | AT34: Reduce Lighting Levels to 40 fc | AU34: Install Daylighting Sensors | AV34: No Occupancy Sensors | AW34: Install Plug Load Controls | AX34: Install High Efficiency HVAC Equipment
A35: new90.1-2004 | B35: 5500 ft2 | C35: psz-ac | D35: stand-alone | E35: new90.1-20045500 ft2psz-acstand-alone | F35: base-roof | G35: base-win | H35: base-inf | I35: 40 fc | J35: yes-day | K35: yes-occ | L35: base-epd | M35: base-eff | N35: 194.58 | O35: 109.16 | P35: 0.06196031383 | Q35: 0.1446656996 | R35: -0.1333056478 | S35: 914.2398 | T35: -111.2298152 | U35: 803.0099848 | V35: no | W35: 5500 | X35: 642.39 | Y35: 3030.15 | AA35: 8635 | AB35: 32065 | AC35: 86.35 | AD35: 0 | AE35: 2064.787888 | AF35: -660 | AG35: 40.15049924 | AH35: 1444.938387 | AI35: -641.9284021 | AM35: New Construction | AN35: 5,500 SF | AO35: Packaged Air Conditioner | AP35: Stand Alone | AQ35: Baseline Roof Insulation | AR35: Baseline Windows | AS35: Baseline Infiltration | AT35: Reduce Lighting Levels to 40 fc | AU35: Install Daylighting Sensors | AV35: Install Occupancy Sensors | AW35: No Plug Load Control | AX35: Baseline HVAC Equipment
A36: new90.1-2004 | B36: 5500 ft2 | C36: psz-ac | D36: stand-alone | E36: new90.1-20045500 ft2psz-acstand-alone | F36: base-roof | G36: base-win | H36: base-inf | I36: 40 fc | J36: yes-day | K36: yes-occ | L36: base-epd | M36: high-eff | N36: 193.26 | O36: 109.16 | P36: 0.0660173331 | Q36: 0.1504681524 | R36: -0.1333056478 | S36: 950.9094 | T36: -111.2298152 | U36: 839.6795848 | V36: no | W36: 5500 | X36: 642.39 | Y36: 3030.15 | AA36: 10890 | AB36: 65560 | AC36: 108.9 | AD36: 0 | AE36: 2604.000011 | AF36: -660 | AG36: 41.98397924 | AH36: 1985.98399 | AI36: -1146.304406 | AM36: New Construction | AN36: 5,500 SF | AO36: Packaged Air Conditioner | AP36: Stand Alone | AQ36: Baseline Roof Insulation | AR36: Baseline Windows | AS36: Baseline Infiltration | AT36: Reduce Lighting Levels to 40 fc | AU36: Install Daylighting Sensors | AV36: Install Occupancy Sensors | AW36: No Plug Load Control | AX36: Install High Efficiency HVAC Equipment
A37: new90.1-2004 | B37: 5500 ft2 | C37: psz-ac | D37: stand-alone | E37: new90.1-20045500 ft2psz-acstand-alone | F37: base-roof | G37: base-win | H37: base-inf | I37: 40 fc | J37: yes-day | K37: yes-occ | L37: red-epd | M37: base-eff | N37: 163.86 | O37: 121.08 | P37: 0.120005683 | Q37: 0.2797046024 | R37: -0.2570598007 | S37: 1767.6414 | T37: -214.4898928 | U37: 1553.151507 | V37: no | W37: 5500 | X37: 642.39 | Y37: 3030.15 | AA37: 9460 | AB37: 32890 | AC37: 94.6 | AD37: 0 | AE37: 2262.060616 | AF37: -660 | AG37: 77.65757536 | AH37: 1679.718191 | AI37: -126.566684 | AM37: New Construction | AN37: 5,500 SF | AO37: Packaged Air Conditioner | AP37: Stand Alone | AQ37: Baseline Roof Insulation | AR37: Baseline Windows | AS37: Baseline Infiltration | AT37: Reduce Lighting Levels to 40 fc | AU37: Install Daylighting Sensors | AV37: Install Occupancy Sensors | AW37: Install Plug Load Controls | AX37: Baseline HVAC Equipment
A38: new90.1-2004 | B38: 5500 ft2 | C38: psz-ac | D38: stand-alone | E38: new90.1-20045500 ft2psz-acstand-alone | F38: base-roof | G38: base-win | H38: base-inf | I38: 40 fc | J38: yes-day | K38: yes-occ | L38: red-epd | M38: high-eff | N38: 162.71 | O38: 121.08 | P38: 0.1235575481 | Q38: 0.2847597697 | R38: -0.2570598007 | S38: 1799.5884 | T38: -214.4898928 | U38: 1585.098507 | V38: no | W38: 5500 | X38: 642.39 | Y38: 3030.15 | AA38: 11715 | AB38: 66385 | AC38: 117.15 | AD38: 0 | AE38: 2801.272739 | AF38: -660 | AG38: 79.25492536 | AH38: 2220.527665 | AI38: -635.4291575 | AM38: New Construction | AN38: 5,500 SF | AO38: Packaged Air Conditioner | AP38: Stand Alone | AQ38: Baseline Roof Insulation | AR38: Baseline Windows | AS38: Baseline Infiltration | AT38: Reduce Lighting Levels to 40 fc | AU38: Install Daylighting Sensors | AV38: Install Occupancy Sensors | AW38: Install Plug Load Controls | AX38: Install High Efficiency HVAC Equipment
A39: new90.1-2004 | B39: 5500 ft2 | C39: psz-ac | D39: stand-alone | E39: new90.1-20045500 ft2psz-acstand-alone | F39: base-roof | G39: base-win | H39: base-inf | I39: 25 fc | J39: no-day | K39: no-occ | L39: base-epd | M39: base-eff | N39: 212.79 | O39: 102.2 | P39: 0.02721517988 | Q39: 0.06461822498 | R39: -0.06104651163 | S39: 408.366 | T39: -50.93701816 | U39: 357.4289818 | V39: no | W39: 5500 | X39: 642.39 | Y39: 3030.15 | AA39: 4345 | AB39: 61325 | AC39: 43.45 | AD39: 0 | AE39: 1038.969701 | AF39: -1045 | AG39: 17.87144909 | AH39: 11.84115055 | AI39: 345.5878313 | AM39: New Construction | AN39: 5,500 SF | AO39: Packaged Air Conditioner | AP39: Stand Alone | AQ39: Baseline Roof Insulation | AR39: Baseline Windows | AS39: Baseline Infiltration | AT39: Reduce Lighting Levels to 25 fc | AU39: No Daylighting Sensors | AV39: No Occupancy Sensors | AW39: No Plug Load Control | AX39: Baseline HVAC Equipment
A40: new90.1-2004 | B40: 5500 ft2 | C40: psz-ac | D40: stand-alone | E40: new90.1-20045500 ft2psz-acstand-alone | F40: base-roof | G40: base-win | H40: base-inf | I40: 25 fc | J40: no-day | K40: no-occ | L40: base-epd | M40: high-eff | N40: 211.3 | O40: 102.2 | P40: 0.03180892544 | Q40: 0.07116796343 | R40: -0.06104651163 | S40: 449.7582 | T40: -50.93701816 | U40: 398.8211818 | V40: no | W40: 5500 | X40: 642.39 | Y40: 3030.15 | AA40: 6600 | AB40: 94820 | AC40: 66 | AD40: 0 | AE40: 1578.181825 | AF40: -1045 | AG40: 19.94105909 | AH40: 553.1228841 | AI40: -154.3017022 | AM40: New Construction | AN40: 5,500 SF | AO40: Packaged Air Conditioner | AP40: Stand Alone | AQ40: Baseline Roof Insulation | AR40: Baseline Windows | AS40: Baseline Infiltration | AT40: Reduce Lighting Levels to 25 fc | AU40: No Daylighting Sensors | AV40: No Occupancy Sensors | AW40: No Plug Load Control | AX40: Install High Efficiency HVAC Equipment
A41: new90.1-2004 | B41: 5500 ft2 | C41: psz-ac | D41: stand-alone | E41: new90.1-20045500 ft2psz-acstand-alone | F41: base-roof | G41: base-win | H41: base-inf | I41: 25 fc | J41: no-day | K41: no-occ | L41: red-epd | M41: base-eff | N41: 182.02 | O41: 113.88 | P41: 0.08620771307 | Q41: 0.1998769177 | R41: -0.1823089701 | S41: 1263.1566 | T41: -152.1180338 | U41: 1111.038566 | V41: no | W41: 5500 | X41: 642.39 | Y41: 3030.15 | AA41: 5170 | AB41: 62150 | AC41: 51.7 | AD41: 0 | AE41: 1236.24243 | AF41: -1045 | AG41: 55.55192831 | AH41: 246.7943579 | AI41: 864.2442083 | AM41: New Construction | AN41: 5,500 SF | AO41: Packaged Air Conditioner | AP41: Stand Alone | AQ41: Baseline Roof Insulation | AR41: Baseline Windows | AS41: Baseline Infiltration | AT41: Reduce Lighting Levels to 25 fc | AU41: No Daylighting Sensors | AV41: No Occupancy Sensors | AW41: Install Plug Load Controls | AX41: Baseline HVAC Equipment
A42: new90.1-2004 | B42: 5500 ft2 | C42: psz-ac | D42: stand-alone | E42: new90.1-20045500 ft2psz-acstand-alone | F42: base-roof | G42: base-win | H42: base-inf | I42: 25 fc | J42: no-day | K42: no-occ | L42: red-epd | M42: high-eff | N42: 180.7 | O42: 113.88 | P42: 0.09026473235 | Q42: 0.2056793705 | R42: -0.1823089701 | S42: 1299.8262 | T42: -152.1180338 | U42: 1147.708166 | V42: no | W42: 5500 | X42: 642.39 | Y42: 3030.15 | AA42: 7425 | AB42: 95645 | AC42: 74.25 | AD42: 0 | AE42: 1775.454553 | AF42: -1045 | AG42: 57.38540831 | AH42: 787.8399614 | AI42: 359.8682047 | AM42: New Construction | AN42: 5,500 SF | AO42: Packaged Air Conditioner | AP42: Stand Alone | AQ42: Baseline Roof Insulation | AR42: Baseline Windows | AS42: Baseline Infiltration | AT42: Reduce Lighting Levels to 25 fc | AU42: No Daylighting Sensors | AV42: No Occupancy Sensors | AW42: Install Plug Load Controls | AX42: Install High Efficiency HVAC Equipment
A43: new90.1-2004 | B43: 5500 ft2 | C43: psz-ac | D43: stand-alone | E43: new90.1-20045500 ft2psz-acstand-alone | F43: base-roof | G43: base-win | H43: base-inf | I43: 25 fc | J43: no-day | K43: yes-occ | L43: base-epd | M43: base-eff | N43: 201.25 | O43: 106.95 | P43: 0.04817907715 | Q43: 0.1153457295 | R43: -0.1103612957 | S43: 728.9472 | T43: -92.08511956 | U43: 636.8620804 | V43: no | W43: 5500 | X43: 642.39 | Y43: 3030.15 | AA43: 6325 | AB43: 63305 | AC43: 63.25 | AD43: 0 | AE43: 1512.424249 | AF43: -1045 | AG43: 31.84310402 | AH43: 499.267353 | AI43: 137.5947275 | AM43: New Construction | AN43: 5,500 SF | AO43: Packaged Air Conditioner | AP43: Stand Alone | AQ43: Baseline Roof Insulation | AR43: Baseline Windows | AS43: Baseline Infiltration | AT43: Reduce Lighting Levels to 25 fc | AU43: No Daylighting Sensors | AV43: Install Occupancy Sensors | AW43: No Plug Load Control | AX43: Baseline HVAC Equipment
A44: new90.1-2004 | B44: 5500 ft2 | C44: psz-ac | D44: stand-alone | E44: new90.1-20045500 ft2psz-acstand-alone | F44: base-roof | G44: base-win | H44: base-inf | I44: 25 fc | J44: no-day | K44: yes-occ | L44: base-epd | M44: high-eff | N44: 199.87 | O44: 106.95 | P44: 0.05245710136 | Q44: 0.1214119302 | R44: -0.1103612957 | S44: 767.2836 | T44: -92.08511956 | U44: 675.1984804 | V44: no | W44: 5500 | X44: 642.39 | Y44: 3030.15 | AA44: 8580 | AB44: 96800 | AC44: 85.8 | AD44: 0 | AE44: 2051.636372 | AF44: -1045 | AG44: 33.75992402 | AH44: 1040.396297 | AI44: -365.1978161 | AM44: New Construction | AN44: 5,500 SF | AO44: Packaged Air Conditioner | AP44: Stand Alone | AQ44: Baseline Roof Insulation | AR44: Baseline Windows | AS44: Baseline Infiltration | AT44: Reduce Lighting Levels to 25 fc | AU44: No Daylighting Sensors | AV44: Install Occupancy Sensors | AW44: No Plug Load Control | AX44: Install High Efficiency HVAC Equipment
A45: new90.1-2004 | B45: 5500 ft2 | C45: psz-ac | D45: stand-alone | E45: new90.1-20045500 ft2psz-acstand-alone | F45: base-roof | G45: base-win | H45: base-inf | I45: 25 fc | J45: no-day | K45: yes-occ | L45: red-epd | M45: base-eff | N45: 170.48 | O45: 118.89 | P45: 0.1063349488 | Q45: 0.2506044222 | R45: -0.2343230897 | S45: 1583.7378 | T45: -195.5184524 | U45: 1388.219348 | V45: no | W45: 5500 | X45: 642.39 | Y45: 3030.15 | AA45: 7150 | AB45: 64130 | AC45: 71.5 | AD45: 0 | AE45: 1709.696977 | AF45: -1045 | AG45: 69.41096738 | AH45: 734.1079445 | AI45: 654.1114032 | AM45: New Construction | AN45: 5,500 SF | AO45: Packaged Air Conditioner | AP45: Stand Alone | AQ45: Baseline Roof Insulation | AR45: Baseline Windows | AS45: Baseline Infiltration | AT45: Reduce Lighting Levels to 25 fc | AU45: No Daylighting Sensors | AV45: Install Occupancy Sensors | AW45: Install Plug Load Controls | AX45: Baseline HVAC Equipment
A46: new90.1-2004 | B46: 5500 ft2 | C46: psz-ac | D46: stand-alone | E46: new90.1-20045500 ft2psz-acstand-alone | F46: base-roof | G46: base-win | H46: base-inf | I46: 25 fc | J46: no-day | K46: yes-occ | L46: red-epd | M46: high-eff | N46: 169.27 | O46: 118.89 | P46: 0.1100920328 | Q46: 0.2559233373 | R46: -0.2343230897 | S46: 1617.3516 | T46: -195.5184524 | U46: 1421.833148 | V46: no | W46: 5500 | X46: 642.39 | Y46: 3030.15 | AA46: 9405 | AB46: 97625 | AC46: 94.05 | AD46: 0 | AE46: 2248.909101 | AF46: -1045 | AG46: 71.09165738 | AH46: 1275.000758 | AI46: 146.8323896 | AM46: New Construction | AN46: 5,500 SF | AO46: Packaged Air Conditioner | AP46: Stand Alone | AQ46: Baseline Roof Insulation | AR46: Baseline Windows | AS46: Baseline Infiltration | AT46: Reduce Lighting Levels to 25 fc | AU46: No Daylighting Sensors | AV46: Install Occupancy Sensors | AW46: Install Plug Load Controls | AX46: Install High Efficiency HVAC Equipment
A47: new90.1-2004 | B47: 5500 ft2 | C47: psz-ac | D47: stand-alone | E47: new90.1-20045500 ft2psz-acstand-alone | F47: base-roof | G47: base-win | H47: base-inf | I47: 25 fc | J47: yes-day | K47: no-occ | L47: base-epd | M47: base-eff | N47: 194.58 | O47: 109.16 | P47: 0.06196031383 | Q47: 0.1446656996 | R47: -0.1333056478 | S47: 914.2398 | T47: -111.2298152 | U47: 803.0099848 | V47: no | W47: 5500 | X47: 642.39 | Y47: 3030.15 | AA47: 7370 | AB47: 80080 | AC47: 73.7 | AD47: 0 | AE47: 1762.303038 | AF47: -1045 | AG47: 40.15049924 | AH47: 757.4535372 | AI47: 45.55644768 | AM47: New Construction | AN47: 5,500 SF | AO47: Packaged Air Conditioner | AP47: Stand Alone | AQ47: Baseline Roof Insulation | AR47: Baseline Windows | AS47: Baseline Infiltration | AT47: Reduce Lighting Levels to 25 fc | AU47: Install Daylighting Sensors | AV47: No Occupancy Sensors | AW47: No Plug Load Control | AX47: Baseline HVAC Equipment
A48: new90.1-2004 | B48: 5500 ft2 | C48: psz-ac | D48: stand-alone | E48: new90.1-20045500 ft2psz-acstand-alone | F48: base-roof | G48: base-win | H48: base-inf | I48: 25 fc | J48: yes-day | K48: no-occ | L48: base-epd | M48: high-eff | N48: 193.26 | O48: 109.16 | P48: 0.0660173331 | Q48: 0.1504681524 | R48: -0.1333056478 | S48: 950.9094 | T48: -111.2298152 | U48: 839.6795848 | V48: no | W48: 5500 | X48: 642.39 | Y48: 3030.15 | AA48: 9625 | AB48: 113575 | AC48: 96.25 | AD48: 0 | AE48: 2301.515161 | AF48: -1045 | AG48: 41.98397924 | AH48: 1298.499141 | AI48: -458.8195559 | AM48: New Construction | AN48: 5,500 SF | AO48: Packaged Air Conditioner | AP48: Stand Alone | AQ48: Baseline Roof Insulation | AR48: Baseline Windows | AS48: Baseline Infiltration | AT48: Reduce Lighting Levels to 25 fc | AU48: Install Daylighting Sensors | AV48: No Occupancy Sensors | AW48: No Plug Load Control | AX48: Install High Efficiency HVAC Equipment
A49: new90.1-2004 | B49: 5500 ft2 | C49: psz-ac | D49: stand-alone | E49: new90.1-20045500 ft2psz-acstand-alone | F49: base-roof | G49: base-win | H49: base-inf | I49: 25 fc | J49: yes-day | K49: no-occ | L49: red-epd | M49: base-eff | N49: 163.86 | O49: 121.08 | P49: 0.120005683 | Q49: 0.2797046024 | R49: -0.2570598007 | S49: 1767.6414 | T49: -214.4898928 | U49: 1553.151507 | V49: no | W49: 5500 | X49: 642.39 | Y49: 3030.15 | AA49: 8195 | AB49: 80905 | AC49: 81.95 | AD49: 0 | AE49: 1959.575766 | AF49: -1045 | AG49: 77.65757536 | AH49: 992.2333414 | AI49: 560.9181658 | AM49: New Construction | AN49: 5,500 SF | AO49: Packaged Air Conditioner | AP49: Stand Alone | AQ49: Baseline Roof Insulation | AR49: Baseline Windows | AS49: Baseline Infiltration | AT49: Reduce Lighting Levels to 25 fc | AU49: Install Daylighting Sensors | AV49: No Occupancy Sensors | AW49: Install Plug Load Controls | AX49: Baseline HVAC Equipment
A50: new90.1-2004 | B50: 5500 ft2 | C50: psz-ac | D50: stand-alone | E50: new90.1-20045500 ft2psz-acstand-alone | F50: base-roof | G50: base-win | H50: base-inf | I50: 25 fc | J50: yes-day | K50: no-occ | L50: red-epd | M50: high-eff | N50: 162.71 | O50: 121.08 | P50: 0.1235575481 | Q50: 0.2847597697 | R50: -0.2570598007 | S50: 1799.5884 | T50: -214.4898928 | U50: 1585.098507 | V50: no | W50: 5500 | X50: 642.39 | Y50: 3030.15 | AA50: 10450 | AB50: 114400 | AC50: 104.5 | AD50: 0 | AE50: 2498.78789 | AF50: -1045 | AG50: 79.25492536 | AH50: 1533.042815 | AI50: 52.05569227 | AM50: New Construction | AN50: 5,500 SF | AO50: Packaged Air Conditioner | AP50: Stand Alone | AQ50: Baseline Roof Insulation | AR50: Baseline Windows | AS50: Baseline Infiltration | AT50: Reduce Lighting Levels to 25 fc | AU50: Install Daylighting Sensors | AV50: No Occupancy Sensors | AW50: Install Plug Load Controls | AX50: Install High Efficiency HVAC Equipment
A51: new90.1-2004 | B51: 5500 ft2 | C51: psz-ac | D51: stand-alone | E51: new90.1-20045500 ft2psz-acstand-alone | F51: base-roof | G51: base-win | H51: base-inf | I51: 25 fc | J51: yes-day | K51: yes-occ | L51: base-epd | M51: base-eff | N51: 186.7 | O51: 112.73 | P51: 0.07529954063 | Q51: 0.1793045848 | R51: -0.1703696013 | S51: 1133.1462 | T51: -142.1558619 | U51: 990.9903381 | V51: no | W51: 5500 | X51: 642.39 | Y51: 3030.15 | AA51: 9350 | AB51: 82060 | AC51: 93.5 | AD51: 0 | AE51: 2235.757585 | AF51: -1045 | AG51: 49.5495169 | AH51: 1240.307102 | AI51: -249.3167642 | AM51: New Construction | AN51: 5,500 SF | AO51: Packaged Air Conditioner | AP51: Stand Alone | AQ51: Baseline Roof Insulation | AR51: Baseline Windows | AS51: Baseline Infiltration | AT51: Reduce Lighting Levels to 25 fc | AU51: Install Daylighting Sensors | AV51: Install Occupancy Sensors | AW51: No Plug Load Control | AX51: Baseline HVAC Equipment
A52: new90.1-2004 | B52: 5500 ft2 | C52: psz-ac | D52: stand-alone | E52: new90.1-20045500 ft2psz-acstand-alone | F52: base-roof | G52: base-win | H52: base-inf | I52: 25 fc | J52: yes-day | K52: yes-occ | L52: base-epd | M52: high-eff | N52: 185.44 | O52: 112.73 | P52: 0.07915134103 | Q52: 0.1848432898 | R52: -0.1703696013 | S52: 1168.149 | T52: -142.1558619 | U52: 1025.993138 | V52: no | W52: 5500 | X52: 642.39 | Y52: 3030.15 | AA52: 11605 | AB52: 115555 | AC52: 116.05 | AD52: 0 | AE52: 2774.969709 | AF52: -1045 | AG52: 51.2996569 | AH52: 1781.269366 | AI52: -755.2762278 | AM52: New Construction | AN52: 5,500 SF | AO52: Packaged Air Conditioner | AP52: Stand Alone | AQ52: Baseline Roof Insulation | AR52: Baseline Windows | AS52: Baseline Infiltration | AT52: Reduce Lighting Levels to 25 fc | AU52: Install Daylighting Sensors | AV52: Install Occupancy Sensors | AW52: No Plug Load Control | AX52: Install High Efficiency HVAC Equipment
A53: new90.1-2004 | B53: 5500 ft2 | C53: psz-ac | D53: stand-alone | E53: new90.1-20045500 ft2psz-acstand-alone | F53: base-roof | G53: base-win | H53: base-inf | I53: 25 fc | J53: yes-day | K53: yes-occ | L53: red-epd | M53: base-eff | N53: 155.97 | O53: 124.81 | P53: 0.1328555417 | Q53: 0.3143874456 | R53: -0.2957848837 | S53: 1986.8256 | T53: -246.8019808 | U53: 1740.023619 | V53: no | W53: 5500 | X53: 642.39 | Y53: 3030.15 | AA53: 10175 | AB53: 82885 | AC53: 101.75 | AD53: 0 | AE53: 2433.030314 | AF53: -1045 | AG53: 87.00118096 | AH53: 1475.031494 | AI53: 264.9921247 | AM53: New Construction | AN53: 5,500 SF | AO53: Packaged Air Conditioner | AP53: Stand Alone | AQ53: Baseline Roof Insulation | AR53: Baseline Windows | AS53: Baseline Infiltration | AT53: Reduce Lighting Levels to 25 fc | AU53: Install Daylighting Sensors | AV53: Install Occupancy Sensors | AW53: Install Plug Load Controls | AX53: Baseline HVAC Equipment
A54: new90.1-2004 | B54: 5500 ft2 | C54: psz-ac | D54: stand-alone | E54: new90.1-20045500 ft2psz-acstand-alone | F54: base-roof | G54: base-win | H54: base-inf | I54: 25 fc | J54: yes-day | K54: yes-occ | L54: red-epd | M54: high-eff | N54: 154.89 | O54: 124.81 | P54: 0.1362021879 | Q54: 0.319134907 | R54: -0.2957848837 | S54: 2016.828 | T54: -246.8019808 | U54: 1770.026019 | V54: no | W54: 5500 | X54: 642.39 | Y54: 3030.15 | AA54: 12430 | AB54: 116380 | AC54: 124.3 | AD54: 0 | AE54: 2972.242437 | AF54: -1045 | AG54: 88.50130096 | AH54: 2015.743738 | AI54: -245.7177189 | AM54: New Construction | AN54: 5,500 SF | AO54: Packaged Air Conditioner | AP54: Stand Alone | AQ54: Baseline Roof Insulation | AR54: Baseline Windows | AS54: Baseline Infiltration | AT54: Reduce Lighting Levels to 25 fc | AU54: Install Daylighting Sensors | AV54: Install Occupancy Sensors | AW54: Install Plug Load Controls | AX54: Install High Efficiency HVAC Equipment
A55: new90.1-2004 | B55: 5500 ft2 | C55: psz-ac | D55: stand-alone | E55: new90.1-20045500 ft2psz-acstand-alone | F55: base-roof | G55: base-win | H55: red-inf | I55: base-lpd | J55: no-day | K55: no-occ | L55: base-epd | M55: base-eff | N55: 227.4 | O55: 94.79 | P55: 0.004988397241 | Q55: 0.0003956217856 | R55: 0.0158845515 | S55: 2.5002 | T55: 13.25402003 | U55: 15.75422003 | V55: no | W55: 5500 | X55: 642.39 | Y55: 3030.15 | AA55: 1302.9645 | AB55: 1302.9645 | AC55: 13.029645 | AD55: 0 | AE55: 311.5628625 | AF55: 0 | AG55: 0.7877110016 | AH55: 312.3505735 | AI55: -296.5963535 | AM55: New Construction | AN55: 5,500 SF | AO55: Packaged Air Conditioner | AP55: Stand Alone | AQ55: Baseline Roof Insulation | AR55: Baseline Windows | AS55: Reduce Infiltration | AT55: Baseline Lighting Levels | AU55: No Daylighting Sensors | AV55: No Occupancy Sensors | AW55: No Plug Load Control | AX55: Baseline HVAC Equipment
A56: new90.1-2004 | B56: 5500 ft2 | C56: psz-ac | D56: stand-alone | E56: new90.1-20045500 ft2psz-acstand-alone | F56: base-roof | G56: base-win | H56: red-inf | I56: base-lpd | J56: no-day | K56: no-occ | L56: base-epd | M56: high-eff | N56: 225.76 | O56: 94.79 | P56: 0.01002415268 | Q56: 0.007604729878 | R56: 0.0158845515 | S56: 48.0594 | T56: 13.25402003 | U56: 61.31342003 | V56: no | W56: 5500 | X56: 642.39 | Y56: 3030.15 | AA56: 3557.9645 | AB56: 34797.9645 | AC56: 35.579645 | AD56: 0 | AE56: 850.774986 | AF56: 0 | AG56: 3.065671002 | AH56: 853.840657 | AI56: -792.527237 | AM56: New Construction | AN56: 5,500 SF | AO56: Packaged Air Conditioner | AP56: Stand Alone | AQ56: Baseline Roof Insulation | AR56: Baseline Windows | AS56: Reduce Infiltration | AT56: Baseline Lighting Levels | AU56: No Daylighting Sensors | AV56: No Occupancy Sensors | AW56: No Plug Load Control | AX56: Install High Efficiency HVAC Equipment
A57: new90.1-2004 | B57: 5500 ft2 | C57: psz-ac | D57: stand-alone | E57: new90.1-20045500 ft2psz-acstand-alone | F57: base-roof | G57: base-win | H57: red-inf | I57: base-lpd | J57: no-day | K57: no-occ | L57: red-epd | M57: base-eff | N57: 196.61 | O57: 106.01 | P57: 0.06541746255 | Q57: 0.1357422304 | R57: -0.1006021595 | S57: 857.8464 | T57: -83.94212686 | U57: 773.9042731 | V57: no | W57: 5500 | X57: 642.39 | Y57: 3030.15 | AA57: 2127.9645 | AB57: 2127.9645 | AC57: 21.279645 | AD57: 0 | AE57: 508.8355906 | AF57: 0 | AG57: 38.69521366 | AH57: 547.5308043 | AI57: 226.3734689 | AM57: New Construction | AN57: 5,500 SF | AO57: Packaged Air Conditioner | AP57: Stand Alone | AQ57: Baseline Roof Insulation | AR57: Baseline Windows | AS57: Reduce Infiltration | AT57: Baseline Lighting Levels | AU57: No Daylighting Sensors | AV57: No Occupancy Sensors | AW57: Install Plug Load Controls | AX57: Baseline HVAC Equipment
A58: new90.1-2004 | B58: 5500 ft2 | C58: psz-ac | D58: stand-alone | E58: new90.1-20045500 ft2psz-acstand-alone | F58: base-roof | G58: base-win | H58: red-inf | I58: base-lpd | J58: no-day | K58: no-occ | L58: red-epd | M58: high-eff | N58: 195.16 | O58: 106.01 | P58: 0.06990070564 | Q58: 0.142116137 | R58: -0.1006021595 | S58: 898.1274 | T58: -83.94212686 | U58: 814.1852731 | V58: no | W58: 5500 | X58: 642.39 | Y58: 3030.15 | AA58: 4382.9645 | AB58: 35622.9645 | AC58: 43.829645 | AD58: 0 | AE58: 1048.047714 | AF58: 0 | AG58: 40.70926366 | AH58: 1088.756978 | AI58: -274.5717047 | AM58: New Construction | AN58: 5,500 SF | AO58: Packaged Air Conditioner | AP58: Stand Alone | AQ58: Baseline Roof Insulation | AR58: Baseline Windows | AS58: Reduce Infiltration | AT58: Baseline Lighting Levels | AU58: No Daylighting Sensors | AV58: No Occupancy Sensors | AW58: Install Plug Load Controls | AX58: Install High Efficiency HVAC Equipment
A59: new90.1-2004 | B59: 5500 ft2 | C59: psz-ac | D59: stand-alone | E59: new90.1-20045500 ft2psz-acstand-alone | F59: base-roof | G59: base-win | H59: red-inf | I59: base-lpd | J59: no-day | K59: yes-occ | L59: base-epd | M59: base-eff | N59: 212.71 | O59: 100.53 | P59: 0.03261401487 | Q59: 0.06496988879 | R59: -0.04370847176 | S59: 410.5884 | T59: -36.47021198 | U59: 374.118188 | V59: no | W59: 5500 | X59: 642.39 | Y59: 3030.15 | AA59: 3282.9645 | AB59: 3282.9645 | AC59: 32.829645 | AD59: 0 | AE59: 785.01741 | AF59: 0 | AG59: 18.7059094 | AH59: 803.7233194 | AI59: -429.6051314 | AM59: New Construction | AN59: 5,500 SF | AO59: Packaged Air Conditioner | AP59: Stand Alone | AQ59: Baseline Roof Insulation | AR59: Baseline Windows | AS59: Reduce Infiltration | AT59: Baseline Lighting Levels | AU59: No Daylighting Sensors | AV59: Install Occupancy Sensors | AW59: No Plug Load Control | AX59: Baseline HVAC Equipment
A60: new90.1-2004 | B60: 5500 ft2 | C60: psz-ac | D60: stand-alone | E60: new90.1-20045500 ft2psz-acstand-alone | F60: base-roof | G60: base-win | H60: red-inf | I60: base-lpd | J60: no-day | K60: yes-occ | L60: base-epd | M60: high-eff | N60: 211.22 | O60: 100.53 | P60: 0.0372235465 | Q60: 0.07151962724 | R60: -0.04370847176 | S60: 451.9806 | T60: -36.47021198 | U60: 415.510388 | V60: no | W60: 5500 | X60: 642.39 | Y60: 3030.15 | AA60: 5537.9645 | AB60: 36777.9645 | AC60: 55.379645 | AD60: 0 | AE60: 1324.229534 | AF60: 0 | AG60: 20.7755194 | AH60: 1345.005053 | AI60: -929.4946649 | AM60: New Construction | AN60: 5,500 SF | AO60: Packaged Air Conditioner | AP60: Stand Alone | AQ60: Baseline Roof Insulation | AR60: Baseline Windows | AS60: Reduce Infiltration | AT60: Baseline Lighting Levels | AU60: No Daylighting Sensors | AV60: Install Occupancy Sensors | AW60: No Plug Load Control | AX60: Install High Efficiency HVAC Equipment
A61: new90.1-2004 | B61: 5500 ft2 | C61: psz-ac | D61: stand-alone | E61: new90.1-20045500 ft2psz-acstand-alone | F61: base-roof | G61: base-win | H61: red-inf | I61: base-lpd | J61: no-day | K61: yes-occ | L61: red-epd | M61: base-eff | N61: 181.94 | O61: 112.18 | P61: 0.09166969233 | Q61: 0.2002285815 | R61: -0.1646594684 | S61: 1265.379 | T61: -137.3913449 | U61: 1127.987655 | V61: no | W61: 5500 | X61: 642.39 | Y61: 3030.15 | AA61: 4107.9645 | AB61: 4107.9645 | AC61: 41.079645 | AD61: 0 | AE61: 982.2901381 | AF61: 0 | AG61: 56.39938276 | AH61: 1038.689521 | AI61: 89.29813422 | AM61: New Construction | AN61: 5,500 SF | AO61: Packaged Air Conditioner | AP61: Stand Alone | AQ61: Baseline Roof Insulation | AR61: Baseline Windows | AS61: Reduce Infiltration | AT61: Baseline Lighting Levels | AU61: No Daylighting Sensors | AV61: Install Occupancy Sensors | AW61: Install Plug Load Controls | AX61: Baseline HVAC Equipment
A62: new90.1-2004 | B62: 5500 ft2 | C62: psz-ac | D62: stand-alone | E62: new90.1-20045500 ft2psz-acstand-alone | F62: base-roof | G62: base-win | H62: red-inf | I62: base-lpd | J62: no-day | K62: yes-occ | L62: red-epd | M62: high-eff | N62: 180.63 | O62: 112.18 | P62: 0.0957267116 | Q62: 0.2059870764 | R62: -0.1646594684 | S62: 1301.7708 | T62: -137.3913449 | U62: 1164.379455 | V62: no | W62: 5500 | X62: 642.39 | Y62: 3030.15 | AA62: 6362.9645 | AB62: 37602.9645 | AC62: 63.629645 | AD62: 0 | AE62: 1521.502262 | AF62: 0 | AG62: 58.21897276 | AH62: 1579.721234 | AI62: -415.3417793 | AM62: New Construction | AN62: 5,500 SF | AO62: Packaged Air Conditioner | AP62: Stand Alone | AQ62: Baseline Roof Insulation | AR62: Baseline Windows | AS62: Reduce Infiltration | AT62: Baseline Lighting Levels | AU62: No Daylighting Sensors | AV62: Install Occupancy Sensors | AW62: Install Plug Load Controls | AX62: Install High Efficiency HVAC Equipment
A63: new90.1-2004 | B63: 5500 ft2 | C63: psz-ac | D63: stand-alone | E63: new90.1-20045500 ft2psz-acstand-alone | F63: base-roof | G63: base-win | H63: red-inf | I63: base-lpd | J63: yes-day | K63: no-occ | L63: base-epd | M63: base-eff | N63: 204.6 | O63: 103.14 | P63: 0.04963139533 | Q63: 0.1006198075 | R63: -0.07080564784 | S63: 635.8842 | T63: -59.08001086 | U63: 576.8041891 | V63: no | W63: 5500 | X63: 642.39 | Y63: 3030.15 | AA63: 4327.9645 | AB63: 20057.9645 | AC63: 43.279645 | AD63: 0 | AE63: 1034.896199 | AF63: 0 | AG63: 28.84020946 | AH63: 1063.736408 | AI63: -486.9322193 | AM63: New Construction | AN63: 5,500 SF | AO63: Packaged Air Conditioner | AP63: Stand Alone | AQ63: Baseline Roof Insulation | AR63: Baseline Windows | AS63: Reduce Infiltration | AT63: Baseline Lighting Levels | AU63: Install Daylighting Sensors | AV63: No Occupancy Sensors | AW63: No Plug Load Control | AX63: Baseline HVAC Equipment
A64: new90.1-2004 | B64: 5500 ft2 | C64: psz-ac | D64: stand-alone | E64: new90.1-20045500 ft2psz-acstand-alone | F64: base-roof | G64: base-win | H64: red-inf | I64: base-lpd | J64: yes-day | K64: no-occ | L64: base-epd | M64: high-eff | N64: 203.18 | O64: 103.14 | P64: 0.05398834988 | Q64: 0.1068618401 | R64: -0.07080564784 | S64: 675.3318 | T64: -59.08001086 | U64: 616.2517891 | V64: no | W64: 5500 | X64: 642.39 | Y64: 3030.15 | AA64: 6582.9645 | AB64: 53552.9645 | AC64: 65.829645 | AD64: 0 | AE64: 1574.108322 | AF64: 0 | AG64: 30.81258946 | AH64: 1604.920912 | AI64: -988.6691228 | AM64: New Construction | AN64: 5,500 SF | AO64: Packaged Air Conditioner | AP64: Stand Alone | AQ64: Baseline Roof Insulation | AR64: Baseline Windows | AS64: Reduce Infiltration | AT64: Baseline Lighting Levels | AU64: Install Daylighting Sensors | AV64: No Occupancy Sensors | AW64: No Plug Load Control | AX64: Install High Efficiency HVAC Equipment
A65: new90.1-2004 | B65: 5500 ft2 | C65: psz-ac | D65: stand-alone | E65: new90.1-20045500 ft2psz-acstand-alone | F65: base-roof | G65: base-win | H65: red-inf | I65: base-lpd | J65: yes-day | K65: no-occ | L65: red-epd | M65: base-eff | N65: 173.88 | O65: 114.75 | P65: 0.1086239285 | Q65: 0.2356587103 | R65: -0.1913413621 | S65: 1489.2858 | T65: -159.6546334 | U65: 1329.631167 | V65: no | W65: 5500 | X65: 642.39 | Y65: 3030.15 | AA65: 5152.9645 | AB65: 20882.9645 | AC65: 51.529645 | AD65: 0 | AE65: 1232.168927 | AF65: 0 | AG65: 66.48155833 | AH65: 1298.650485 | AI65: 30.98068114 | AM65: New Construction | AN65: 5,500 SF | AO65: Packaged Air Conditioner | AP65: Stand Alone | AQ65: Baseline Roof Insulation | AR65: Baseline Windows | AS65: Reduce Infiltration | AT65: Baseline Lighting Levels | AU65: Install Daylighting Sensors | AV65: No Occupancy Sensors | AW65: Install Plug Load Controls | AX65: Baseline HVAC Equipment
A66: new90.1-2004 | B66: 5500 ft2 | C66: psz-ac | D66: stand-alone | E66: new90.1-20045500 ft2psz-acstand-alone | F66: base-roof | G66: base-win | H66: red-inf | I66: base-lpd | J66: yes-day | K66: no-occ | L66: red-epd | M66: high-eff | N66: 172.64 | O66: 114.75 | P66: 0.1124599429 | Q66: 0.2411094993 | R66: -0.1913413621 | S66: 1523.733 | T66: -159.6546334 | U66: 1364.078367 | V66: no | W66: 5500 | X66: 642.39 | Y66: 3030.15 | AA66: 7407.9645 | AB66: 54377.9645 | AC66: 74.079645 | AD66: 0 | AE66: 1771.381051 | AF66: 0 | AG66: 68.20391833 | AH66: 1839.584969 | AI66: -475.5066024 | AM66: New Construction | AN66: 5,500 SF | AO66: Packaged Air Conditioner | AP66: Stand Alone | AQ66: Baseline Roof Insulation | AR66: Baseline Windows | AS66: Reduce Infiltration | AT66: Baseline Lighting Levels | AU66: Install Daylighting Sensors | AV66: No Occupancy Sensors | AW66: Install Plug Load Controls | AX66: Install High Efficiency HVAC Equipment
A67: new90.1-2004 | B67: 5500 ft2 | C67: psz-ac | D67: stand-alone | E67: new90.1-20045500 ft2psz-acstand-alone | F67: base-roof | G67: base-win | H67: red-inf | I67: base-lpd | J67: yes-day | K67: yes-occ | L67: base-epd | M67: base-eff | N67: 194.5 | O67: 107.55 | P67: 0.06716971601 | Q67: 0.1450173634 | R67: -0.1165905316 | S67: 916.4622 | T67: -97.28277448 | U67: 819.1794255 | V67: no | W67: 5500 | X67: 642.39 | Y67: 3030.15 | AA67: 6307.9645 | AB67: 22037.9645 | AC67: 63.079645 | AD67: 0 | AE67: 1508.350746 | AF67: 0 | AG67: 40.95897128 | AH67: 1549.309718 | AI67: -730.1302922 | AM67: New Construction | AN67: 5,500 SF | AO67: Packaged Air Conditioner | AP67: Stand Alone | AQ67: Baseline Roof Insulation | AR67: Baseline Windows | AS67: Reduce Infiltration | AT67: Baseline Lighting Levels | AU67: Install Daylighting Sensors | AV67: Install Occupancy Sensors | AW67: No Plug Load Control | AX67: Baseline HVAC Equipment
A68: new90.1-2004 | B68: 5500 ft2 | C68: psz-ac | D68: stand-alone | E68: new90.1-20045500 ft2psz-acstand-alone | F68: base-roof | G68: base-win | H68: red-inf | I68: base-lpd | J68: yes-day | K68: yes-occ | L68: base-epd | M68: high-eff | N68: 193.18 | O68: 107.55 | P68: 0.07125830742 | Q68: 0.1508198163 | R68: -0.1165905316 | S68: 953.1318 | T68: -97.28277448 | U68: 855.8490255 | V68: no | W68: 5500 | X68: 642.39 | Y68: 3030.15 | AA68: 8562.9645 | AB68: 55532.9645 | AC68: 85.629645 | AD68: 0 | AE68: 2047.56287 | AF68: 0 | AG68: 42.79245128 | AH68: 2090.355321 | AI68: -1234.506296 | AM68: New Construction | AN68: 5,500 SF | AO68: Packaged Air Conditioner | AP68: Stand Alone | AQ68: Baseline Roof Insulation | AR68: Baseline Windows | AS68: Reduce Infiltration | AT68: Baseline Lighting Levels | AU68: Install Daylighting Sensors | AV68: Install Occupancy Sensors | AW68: No Plug Load Control | AX68: Install High Efficiency HVAC Equipment
A69: new90.1-2004 | B69: 5500 ft2 | C69: psz-ac | D69: stand-alone | E69: new90.1-20045500 ft2psz-acstand-alone | F69: base-roof | G69: base-win | H69: red-inf | I69: base-lpd | J69: yes-day | K69: yes-occ | L69: red-epd | M69: base-eff | N69: 163.78 | O69: 119.45 | P69: 0.1253098016 | Q69: 0.2800562662 | R69: -0.2401370432 | S69: 1769.8638 | T69: -200.3695969 | U69: 1569.494203 | V69: no | W69: 5500 | X69: 642.39 | Y69: 3030.15 | AA69: 7132.9645 | AB69: 22862.9645 | AC69: 71.329645 | AD69: 0 | AE69: 1705.623475 | AF69: 0 | AG69: 78.47471015 | AH69: 1784.098185 | AI69: -214.6039817 | AM69: New Construction | AN69: 5,500 SF | AO69: Packaged Air Conditioner | AP69: Stand Alone | AQ69: Baseline Roof Insulation | AR69: Baseline Windows | AS69: Reduce Infiltration | AT69: Baseline Lighting Levels | AU69: Install Daylighting Sensors | AV69: Install Occupancy Sensors | AW69: Install Plug Load Controls | AX69: Baseline HVAC Equipment
A70: new90.1-2004 | B70: 5500 ft2 | C70: psz-ac | D70: stand-alone | E70: new90.1-20045500 ft2psz-acstand-alone | F70: base-roof | G70: base-win | H70: red-inf | I70: base-lpd | J70: yes-day | K70: yes-occ | L70: red-epd | M70: high-eff | N70: 162.63 | O70: 119.45 | P70: 0.1288616667 | Q70: 0.2851114335 | R70: -0.2401370432 | S70: 1801.8108 | T70: -200.3695969 | U70: 1601.441203 | V70: no | W70: 5500 | X70: 642.39 | Y70: 3030.15 | AA70: 9387.9645 | AB70: 56357.9645 | AC70: 93.879645 | AD70: 0 | AE70: 2244.835598 | AF70: 0 | AG70: 80.07206015 | AH70: 2324.907658 | AI70: -723.4664552 | AM70: New Construction | AN70: 5,500 SF | AO70: Packaged Air Conditioner | AP70: Stand Alone | AQ70: Baseline Roof Insulation | AR70: Baseline Windows | AS70: Reduce Infiltration | AT70: Baseline Lighting Levels | AU70: Install Daylighting Sensors | AV70: Install Occupancy Sensors | AW70: Install Plug Load Controls | AX70: Install High Efficiency HVAC Equipment
A71: new90.1-2004 | B71: 5500 ft2 | C71: psz-ac | D71: stand-alone | E71: new90.1-20045500 ft2psz-acstand-alone | F71: base-roof | G71: base-win | H71: red-inf | I71: 40 fc | J71: no-day | K71: no-occ | L71: base-epd | M71: base-eff | N71: 227.4 | O71: 94.79 | P71: 0.004988397241 | Q71: 0.0003956217856 | R71: 0.0158845515 | S71: 2.5002 | T71: 13.25402003 | U71: 15.75422003 | V71: =IF(P71>0.2,"yes","no") -> no | W71: =IF(B71="5500 ft2",5500,IF(B71="10000 ft2",10000,25000)) -> 5500 | X71: =IF(B71="5500 ft2",IF(D71="stand-alone",642.39,IF(D71="ad-e&flr",522.37,402.25)),IF(B71="10000 ft2",IF(D71="stand-alone",866.06,IF(D71="ad-e&flr",704.17,542.29)),IF(B71="25000 ft2",IF(D71="stand-alone",1369.38,IF(D71="ad-e&flr",1113.42,857.45))))) -> 642.39 | Y71: =IF(B71="5500 ft2",IF(D71="stand-alone",3030.15,IF(D71="ad-e&flr",2424.14,1818.13)),IF(B71="10000 ft2",IF(D71="stand-alone",4085.12,IF(D71="ad-e&flr",3268.14,2451.05)),IF(B71="25000 ft2",IF(D71="stand-alone",6459.2,IF(D71="ad-e&flr",5167.32,3875.54))))) -> 3030.15 | AA71: =SUM(IF(F71="eff-roof",W71*IF(AND(W$4="no",X$4="no"),$C$4,$C$3)),IF(G71="eff-win",X71*IF(W$4="no",$D$4,$D$3),0),IF(H71="red-inf",Y71*IF(W$4="no",$F$4,$F$3),0),IF(I71="25 fc",W71*IF(W$4="no",$H$4,$H$3),0),IF(I71="40 fc",W71*IF(W$4="no",$G$4,$G$3),0),IF(J71="yes-day",W71*IF(W$4="no",$I$4,$I$3),0),IF(K71="yes-occ",W71*IF(W$4="no",$J$4,$J$3),0),IF(L71="red-epd",W71*IF(W$4="no",$K$4,$K$3),0),IF(AND(M71="high-eff",C71="psz-ac"),W71*IF(AND(W$4="no",Y$4="no"),$L$4,$L$3),0),IF(AND(M71="high-eff",C71="ptac"),W71*IF(AND(W$4="no",Y$4="no"),$M$4,$M$3),0),IF(AND(M71="high-eff",C71="pthp"),W71*IF(AND(W$4="no",Y$4="no"),$N$4,$N$3),0)) -> 4932.9645 | AB71: =SUM(IF(F71="eff-roof",W71*$C$4),IF(G71="eff-win",X71*$D$4,0),IF(H71="red-inf",Y71*$F$4,0),IF(I71="25 fc",W71*$H$4,0),IF(I71="40 fc",W71*$G$4,0),IF(J71="yes-day",W71*$I$4,0),IF(K71="yes-occ",W71*$J$4,0),IF(L71="red-epd",W71*$K$4,0),IF(AND(M71="high-eff",C71="psz-ac"),W71*$L$4,0),IF(AND(M71="high-eff",C71="ptac"),W71*$M$4,0),IF(AND(M71="high-eff",C71="pthp"),W71*$N$4,0)) -> 12632.9645 | AC71: 49.329645 | AD71: 0 | AE71: =-PMT($AE$3,$AE$4,AA71+AC71-AD71) -> 1179.562866 | AF71: =SUM(IF(F71="eff-roof",($C$5*W71),0),IF(G71="eff-win",($D$5*X71),0),IF(H71="red-inf",$F$5*(Y71-X71),0),IF(I71="25 fc",($H$5*W71),0),IF(I71="40 fc",($G$5*W71),0),IF(J71="yes-day",($I$5*W71),0),IF(K71="yes-occ",($J$5*W71),0),IF(L71="red-epd",($K$5*W71),0),IF(M71="high-eff",($L$5*W71),0)) -> -660 | AG71: =0.05*U71 -> 0.7877110016 | AH71: 520.3505773 | AI71: =U71-AH71 -> -504.5963572 | AM71: New Construction | AN71: =IF(B71="5500 ft2","5,500 SF",IF(B71="10000 ft2","10,000 SF",IF(B71="25000 ft2","25,000 SF"))) -> 5,500 SF | AO71: Packaged Air Conditioner | AP71: Stand Alone | AQ71: Baseline Roof Insulation | AR71: Baseline Windows | AS71: Reduce Infiltration | AT71: =IF(I71="base-lpd","Baseline Lighting Levels",IF(I71="40 fc","Reduce Lighting Levels to 40 fc",IF(I71="25 fc","Reduce Lighting Levels to 25 fc"))) -> Reduce Lighting Levels to 40 fc | AU71: No Daylighting Sensors | AV71: No Occupancy Sensors | AW71: No Plug Load Control | AX71: Baseline HVAC Equipment
A72: new90.1-2004 | B72: 5500 ft2 | C72: psz-ac | D72: stand-alone | E72: new90.1-20045500 ft2psz-acstand-alone | F72: base-roof | G72: base-win | H72: red-inf | I72: 40 fc | J72: no-day | K72: no-occ | L72: base-epd | M72: high-eff | N72: 225.76 | O72: 94.79 | P72: 0.01002415268 | Q72: 0.007604729878 | R72: 0.0158845515 | S72: =277.8*($N$7-N72)*$S$3 -> 48.0594 | T72: =277.78*($O$7-O72)*$S$4 -> 13.25402003 | U72: =SUM(S72:T72) -> 61.31342003 | V72: no | W72: 5500 | X72: 642.39 | Y72: 3030.15 | AA72: 7187.9645 | AB72: 46127.9645 | AC72: =MIN(0.01*AA72,500) -> 71.879645 | AD72: =IF(V72="yes",0,0) -> 0 | AE72: 1718.77499 | AF72: -660 | AG72: 3.065671002 | AH72: =SUM(AE72:AG72) -> 1061.840661 | AI72: -1000.527241 | AM72: New Construction | AN72: 5,500 SF | AO72: =IF(C72="psz-ac","Packaged Air Conditioner",IF(C72="ptac","Split System Air Conditioner",IF(C72="pthp","Split System Heat Pump"))) -> Packaged Air Conditioner | AP72: =IF(D72="stand-alone","Stand Alone",IF(D72="ad-e&flr","Above Ground, 1 Side Attached",IF(D72="ad-e&w&flr","Above Ground, 2 Sides Attached"))) -> Stand Alone | AQ72: =IF(F72="base-roof","Baseline Roof Insulation",IF(F72="eff-roof","Increased Roof Insulation")) -> Baseline Roof Insulation | AR72: =IF(G72="base-win","Baseline Windows",IF(G72="eff-win","Replace Windows")) -> Baseline Windows | AS72: =IF(H72="base-inf","Baseline Infiltration",IF(H72="red-inf","Reduce Infiltration")) -> Reduce Infiltration | AT72: Reduce Lighting Levels to 40 fc | AU72: =IF(J72="no-day","No Daylighting Sensors",IF(J72="yes-day","Install Daylighting Sensors")) -> No Daylighting Sensors | AV72: =IF(K72="no-occ","No Occupancy Sensors",IF(K72="yes-occ","Install Occupancy Sensors")) -> No Occupancy Sensors | AW72: =IF(L72="base-epd","No Plug Load Control",IF(L72="red-epd","Install Plug Load Controls")) -> No Plug Load Control | AX72: =IF(M72="base-eff","Baseline HVAC Equipment",IF(M72="high-eff","Install High Efficiency HVAC Equipment")) -> Install High Efficiency HVAC Equipment
A73: new90.1-2004 | B73: 5500 ft2 | C73: psz-ac | D73: stand-alone | E73: new90.1-20045500 ft2psz-acstand-alone | F73: base-roof | G73: base-win | H73: red-inf | I73: 40 fc | J73: no-day | K73: no-occ | L73: red-epd | M73: base-eff | N73: 196.61 | O73: 106.01 | P73: 0.06541746255 | Q73: 0.1357422304 | R73: -0.1006021595 | S73: 857.8464 | T73: -83.94212686 | U73: 773.9042731 | V73: no | W73: 5500 | X73: 642.39 | Y73: 3030.15 | AA73: 5757.9645 | AB73: 13457.9645 | AC73: 57.579645 | AD73: 0 | AE73: 1376.835594 | AF73: -660 | AG73: 38.69521366 | AH73: 755.530808 | AI73: 18.37346511 | AM73: =IF(A73="new90.1-2004","New Construction",IF(A73="post1980","Post 1980 Construction",IF(A73="pre1980","Pre 1980 Construction"))) -> New Construction | AN73: 5,500 SF | AO73: Packaged Air Conditioner | AP73: Stand Alone | AQ73: Baseline Roof Insulation | AR73: Baseline Windows | AS73: Reduce Infiltration | AT73: Reduce Lighting Levels to 40 fc | AU73: No Daylighting Sensors | AV73: No Occupancy Sensors | AW73: Install Plug Load Controls | AX73: Baseline HVAC Equipment
A74: new90.1-2004 | B74: 5500 ft2 | C74: psz-ac | D74: stand-alone | E74: new90.1-20045500 ft2psz-acstand-alone | F74: base-roof | G74: base-win | H74: red-inf | I74: 40 fc | J74: no-day | K74: no-occ | L74: red-epd | M74: high-eff | N74: 195.16 | O74: 106.01 | P74: 0.06990070564 | Q74: 0.142116137 | R74: -0.1006021595 | S74: 898.1274 | T74: -83.94212686 | U74: 814.1852731 | V74: no | W74: 5500 | X74: 642.39 | Y74: 3030.15 | AA74: 8012.9645 | AB74: 46952.9645 | AC74: 80.129645 | AD74: 0 | AE74: 1916.047718 | AF74: -660 | AG74: 40.70926366 | AH74: 1296.756982 | AI74: -482.5717084 | AM74: New Construction | AN74: 5,500 SF | AO74: Packaged Air Conditioner | AP74: Stand Alone | AQ74: Baseline Roof Insulation | AR74: Baseline Windows | AS74: Reduce Infiltration | AT74: Reduce Lighting Levels to 40 fc | AU74: No Daylighting Sensors | AV74: No Occupancy Sensors | AW74: Install Plug Load Controls | AX74: Install High Efficiency HVAC Equipment
A75: new90.1-2004 | B75: 5500 ft2 | C75: psz-ac | D75: stand-alone | E75: new90.1-20045500 ft2psz-acstand-alone | F75: base-roof | G75: base-win | H75: red-inf | I75: 40 fc | J75: no-day | K75: yes-occ | L75: base-epd | M75: base-eff | N75: 212.71 | O75: 100.53 | P75: 0.03261401487 | Q75: 0.06496988879 | R75: -0.04370847176 | S75: 410.5884 | T75: -36.47021198 | U75: 374.118188 | V75: no | W75: 5500 | X75: 642.39 | Y75: 3030.15 | AA75: 6912.9645 | AB75: 14612.9645 | AC75: 69.129645 | AD75: 0 | AE75: 1653.017414 | AF75: -660 | AG75: 18.7059094 | AH75: 1011.723323 | AI75: -637.6051351 | AM75: New Construction | AN75: 5,500 SF | AO75: Packaged Air Conditioner | AP75: Stand Alone | AQ75: Baseline Roof Insulation | AR75: Baseline Windows | AS75: Reduce Infiltration | AT75: Reduce Lighting Levels to 40 fc | AU75: No Daylighting Sensors | AV75: Install Occupancy Sensors | AW75: No Plug Load Control | AX75: Baseline HVAC Equipment
A76: new90.1-2004 | B76: 5500 ft2 | C76: psz-ac | D76: stand-alone | E76: new90.1-20045500 ft2psz-acstand-alone | F76: base-roof | G76: base-win | H76: red-inf | I76: 40 fc | J76: no-day | K76: yes-occ | L76: base-epd | M76: high-eff | N76: 211.22 | O76: 100.53 | P76: 0.0372235465 | Q76: 0.07151962724 | R76: -0.04370847176 | S76: 451.9806 | T76: -36.47021198 | U76: 415.510388 | V76: no | W76: 5500 | X76: 642.39 | Y76: 3030.15 | AA76: 9167.9645 | AB76: 48107.9645 | AC76: 91.679645 | AD76: 0 | AE76: 2192.229537 | AF76: -660 | AG76: 20.7755194 | AH76: 1553.005057 | AI76: -1137.494669 | AM76: New Construction | AN76: 5,500 SF | AO76: Packaged Air Conditioner | AP76: Stand Alone | AQ76: Baseline Roof Insulation | AR76: Baseline Windows | AS76: Reduce Infiltration | AT76: Reduce Lighting Levels to 40 fc | AU76: No Daylighting Sensors | AV76: Install Occupancy Sensors | AW76: No Plug Load Control | AX76: Install High Efficiency HVAC Equipment
A77: new90.1-2004 | B77: 5500 ft2 | C77: psz-ac | D77: stand-alone | E77: new90.1-20045500 ft2psz-acstand-alone | F77: base-roof | G77: base-win | H77: red-inf | I77: 40 fc | J77: no-day | K77: yes-occ | L77: red-epd | M77: base-eff | N77: 181.94 | O77: 112.18 | P77: 0.09166969233 | Q77: 0.2002285815 | R77: -0.1646594684 | S77: 1265.379 | T77: -137.3913449 | U77: 1127.987655 | V77: no | W77: 5500 | X77: 642.39 | Y77: 3030.15 | AA77: 7737.9645 | AB77: 15437.9645 | AC77: 77.379645 | AD77: 0 | AE77: 1850.290142 | AF77: -660 | AG77: 56.39938276 | AH77: 1246.689525 | AI77: -118.7018695 | AM77: New Construction | AN77: 5,500 SF | AO77: Packaged Air Conditioner | AP77: Stand Alone | AQ77: Baseline Roof Insulation | AR77: Baseline Windows | AS77: Reduce Infiltration | AT77: Reduce Lighting Levels to 40 fc | AU77: No Daylighting Sensors | AV77: Install Occupancy Sensors | AW77: Install Plug Load Controls | AX77: Baseline HVAC Equipment
A78: new90.1-2004 | B78: 5500 ft2 | C78: psz-ac | D78: stand-alone | E78: new90.1-20045500 ft2psz-acstand-alone | F78: base-roof | G78: base-win | H78: red-inf | I78: 40 fc | J78: no-day | K78: yes-occ | L78: red-epd | M78: high-eff | N78: 180.63 | O78: 112.18 | P78: 0.0957267116 | Q78: 0.2059870764 | R78: -0.1646594684 | S78: 1301.7708 | T78: -137.3913449 | U78: 1164.379455 | V78: no | W78: 5500 | X78: 642.39 | Y78: 3030.15 | AA78: 9992.9645 | AB78: 48932.9645 | AC78: 99.929645 | AD78: 0 | AE78: 2389.502265 | AF78: -660 | AG78: 58.21897276 | AH78: 1787.721238 | AI78: -623.3417831 | AM78: New Construction | AN78: 5,500 SF | AO78: Packaged Air Conditioner | AP78: Stand Alone | AQ78: Baseline Roof Insulation | AR78: Baseline Windows | AS78: Reduce Infiltration | AT78: Reduce Lighting Levels to 40 fc | AU78: No Daylighting Sensors | AV78: Install Occupancy Sensors | AW78: Install Plug Load Controls | AX78: Install High Efficiency HVAC Equipment
A79: new90.1-2004 | B79: 5500 ft2 | C79: psz-ac | D79: stand-alone | E79: new90.1-20045500 ft2psz-acstand-alone | F79: base-roof | G79: base-win | H79: red-inf | I79: 40 fc | J79: yes-day | K79: no-occ | L79: base-epd | M79: base-eff | N79: 204.6 | O79: 103.14 | P79: 0.04963139533 | Q79: 0.1006198075 | R79: -0.07080564784 | S79: 635.8842 | T79: -59.08001086 | U79: 576.8041891 | V79: no | W79: 5500 | X79: 642.39 | Y79: 3030.15 | AA79: 7957.9645 | AB79: 31387.9645 | AC79: 79.579645 | AD79: 0 | AE79: 1902.896203 | AF79: -660 | AG79: 28.84020946 | AH79: 1271.736412 | AI79: -694.932223 | AM79: New Construction | AN79: 5,500 SF | AO79: Packaged Air Conditioner | AP79: Stand Alone | AQ79: Baseline Roof Insulation | AR79: Baseline Windows | AS79: Reduce Infiltration | AT79: Reduce Lighting Levels to 40 fc | AU79: Install Daylighting Sensors | AV79: No Occupancy Sensors | AW79: No Plug Load Control | AX79: Baseline HVAC Equipment
A80: new90.1-2004 | B80: 5500 ft2 | C80: psz-ac | D80: stand-alone | E80: new90.1-20045500 ft2psz-acstand-alone | F80: base-roof | G80: base-win | H80: red-inf | I80: 40 fc | J80: yes-day | K80: no-occ | L80: base-epd | M80: high-eff | N80: 203.18 | O80: 103.14 | P80: 0.05398834988 | Q80: 0.1068618401 | R80: -0.07080564784 | S80: 675.3318 | T80: -59.08001086 | U80: 616.2517891 | V80: no | W80: 5500 | X80: 642.39 | Y80: 3030.15 | AA80: 10212.9645 | AB80: 64882.9645 | AC80: 102.129645 | AD80: 0 | AE80: 2442.108326 | AF80: -660 | AG80: 30.81258946 | AH80: 1812.920916 | AI80: -1196.669127 | AM80: New Construction | AN80: 5,500 SF | AO80: Packaged Air Conditioner | AP80: Stand Alone | AQ80: Baseline Roof Insulation | AR80: Baseline Windows | AS80: Reduce Infiltration | AT80: Reduce Lighting Levels to 40 fc | AU80: Install Daylighting Sensors | AV80: No Occupancy Sensors | AW80: No Plug Load Control | AX80: Install High Efficiency HVAC Equipment
A81: new90.1-2004 | B81: 5500 ft2 | C81: psz-ac | D81: stand-alone | E81: new90.1-20045500 ft2psz-acstand-alone | F81: base-roof | G81: base-win | H81: red-inf | I81: 40 fc | J81: yes-day | K81: no-occ | L81: red-epd | M81: base-eff | N81: 173.88 | O81: 114.75 | P81: 0.1086239285 | Q81: 0.2356587103 | R81: -0.1913413621 | S81: 1489.2858 | T81: -159.6546334 | U81: 1329.631167 | V81: no | W81: 5500 | X81: 642.39 | Y81: 3030.15 | AA81: 8782.9645 | AB81: 32212.9645 | AC81: 87.829645 | AD81: 0 | AE81: 2100.168931 | AF81: -660 | AG81: 66.48155833 | AH81: 1506.650489 | AI81: -177.0193226 | AM81: New Construction | AN81: 5,500 SF | AO81: Packaged Air Conditioner | AP81: Stand Alone | AQ81: Baseline Roof Insulation | AR81: Baseline Windows | AS81: Reduce Infiltration | AT81: Reduce Lighting Levels to 40 fc | AU81: Install Daylighting Sensors | AV81: No Occupancy Sensors | AW81: Install Plug Load Controls | AX81: Baseline HVAC Equipment
A82: new90.1-2004 | B82: 5500 ft2 | C82: psz-ac | D82: stand-alone | E82: new90.1-20045500 ft2psz-acstand-alone | F82: base-roof | G82: base-win | H82: red-inf | I82: 40 fc | J82: yes-day | K82: no-occ | L82: red-epd | M82: high-eff | N82: 172.64 | O82: 114.75 | P82: 0.1124599429 | Q82: 0.2411094993 | R82: -0.1913413621 | S82: 1523.733 | T82: -159.6546334 | U82: 1364.078367 | V82: no | W82: 5500 | X82: 642.39 | Y82: 3030.15 | AA82: 11037.9645 | AB82: 65707.9645 | AC82: 110.379645 | AD82: 0 | AE82: 2639.381054 | AF82: -660 | AG82: 68.20391833 | AH82: 2047.584973 | AI82: -683.5066061 | AM82: New Construction | AN82: 5,500 SF | AO82: Packaged Air Conditioner | AP82: Stand Alone | AQ82: Baseline Roof Insulation | AR82: Baseline Windows | AS82: Reduce Infiltration | AT82: Reduce Lighting Levels to 40 fc | AU82: Install Daylighting Sensors | AV82: No Occupancy Sensors | AW82: Install Plug Load Controls | AX82: Install High Efficiency HVAC Equipment
A83: new90.1-2004 | B83: 5500 ft2 | C83: psz-ac | D83: stand-alone | E83: new90.1-20045500 ft2psz-acstand-alone | F83: base-roof | G83: base-win | H83: red-inf | I83: 40 fc | J83: yes-day | K83: yes-occ | L83: base-epd | M83: base-eff | N83: 194.5 | O83: 107.55 | P83: 0.06716971601 | Q83: 0.1450173634 | R83: -0.1165905316 | S83: 916.4622 | T83: -97.28277448 | U83: 819.1794255 | V83: no | W83: 5500 | X83: 642.39 | Y83: 3030.15 | AA83: 9937.9645 | AB83: 33367.9645 | AC83: 99.379645 | AD83: 0 | AE83: 2376.35075 | AF83: -660 | AG83: 40.95897128 | AH83: 1757.309721 | AI83: -938.130296 | AM83: New Construction | AN83: 5,500 SF | AO83: Packaged Air Conditioner | AP83: Stand Alone | AQ83: Baseline Roof Insulation | AR83: Baseline Windows | AS83: Reduce Infiltration | AT83: Reduce Lighting Levels to 40 fc | AU83: Install Daylighting Sensors | AV83: Install Occupancy Sensors | AW83: No Plug Load Control | AX83: Baseline HVAC Equipment
A84: new90.1-2004 | B84: 5500 ft2 | C84: psz-ac | D84: stand-alone | E84: new90.1-20045500 ft2psz-acstand-alone | F84: base-roof | G84: base-win | H84: red-inf | I84: 40 fc | J84: yes-day | K84: yes-occ | L84: base-epd | M84: high-eff | N84: 193.18 | O84: 107.55 | P84: 0.07125830742 | Q84: 0.1508198163 | R84: -0.1165905316 | S84: 953.1318 | T84: -97.28277448 | U84: 855.8490255 | V84: no | W84: 5500 | X84: 642.39 | Y84: 3030.15 | AA84: 12192.9645 | AB84: 66862.9645 | AC84: 121.929645 | AD84: 0 | AE84: 2915.562874 | AF84: -660 | AG84: 42.79245128 | AH84: 2298.355325 | AI84: -1442.506299 | AM84: New Construction | AN84: 5,500 SF | AO84: Packaged Air Conditioner | AP84: Stand Alone | AQ84: Baseline Roof Insulation | AR84: Baseline Windows | AS84: Reduce Infiltration | AT84: Reduce Lighting Levels to 40 fc | AU84: Install Daylighting Sensors | AV84: Install Occupancy Sensors | AW84: No Plug Load Control | AX84: Install High Efficiency HVAC Equipment
A85: new90.1-2004 | B85: 5500 ft2 | C85: psz-ac | D85: stand-alone | E85: new90.1-20045500 ft2psz-acstand-alone | F85: base-roof | G85: base-win | H85: red-inf | I85: 40 fc | J85: yes-day | K85: yes-occ | L85: red-epd | M85: base-eff | N85: 163.78 | O85: 119.45 | P85: 0.1253098016 | Q85: 0.2800562662 | R85: -0.2401370432 | S85: 1769.8638 | T85: -200.3695969 | U85: 1569.494203 | V85: no | W85: 5500 | X85: 642.39 | Y85: 3030.15 | AA85: 10762.9645 | AB85: 34192.9645 | AC85: 107.629645 | AD85: 0 | AE85: 2573.623478 | AF85: -660 | AG85: 78.47471015 | AH85: 1992.098188 | AI85: -422.6039854 | AM85: New Construction | AN85: 5,500 SF | AO85: Packaged Air Conditioner | AP85: Stand Alone | AQ85: Baseline Roof Insulation | AR85: Baseline Windows | AS85: Reduce Infiltration | AT85: Reduce Lighting Levels to 40 fc | AU85: Install Daylighting Sensors | AV85: Install Occupancy Sensors | AW85: Install Plug Load Controls | AX85: Baseline HVAC Equipment
A86: new90.1-2004 | B86: 5500 ft2 | C86: psz-ac | D86: stand-alone | E86: new90.1-20045500 ft2psz-acstand-alone | F86: base-roof | G86: base-win | H86: red-inf | I86: 40 fc | J86: yes-day | K86: yes-occ | L86: red-epd | M86: high-eff | N86: 162.63 | O86: 119.45 | P86: 0.1288616667 | Q86: 0.2851114335 | R86: -0.2401370432 | S86: 1801.8108 | T86: -200.3695969 | U86: 1601.441203 | V86: no | W86: 5500 | X86: 642.39 | Y86: 3030.15 | AA86: 13017.9645 | AB86: 67687.9645 | AC86: 130.179645 | AD86: 0 | AE86: 3112.835602 | AF86: -660 | AG86: 80.07206015 | AH86: 2532.907662 | AI86: -931.466459 | AM86: New Construction | AN86: 5,500 SF | AO86: Packaged Air Conditioner | AP86: Stand Alone | AQ86: Baseline Roof Insulation | AR86: Baseline Windows | AS86: Reduce Infiltration | AT86: Reduce Lighting Levels to 40 fc | AU86: Install Daylighting Sensors | AV86: Install Occupancy Sensors | AW86: Install Plug Load Controls | AX86: Install High Efficiency HVAC Equipment
A87: new90.1-2004 | B87: 5500 ft2 | C87: psz-ac | D87: stand-alone | E87: new90.1-20045500 ft2psz-acstand-alone | F87: base-roof | G87: base-win | H87: red-inf | I87: 25 fc | J87: no-day | K87: no-occ | L87: base-epd | M87: base-eff | N87: 212.71 | O87: 100.53 | P87: 0.03261401487 | Q87: 0.06496988879 | R87: -0.04370847176 | S87: 410.5884 | T87: -36.47021198 | U87: 374.118188 | V87: no | W87: 5500 | X87: 642.39 | Y87: 3030.15 | AA87: 5647.9645 | AB87: 62627.9645 | AC87: 56.479645 | AD87: 0 | AE87: 1350.532564 | AF87: -1045 | AG87: 18.7059094 | AH87: 324.2384734 | AI87: 49.87971466 | AM87: New Construction | AN87: 5,500 SF | AO87: Packaged Air Conditioner | AP87: Stand Alone | AQ87: Baseline Roof Insulation | AR87: Baseline Windows | AS87: Reduce Infiltration | AT87: Reduce Lighting Levels to 25 fc | AU87: No Daylighting Sensors | AV87: No Occupancy Sensors | AW87: No Plug Load Control | AX87: Baseline HVAC Equipment
A88: new90.1-2004 | B88: 5500 ft2 | C88: psz-ac | D88: stand-alone | E88: new90.1-20045500 ft2psz-acstand-alone | F88: base-roof | G88: base-win | H88: red-inf | I88: 25 fc | J88: no-day | K88: no-occ | L88: base-epd | M88: high-eff | N88: 211.22 | O88: 100.53 | P88: 0.0372235465 | Q88: 0.07151962724 | R88: -0.04370847176 | S88: 451.9806 | T88: -36.47021198 | U88: 415.510388 | V88: no | W88: 5500 | X88: 642.39 | Y88: 3030.15 | AA88: 7902.9645 | AB88: 96122.9645 | AC88: 79.029645 | AD88: 0 | AE88: 1889.744687 | AF88: -1045 | AG88: 20.7755194 | AH88: 865.5202069 | AI88: -450.0098189 | AM88: New Construction | AN88: 5,500 SF | AO88: Packaged Air Conditioner | AP88: Stand Alone | AQ88: Baseline Roof Insulation | AR88: Baseline Windows | AS88: Reduce Infiltration | AT88: Reduce Lighting Levels to 25 fc | AU88: No Daylighting Sensors | AV88: No Occupancy Sensors | AW88: No Plug Load Control | AX88: Install High Efficiency HVAC Equipment
A89: new90.1-2004 | B89: 5500 ft2 | C89: psz-ac | D89: stand-alone | E89: new90.1-20045500 ft2psz-acstand-alone | F89: base-roof | G89: base-win | H89: red-inf | I89: 25 fc | J89: no-day | K89: no-occ | L89: red-epd | M89: base-eff | N89: 181.94 | O89: 112.18 | P89: 0.09166969233 | Q89: 0.2002285815 | R89: -0.1646594684 | S89: 1265.379 | T89: -137.3913449 | U89: 1127.987655 | V89: no | W89: 5500 | X89: 642.39 | Y89: 3030.15 | AA89: 6472.9645 | AB89: 63452.9645 | AC89: 64.729645 | AD89: 0 | AE89: 1547.805292 | AF89: -1045 | AG89: 56.39938276 | AH89: 559.2046748 | AI89: 568.7829803 | AM89: New Construction | AN89: 5,500 SF | AO89: Packaged Air Conditioner | AP89: Stand Alone | AQ89: Baseline Roof Insulation | AR89: Baseline Windows | AS89: Reduce Infiltration | AT89: Reduce Lighting Levels to 25 fc | AU89: No Daylighting Sensors | AV89: No Occupancy Sensors | AW89: Install Plug Load Controls | AX89: Baseline HVAC Equipment
A90: new90.1-2004 | B90: 5500 ft2 | C90: psz-ac | D90: stand-alone | E90: new90.1-20045500 ft2psz-acstand-alone | F90: base-roof | G90: base-win | H90: red-inf | I90: 25 fc | J90: no-day | K90: no-occ | L90: red-epd | M90: high-eff | N90: 180.63 | O90: 112.18 | P90: 0.0957267116 | Q90: 0.2059870764 | R90: -0.1646594684 | S90: 1301.7708 | T90: -137.3913449 | U90: 1164.379455 | V90: no | W90: 5500 | X90: 642.39 | Y90: 3030.15 | AA90: 8727.9645 | AB90: 96947.9645 | AC90: 87.279645 | AD90: 0 | AE90: 2087.017416 | AF90: -1045 | AG90: 58.21897276 | AH90: 1100.236388 | AI90: 64.14306673 | AM90: New Construction | AN90: 5,500 SF | AO90: Packaged Air Conditioner | AP90: Stand Alone | AQ90: Baseline Roof Insulation | AR90: Baseline Windows | AS90: Reduce Infiltration | AT90: Reduce Lighting Levels to 25 fc | AU90: No Daylighting Sensors | AV90: No Occupancy Sensors | AW90: Install Plug Load Controls | AX90: Install High Efficiency HVAC Equipment
A91: new90.1-2004 | B91: 5500 ft2 | C91: psz-ac | D91: stand-alone | E91: new90.1-20045500 ft2psz-acstand-alone | F91: base-roof | G91: base-win | H91: red-inf | I91: 25 fc | J91: no-day | K91: yes-occ | L91: base-epd | M91: base-eff | N91: 201.14 | O91: 105.36 | P91: 0.05342005146 | Q91: 0.1158292672 | R91: -0.0938538206 | S91: 732.003 | T91: -78.31133404 | U91: 653.691666 | V91: no | W91: 5500 | X91: 642.39 | Y91: 3030.15 | AA91: 7627.9645 | AB91: 64607.9645 | AC91: 76.279645 | AD91: 0 | AE91: 1823.987111 | AF91: -1045 | AG91: 32.6845833 | AH91: 811.6716948 | AI91: -157.9800288 | AM91: New Construction | AN91: 5,500 SF | AO91: Packaged Air Conditioner | AP91: Stand Alone | AQ91: Baseline Roof Insulation | AR91: Baseline Windows | AS91: Reduce Infiltration | AT91: Reduce Lighting Levels to 25 fc | AU91: No Daylighting Sensors | AV91: Install Occupancy Sensors | AW91: No Plug Load Control | AX91: Baseline HVAC Equipment
A92: new90.1-2004 | B92: 5500 ft2 | C92: psz-ac | D92: stand-alone | E92: new90.1-20045500 ft2psz-acstand-alone | F92: base-roof | G92: base-win | H92: red-inf | I92: 25 fc | J92: no-day | K92: yes-occ | L92: base-epd | M92: high-eff | N92: 199.76 | O92: 105.36 | P92: 0.05771386175 | Q92: 0.1218954679 | R92: -0.0938538206 | S92: 770.3394 | T92: -78.31133404 | U92: 692.028066 | V92: no | W92: 5500 | X92: 642.39 | Y92: 3030.15 | AA92: 9882.9645 | AB92: 98102.9645 | AC92: 98.829645 | AD92: 0 | AE92: 2363.199235 | AF92: -1045 | AG92: 34.6014033 | AH92: 1352.800638 | AI92: -660.7725723 | AM92: New Construction | AN92: 5,500 SF | AO92: Packaged Air Conditioner | AP92: Stand Alone | AQ92: Baseline Roof Insulation | AR92: Baseline Windows | AS92: Reduce Infiltration | AT92: Reduce Lighting Levels to 25 fc | AU92: No Daylighting Sensors | AV92: Install Occupancy Sensors | AW92: No Plug Load Control | AX92: Install High Efficiency HVAC Equipment
A93: new90.1-2004 | B93: 5500 ft2 | C93: psz-ac | D93: stand-alone | E93: new90.1-20045500 ft2psz-acstand-alone | F93: base-roof | G93: base-win | H93: red-inf | I93: 25 fc | J93: no-day | K93: yes-occ | L93: red-epd | M93: base-eff | N93: 170.37 | O93: 117.19 | P93: 0.1119074305 | Q93: 0.2510879599 | R93: -0.216673588 | S93: 1586.7936 | T93: -180.7917634 | U93: 1406.001837 | V93: no | W93: 5500 | X93: 642.39 | Y93: 3030.15 | AA93: 8452.9645 | AB93: 65432.9645 | AC93: 84.529645 | AD93: 0 | AE93: 2021.25984 | AF93: -1045 | AG93: 70.30009183 | AH93: 1046.559931 | AI93: 359.4419052 | AM93: New Construction | AN93: 5,500 SF | AO93: Packaged Air Conditioner | AP93: Stand Alone | AQ93: Baseline Roof Insulation | AR93: Baseline Windows | AS93: Reduce Infiltration | AT93: Reduce Lighting Levels to 25 fc | AU93: No Daylighting Sensors | AV93: Install Occupancy Sensors | AW93: Install Plug Load Controls | AX93: Baseline HVAC Equipment
A94: new90.1-2004 | B94: 5500 ft2 | C94: psz-ac | D94: stand-alone | E94: new90.1-20045500 ft2psz-acstand-alone | F94: base-roof | G94: base-win | H94: red-inf | I94: 25 fc | J94: no-day | K94: yes-occ | L94: red-epd | M94: high-eff | N94: 169.16 | O94: 117.19 | P94: 0.1156645145 | Q94: 0.256406875 | R94: -0.216673588 | S94: 1620.4074 | T94: -180.7917634 | U94: 1439.615637 | V94: no | W94: 5500 | X94: 642.39 | Y94: 3030.15 | AA94: 10707.9645 | AB94: 98927.9645 | AC94: 107.079645 | AD94: 0 | AE94: 2560.471963 | AF94: -1045 | AG94: 71.98078183 | AH94: 1587.452745 | AI94: -147.8371084 | AM94: New Construction | AN94: 5,500 SF | AO94: Packaged Air Conditioner | AP94: Stand Alone | AQ94: Baseline Roof Insulation | AR94: Baseline Windows | AS94: Reduce Infiltration | AT94: Reduce Lighting Levels to 25 fc | AU94: No Daylighting Sensors | AV94: Install Occupancy Sensors | AW94: Install Plug Load Controls | AX94: Install High Efficiency HVAC Equipment
A95: new90.1-2004 | B95: 5500 ft2 | C95: psz-ac | D95: stand-alone | E95: new90.1-20045500 ft2psz-acstand-alone | F95: base-roof | G95: base-win | H95: red-inf | I95: 25 fc | J95: yes-day | K95: no-occ | L95: base-epd | M95: base-eff | N95: 194.5 | O95: 107.55 | P95: 0.06716971601 | Q95: 0.1450173634 | R95: -0.1165905316 | S95: 916.4622 | T95: -97.28277448 | U95: 819.1794255 | V95: no | W95: 5500 | X95: 642.39 | Y95: 3030.15 | AA95: 8672.9645 | AB95: 81382.9645 | AC95: 86.729645 | AD95: 0 | AE95: 2073.8659 | AF95: -1045 | AG95: 40.95897128 | AH95: 1069.824872 | AI95: -250.6454462 | AM95: New Construction | AN95: 5,500 SF | AO95: Packaged Air Conditioner | AP95: Stand Alone | AQ95: Baseline Roof Insulation | AR95: Baseline Windows | AS95: Reduce Infiltration | AT95: Reduce Lighting Levels to 25 fc | AU95: Install Daylighting Sensors | AV95: No Occupancy Sensors | AW95: No Plug Load Control | AX95: Baseline HVAC Equipment
A96: new90.1-2004 | B96: 5500 ft2 | C96: psz-ac | D96: stand-alone | E96: new90.1-20045500 ft2psz-acstand-alone | F96: base-roof | G96: base-win | H96: red-inf | I96: 25 fc | J96: yes-day | K96: no-occ | L96: base-epd | M96: high-eff | N96: 193.18 | O96: 107.55 | P96: 0.07125830742 | Q96: 0.1508198163 | R96: -0.1165905316 | S96: 953.1318 | T96: -97.28277448 | U96: 855.8490255 | V96: no | W96: 5500 | X96: 642.39 | Y96: 3030.15 | AA96: 10927.9645 | AB96: 114877.9645 | AC96: 109.279645 | AD96: 0 | AE96: 2613.078024 | AF96: -1045 | AG96: 42.79245128 | AH96: 1610.870475 | AI96: -755.0214497 | AM96: New Construction | AN96: 5,500 SF | AO96: Packaged Air Conditioner | AP96: Stand Alone | AQ96: Baseline Roof Insulation | AR96: Baseline Windows | AS96: Reduce Infiltration | AT96: Reduce Lighting Levels to 25 fc | AU96: Install Daylighting Sensors | AV96: No Occupancy Sensors | AW96: No Plug Load Control | AX96: Install High Efficiency HVAC Equipment
A97: new90.1-2004 | B97: 5500 ft2 | C97: psz-ac | D97: stand-alone | E97: new90.1-20045500 ft2psz-acstand-alone | F97: base-roof | G97: base-win | H97: red-inf | I97: 25 fc | J97: yes-day | K97: no-occ | L97: red-epd | M97: base-eff | N97: 163.78 | O97: 119.45 | P97: 0.1253098016 | Q97: 0.2800562662 | R97: -0.2401370432 | S97: 1769.8638 | T97: -200.3695969 | U97: 1569.494203 | V97: no | W97: 5500 | X97: 642.39 | Y97: 3030.15 | AA97: 9497.9645 | AB97: 82207.9645 | AC97: 94.979645 | AD97: 0 | AE97: 2271.138629 | AF97: -1045 | AG97: 78.47471015 | AH97: 1304.613339 | AI97: 264.8808644 | AM97: New Construction | AN97: 5,500 SF | AO97: Packaged Air Conditioner | AP97: Stand Alone | AQ97: Baseline Roof Insulation | AR97: Baseline Windows | AS97: Reduce Infiltration | AT97: Reduce Lighting Levels to 25 fc | AU97: Install Daylighting Sensors | AV97: No Occupancy Sensors | AW97: Install Plug Load Controls | AX97: Baseline HVAC Equipment
A98: new90.1-2004 | B98: 5500 ft2 | C98: psz-ac | D98: stand-alone | E98: new90.1-20045500 ft2psz-acstand-alone | F98: base-roof | G98: base-win | H98: red-inf | I98: 25 fc | J98: yes-day | K98: no-occ | L98: red-epd | M98: high-eff | N98: 162.63 | O98: 119.45 | P98: 0.1288616667 | Q98: 0.2851114335 | R98: -0.2401370432 | S98: 1801.8108 | T98: -200.3695969 | U98: 1601.441203 | V98: no | W98: 5500 | X98: 642.39 | Y98: 3030.15 | AA98: 11752.9645 | AB98: 115702.9645 | AC98: 117.529645 | AD98: 0 | AE98: 2810.350752 | AF98: -1045 | AG98: 80.07206015 | AH98: 1845.422812 | AI98: -243.9816092 | AM98: New Construction | AN98: 5,500 SF | AO98: Packaged Air Conditioner | AP98: Stand Alone | AQ98: Baseline Roof Insulation | AR98: Baseline Windows | AS98: Reduce Infiltration | AT98: Reduce Lighting Levels to 25 fc | AU98: Install Daylighting Sensors | AV98: No Occupancy Sensors | AW98: Install Plug Load Controls | AX98: Install High Efficiency HVAC Equipment
A99: new90.1-2004 | B99: 5500 ft2 | C99: psz-ac | D99: stand-alone | E99: new90.1-20045500 ft2psz-acstand-alone | F99: base-roof | G99: base-win | H99: red-inf | I99: 25 fc | J99: yes-day | K99: yes-occ | L99: base-epd | M99: base-eff | N99: 186.59 | O99: 111.01 | P99: 0.08091938055 | Q99: 0.1797881226 | R99: -0.1525124585 | S99: 1136.202 | T99: -127.2559178 | U99: 1008.946082 | V99: no | W99: 5500 | X99: 642.39 | Y99: 3030.15 | AA99: 10652.9645 | AB99: 83362.9645 | AC99: 106.529645 | AD99: 0 | AE99: 2547.320448 | AF99: -1045 | AG99: 50.44730411 | AH99: 1552.767752 | AI99: -543.8216698 | AM99: New Construction | AN99: 5,500 SF | AO99: Packaged Air Conditioner | AP99: Stand Alone | AQ99: Baseline Roof Insulation | AR99: Baseline Windows | AS99: Reduce Infiltration | AT99: Reduce Lighting Levels to 25 fc | AU99: Install Daylighting Sensors | AV99: Install Occupancy Sensors | AW99: No Plug Load Control | AX99: Baseline HVAC Equipment
A100: new90.1-2004 | B100: 5500 ft2 | C100: psz-ac | D100: stand-alone | E100: new90.1-20045500 ft2psz-acstand-alone | F100: base-roof | G100: base-win | H100: red-inf | I100: 25 fc | J100: yes-day | K100: yes-occ | L100: base-epd | M100: high-eff | N100: 185.34 | O100: 111.01 | P100: 0.08478696702 | Q100: 0.1852828696 | R100: -0.1525124585 | S100: 1170.927 | T100: -127.2559178 | U100: 1043.671082 | V100: no | W100: 5500 | X100: 642.39 | Y100: 3030.15 | AA100: 12907.9645 | AB100: 116857.9645 | AC100: 129.079645 | AD100: 0 | AE100: 3086.532571 | AF100: -1045 | AG100: 52.18355411 | AH100: 2093.716126 | AI100: -1050.045043 | AM100: New Construction | AN100: 5,500 SF | AO100: Packaged Air Conditioner | AP100: Stand Alone | AQ100: Baseline Roof Insulation | AR100: Baseline Windows | AS100: Reduce Infiltration | AT100: Reduce Lighting Levels to 25 fc | AU100: Install Daylighting Sensors | AV100: Install Occupancy Sensors | AW100: No Plug Load Control | AX100: Install High Efficiency HVAC Equipment
A101: new90.1-2004 | B101: 5500 ft2 | C101: psz-ac | D101: stand-alone | E101: new90.1-20045500 ft2psz-acstand-alone | F101: base-roof | G101: base-win | H101: red-inf | I101: 25 fc | J101: yes-day | K101: yes-occ | L101: red-epd | M101: base-eff | N101: 155.87 | O101: 123.15 | P101: 0.138317521 | Q101: 0.3148270254 | R101: -0.2785506645 | S101: 1989.6036 | T101: -232.4218022 | U101: 1757.181798 | V101: no | W101: 5500 | X101: 642.39 | Y101: 3030.15 | AA101: 11477.9645 | AB101: 84187.9645 | AC101: 114.779645 | AD101: 0 | AE101: 2744.593176 | AF101: -1045 | AG101: 87.85908989 | AH101: 1787.452266 | AI101: -30.27046817 | AM101: New Construction | AN101: 5,500 SF | AO101: Packaged Air Conditioner | AP101: Stand Alone | AQ101: Baseline Roof Insulation | AR101: Baseline Windows | AS101: Reduce Infiltration | AT101: Reduce Lighting Levels to 25 fc | AU101: Install Daylighting Sensors | AV101: Install Occupancy Sensors | AW101: Install Plug Load Controls | AX101: Baseline HVAC Equipment
A102: new90.1-2004 | B102: 5500 ft2 | C102: psz-ac | D102: stand-alone | E102: new90.1-20045500 ft2psz-acstand-alone | F102: base-roof | G102: base-win | H102: red-inf | I102: 25 fc | J102: yes-day | K102: yes-occ | L102: red-epd | M102: high-eff | N102: 154.78 | O102: 123.15 | P102: 0.1416799533 | Q102: 0.3196184448 | R102: -0.2785506645 | S102: 2019.8838 | T102: -232.4218022 | U102: 1787.461998 | V102: no | W102: 5500 | X102: 642.39 | Y102: 3030.15 | AA102: 13732.9645 | AB102: 117682.9645 | AC102: 137.329645 | AD102: 0 | AE102: 3283.8053 | AF102: -1045 | AG102: 89.37309989 | AH102: 2328.178399 | AI102: -540.7164017 | AM102: New Construction | AN102: 5,500 SF | AO102: Packaged Air Conditioner | AP102: Stand Alone | AQ102: Baseline Roof Insulation | AR102: Baseline Windows | AS102: Reduce Infiltration | AT102: Reduce Lighting Levels to 25 fc | AU102: Install Daylighting Sensors | AV102: Install Occupancy Sensors | AW102: Install Plug Load Controls | AX102: Install High Efficiency HVAC Equipment
A103: new90.1-2004 | B103: 5500 ft2 | C103: psz-ac | D103: stand-alone | E103: new90.1-20045500 ft2psz-acstand-alone | F103: base-roof | G103: eff-win | H103: base-inf | I103: base-lpd | J103: no-day | K103: no-occ | L103: base-epd | M103: base-eff | N103: 224.28 | O103: 94.42 | P103: 0.01573870902 | Q103: 0.01411051035 | R103: 0.01972591362 | S103: 89.1738 | T103: 16.45924056 | U103: 105.6330406 | V103: no | W103: 5500 | X103: 642.39 | Y103: 3030.15 | AA103: 4612.3602 | AB103: 27622.77 | AC103: 46.123602 | AD103: 0 | AE103: 1102.90046 | AF103: 0 | AG103: 5.281652028 | AH103: 1108.182112 | AI103: -1002.549072 | AM103: New Construction | AN103: 5,500 SF | AO103: Packaged Air Conditioner | AP103: Stand Alone | AQ103: Baseline Roof Insulation | AR103: Replace Windows | AS103: Baseline Infiltration | AT103: Baseline Lighting Levels | AU103: No Daylighting Sensors | AV103: No Occupancy Sensors | AW103: No Plug Load Control | AX103: Baseline HVAC Equipment
A104: new90.1-2004 | B104: 5500 ft2 | C104: psz-ac | D104: stand-alone | E104: new90.1-20045500 ft2psz-acstand-alone | F104: base-roof | G104: eff-win | H104: base-inf | I104: base-lpd | J104: no-day | K104: no-occ | L104: base-epd | M104: high-eff | N104: 222.78 | O104: 94.42 | P104: 0.02039559884 | Q104: 0.02070420678 | R104: 0.01972591362 | S104: 130.8438 | T104: 16.45924056 | U104: 147.3030406 | V104: no | W104: 5500 | X104: 642.39 | Y104: 3030.15 | AA104: 6867.3602 | AB104: 61117.77 | AC104: 68.673602 | AD104: 0 | AE104: 1642.112584 | AF104: 0 | AG104: 7.365152028 | AH104: 1649.477736 | AI104: -1502.174695 | AM104: New Construction | AN104: 5,500 SF | AO104: Packaged Air Conditioner | AP104: Stand Alone | AQ104: Baseline Roof Insulation | AR104: Replace Windows | AS104: Baseline Infiltration | AT104: Baseline Lighting Levels | AU104: No Daylighting Sensors | AV104: No Occupancy Sensors | AW104: No Plug Load Control | AX104: Install High Efficiency HVAC Equipment
A105: new90.1-2004 | B105: 5500 ft2 | C105: psz-ac | D105: stand-alone | E105: new90.1-20045500 ft2psz-acstand-alone | F105: base-roof | G105: eff-win | H105: base-inf | I105: base-lpd | J105: no-day | K105: no-occ | L105: red-epd | M105: base-eff | N105: 193.5 | O105: 105.74 | P105: 0.07585205298 | Q105: 0.149413161 | R105: -0.09779900332 | S105: 944.2422 | T105: -81.60318215 | U105: 862.6390178 | V105: no | W105: 5500 | X105: 642.39 | Y105: 3030.15 | AA105: 5437.3602 | AB105: 28447.77 | AC105: 54.373602 | AD105: 0 | AE105: 1300.173188 | AF105: 0 | AG105: 43.13195089 | AH105: 1343.305139 | AI105: -480.6661215 | AM105: New Construction | AN105: 5,500 SF | AO105: Packaged Air Conditioner | AP105: Stand Alone | AQ105: Baseline Roof Insulation | AR105: Replace Windows | AS105: Baseline Infiltration | AT105: Baseline Lighting Levels | AU105: No Daylighting Sensors | AV105: No Occupancy Sensors | AW105: Install Plug Load Controls | AX105: Baseline HVAC Equipment
A106: new90.1-2004 | B106: 5500 ft2 | C106: psz-ac | D106: stand-alone | E106: new90.1-20045500 ft2psz-acstand-alone | F106: base-roof | G106: eff-win | H106: base-inf | I106: base-lpd | J106: no-day | K106: no-occ | L106: red-epd | M106: high-eff | N106: 192.18 | O106: 105.74 | P106: 0.07995643045 | Q106: 0.1552156139 | R106: -0.09779900332 | S106: 980.9118 | T106: -81.60318215 | U106: 899.3086178 | V106: no | W106: 5500 | X106: 642.39 | Y106: 3030.15 | AA106: 7692.3602 | AB106: 61942.77 | AC106: 76.923602 | AD106: 0 | AE106: 1839.385312 | AF106: 0 | AG106: 44.96543089 | AH106: 1884.350743 | AI106: -985.042125 | AM106: New Construction | AN106: 5,500 SF | AO106: Packaged Air Conditioner | AP106: Stand Alone | AQ106: Baseline Roof Insulation | AR106: Replace Windows | AS106: Baseline Infiltration | AT106: Baseline Lighting Levels | AU106: No Daylighting Sensors | AV106: No Occupancy Sensors | AW106: Install Plug Load Controls | AX106: Install High Efficiency HVAC Equipment
A107: new90.1-2004 | B107: 5500 ft2 | C107: psz-ac | D107: stand-alone | E107: new90.1-20045500 ft2psz-acstand-alone | F107: base-roof | G107: eff-win | H107: base-inf | I107: base-lpd | J107: no-day | K107: yes-occ | L107: base-epd | M107: base-eff | N107: 209.59 | O107: 100.32 | P107: 0.04289074463 | Q107: 0.07868477735 | R107: -0.0415282392 | S107: 497.262 | T107: -34.65103276 | U107: 462.6109672 | V107: no | W107: 5500 | X107: 642.39 | Y107: 3030.15 | AA107: 6592.3602 | AB107: 29602.77 | AC107: 65.923602 | AD107: 0 | AE107: 1576.355008 | AF107: 0 | AG107: 23.13054836 | AH107: 1599.485556 | AI107: -1136.874589 | AM107: New Construction | AN107: 5,500 SF | AO107: Packaged Air Conditioner | AP107: Stand Alone | AQ107: Baseline Roof Insulation | AR107: Replace Windows | AS107: Baseline Infiltration | AT107: Baseline Lighting Levels | AU107: No Daylighting Sensors | AV107: Install Occupancy Sensors | AW107: No Plug Load Control | AX107: Baseline HVAC Equipment
A108: new90.1-2004 | B108: 5500 ft2 | C108: psz-ac | D108: stand-alone | E108: new90.1-20045500 ft2psz-acstand-alone | F108: base-roof | G108: eff-win | H108: base-inf | I108: base-lpd | J108: no-day | K108: yes-occ | L108: base-epd | M108: high-eff | N108: 208.23 | O108: 100.32 | P108: 0.04708983851 | Q108: 0.08466306211 | R108: -0.0415282392 | S108: 535.0428 | T108: -34.65103276 | U108: 500.3917672 | V108: no | W108: 5500 | X108: 642.39 | Y108: 3030.15 | AA108: 8847.3602 | AB108: 63097.77 | AC108: 88.473602 | AD108: 0 | AE108: 2115.567131 | AF108: 0 | AG108: 25.01958836 | AH108: 2140.58672 | AI108: -1640.194952 | AM108: New Construction | AN108: 5,500 SF | AO108: Packaged Air Conditioner | AP108: Stand Alone | AQ108: Baseline Roof Insulation | AR108: Replace Windows | AS108: Baseline Infiltration | AT108: Baseline Lighting Levels | AU108: No Daylighting Sensors | AV108: Install Occupancy Sensors | AW108: No Plug Load Control | AX108: Install High Efficiency HVAC Equipment
A109: new90.1-2004 | B109: 5500 ft2 | C109: psz-ac | D109: stand-alone | E109: new90.1-20045500 ft2psz-acstand-alone | F109: base-roof | G109: eff-win | H109: base-inf | I109: base-lpd | J109: no-day | K109: yes-occ | L109: red-epd | M109: base-eff | N109: 178.82 | O109: 112.01 | P109: 0.1018359196 | Q109: 0.21394347 | R109: -0.1628945183 | S109: 1352.0526 | T109: -135.918676 | U109: 1216.133924 | V109: no | W109: 5500 | X109: 642.39 | Y109: 3030.15 | AA109: 7417.3602 | AB109: 30427.77 | AC109: 74.173602 | AD109: 0 | AE109: 1773.627736 | AF109: 0 | AG109: 60.8066962 | AH109: 1834.434432 | AI109: -618.3005081 | AM109: New Construction | AN109: 5,500 SF | AO109: Packaged Air Conditioner | AP109: Stand Alone | AQ109: Baseline Roof Insulation | AR109: Replace Windows | AS109: Baseline Infiltration | AT109: Baseline Lighting Levels | AU109: No Daylighting Sensors | AV109: Install Occupancy Sensors | AW109: Install Plug Load Controls | AX109: Baseline HVAC Equipment
A110: new90.1-2004 | B110: 5500 ft2 | C110: psz-ac | D110: stand-alone | E110: new90.1-20045500 ft2psz-acstand-alone | F110: base-roof | G110: eff-win | H110: base-inf | I110: base-lpd | J110: no-day | K110: yes-occ | L110: red-epd | M110: high-eff | N110: 177.63 | O110: 112.01 | P110: 0.1055298593 | Q110: 0.2191744692 | R110: -0.1628945183 | S110: 1385.1108 | T110: -135.918676 | U110: 1249.192124 | V110: no | W110: 5500 | X110: 642.39 | Y110: 3030.15 | AA110: 9672.3602 | AB110: 63922.77 | AC110: 96.723602 | AD110: 0 | AE110: 2312.839859 | AF110: 0 | AG110: 62.4596062 | AH110: 2375.299466 | AI110: -1126.107342 | AM110: New Construction | AN110: 5,500 SF | AO110: Packaged Air Conditioner | AP110: Stand Alone | AQ110: Baseline Roof Insulation | AR110: Replace Windows | AS110: Baseline Infiltration | AT110: Baseline Lighting Levels | AU110: No Daylighting Sensors | AV110: Install Occupancy Sensors | AW110: Install Plug Load Controls | AX110: Install High Efficiency HVAC Equipment
A111: new90.1-2004 | B111: 5500 ft2 | C111: psz-ac | D111: stand-alone | E111: new90.1-20045500 ft2psz-acstand-alone | F111: base-roof | G111: eff-win | H111: base-inf | I111: base-lpd | J111: yes-day | K111: no-occ | L111: base-epd | M111: base-eff | N111: 201.51 | O111: 102.94 | P111: 0.05976605048 | Q111: 0.1142028221 | R111: -0.06872923588 | S111: 721.7244 | T111: -57.34745922 | U111: 664.3769408 | V111: no | W111: 5500 | X111: 642.39 | Y111: 3030.15 | AA111: 7637.3602 | AB111: 46377.77 | AC111: 76.373602 | AD111: 0 | AE111: 1826.233797 | AF111: 0 | AG111: 33.21884704 | AH111: 1859.452644 | AI111: -1195.075703 | AM111: New Construction | AN111: 5,500 SF | AO111: Packaged Air Conditioner | AP111: Stand Alone | AQ111: Baseline Roof Insulation | AR111: Replace Windows | AS111: Baseline Infiltration | AT111: Baseline Lighting Levels | AU111: Install Daylighting Sensors | AV111: No Occupancy Sensors | AW111: No Plug Load Control | AX111: Baseline HVAC Equipment
A112: new90.1-2004 | B112: 5500 ft2 | C112: psz-ac | D112: stand-alone | E112: new90.1-20045500 ft2psz-acstand-alone | F112: base-roof | G112: eff-win | H112: base-inf | I112: base-lpd | J112: yes-day | K112: no-occ | L112: base-epd | M112: high-eff | N112: 200.22 | O112: 102.94 | P112: 0.06374413942 | Q112: 0.119873401 | R112: -0.06872923588 | S112: 757.5606 | T112: -57.34745922 | U112: 700.2131408 | V112: no | W112: 5500 | X112: 642.39 | Y112: 3030.15 | AA112: 9892.3602 | AB112: 79872.77 | AC112: 98.923602 | AD112: 0 | AE112: 2365.44592 | AF112: 0 | AG112: 35.01065704 | AH112: 2400.456577 | AI112: -1700.243437 | AM112: New Construction | AN112: 5,500 SF | AO112: Packaged Air Conditioner | AP112: Stand Alone | AQ112: Baseline Roof Insulation | AR112: Replace Windows | AS112: Baseline Infiltration | AT112: Baseline Lighting Levels | AU112: Install Daylighting Sensors | AV112: No Occupancy Sensors | AW112: No Plug Load Control | AX112: Install High Efficiency HVAC Equipment
A113: new90.1-2004 | B113: 5500 ft2 | C113: psz-ac | D113: stand-alone | E113: new90.1-20045500 ft2psz-acstand-alone | F113: base-roof | G113: eff-win | H113: base-inf | I113: base-lpd | J113: yes-day | K113: no-occ | L113: red-epd | M113: base-eff | N113: 170.8 | O113: 114.69 | P113: 0.1183323599 | Q113: 0.2491977669 | R113: -0.1907184385 | S113: 1574.8482 | T113: -159.134868 | U113: 1415.713332 | V113: no | W113: 5500 | X113: 642.39 | Y113: 3030.15 | AA113: 8462.3602 | AB113: 47202.77 | AC113: 84.623602 | AD113: 0 | AE113: 2023.506525 | AF113: 0 | AG113: 70.7856666 | AH113: 2094.292191 | AI113: -678.5788594 | AM113: New Construction | AN113: 5,500 SF | AO113: Packaged Air Conditioner | AP113: Stand Alone | AQ113: Baseline Roof Insulation | AR113: Replace Windows | AS113: Baseline Infiltration | AT113: Baseline Lighting Levels | AU113: Install Daylighting Sensors | AV113: No Occupancy Sensors | AW113: Install Plug Load Controls | AX113: Baseline HVAC Equipment
A114: new90.1-2004 | B114: 5500 ft2 | C114: psz-ac | D114: stand-alone | E114: new90.1-20045500 ft2psz-acstand-alone | F114: base-roof | G114: eff-win | H114: base-inf | I114: base-lpd | J114: yes-day | K114: no-occ | L114: red-epd | M114: high-eff | N114: 169.68 | O114: 114.69 | P114: 0.1217895086 | Q114: 0.2541210603 | R114: -0.1907184385 | S114: 1605.9618 | T114: -159.134868 | U114: 1446.826932 | V114: no | W114: 5500 | X114: 642.39 | Y114: 3030.15 | AA114: 10717.3602 | AB114: 80697.77 | AC114: 107.173602 | AD114: 0 | AE114: 2562.718648 | AF114: 0 | AG114: 72.3413466 | AH114: 2635.059995 | AI114: -1188.233063 | AM114: New Construction | AN114: 5,500 SF | AO114: Packaged Air Conditioner | AP114: Stand Alone | AQ114: Baseline Roof Insulation | AR114: Replace Windows | AS114: Baseline Infiltration | AT114: Baseline Lighting Levels | AU114: Install Daylighting Sensors | AV114: No Occupancy Sensors | AW114: Install Plug Load Controls | AX114: Install High Efficiency HVAC Equipment
A115: new90.1-2004 | B115: 5500 ft2 | C115: psz-ac | D115: stand-alone | E115: new90.1-20045500 ft2psz-acstand-alone | F115: base-roof | G115: eff-win | H115: base-inf | I115: base-lpd | J115: yes-day | K115: yes-occ | L115: base-epd | M115: base-eff | N115: 191.4 | O115: 107.45 | P115: 0.07706758015 | Q115: 0.158644336 | R115: -0.1155523256 | S115: 1002.5802 | T115: -96.41649866 | U115: 906.1637013 | V115: no | W115: 5500 | X115: 642.39 | Y115: 3030.15 | AA115: 9617.3602 | AB115: 48357.77 | AC115: 96.173602 | AD115: 0 | AE115: 2299.688344 | AF115: 0 | AG115: 45.30818507 | AH115: 2344.996529 | AI115: -1438.832828 | AM115: New Construction | AN115: 5,500 SF | AO115: Packaged Air Conditioner | AP115: Stand Alone | AQ115: Baseline Roof Insulation | AR115: Replace Windows | AS115: Baseline Infiltration | AT115: Baseline Lighting Levels | AU115: Install Daylighting Sensors | AV115: Install Occupancy Sensors | AW115: No Plug Load Control | AX115: Baseline HVAC Equipment
A116: new90.1-2004 | B116: 5500 ft2 | C116: psz-ac | D116: stand-alone | E116: new90.1-20045500 ft2psz-acstand-alone | F116: base-roof | G116: eff-win | H116: base-inf | I116: base-lpd | J116: yes-day | K116: yes-occ | L116: base-epd | M116: high-eff | N116: 190.2 | O116: 107.45 | P116: 0.08076151988 | Q116: 0.1639192932 | R116: -0.1155523256 | S116: 1035.9162 | T116: -96.41649866 | U116: 939.4997013 | V116: no | W116: 5500 | X116: 642.39 | Y116: 3030.15 | AA116: 11872.3602 | AB116: 81852.77 | AC116: 118.723602 | AD116: 0 | AE116: 2838.900468 | AF116: 0 | AG116: 46.97498507 | AH116: 2885.875453 | AI116: -1946.375752 | AM116: New Construction | AN116: 5,500 SF | AO116: Packaged Air Conditioner | AP116: Stand Alone | AQ116: Baseline Roof Insulation | AR116: Replace Windows | AS116: Baseline Infiltration | AT116: Baseline Lighting Levels | AU116: Install Daylighting Sensors | AV116: Install Occupancy Sensors | AW116: No Plug Load Control | AX116: Install High Efficiency HVAC Equipment
A117: new90.1-2004 | B117: 5500 ft2 | C117: psz-ac | D117: stand-alone | E117: new90.1-20045500 ft2psz-acstand-alone | F117: base-roof | G117: eff-win | H117: base-inf | I117: base-lpd | J117: yes-day | K117: yes-occ | L117: red-epd | M117: base-eff | N117: 160.69 | O117: 119.45 | P117: 0.1348761583 | Q117: 0.2936392808 | R117: -0.2401370432 | S117: 1855.704 | T117: -200.3695969 | U117: 1655.334403 | V117: no | W117: 5500 | X117: 642.39 | Y117: 3030.15 | AA117: 10442.3602 | AB117: 49182.77 | AC117: 104.423602 | AD117: 0 | AE117: 2496.961072 | AF117: 0 | AG117: 82.76672015 | AH117: 2579.727793 | AI117: -924.3933895 | AM117: New Construction | AN117: 5,500 SF | AO117: Packaged Air Conditioner | AP117: Stand Alone | AQ117: Baseline Roof Insulation | AR117: Replace Windows | AS117: Baseline Infiltration | AT117: Baseline Lighting Levels | AU117: Install Daylighting Sensors | AV117: Install Occupancy Sensors | AW117: Install Plug Load Controls | AX117: Baseline HVAC Equipment
A118: new90.1-2004 | B118: 5500 ft2 | C118: psz-ac | D118: stand-alone | E118: new90.1-20045500 ft2psz-acstand-alone | F118: base-roof | G118: eff-win | H118: base-inf | I118: base-lpd | J118: yes-day | K118: yes-occ | L118: red-epd | M118: high-eff | N118: 159.65 | O118: 119.45 | P118: 0.1380649439 | Q118: 0.2982109104 | R118: -0.2401370432 | S118: 1884.5952 | T118: -200.3695969 | U118: 1684.225603 | V118: no | W118: 5500 | X118: 642.39 | Y118: 3030.15 | AA118: 12697.3602 | AB118: 82677.77 | AC118: 126.973602 | AD118: 0 | AE118: 3036.173196 | AF118: 0 | AG118: 84.21128015 | AH118: 3120.384476 | AI118: -1436.158873 | AM118: New Construction | AN118: 5,500 SF | AO118: Packaged Air Conditioner | AP118: Stand Alone | AQ118: Baseline Roof Insulation | AR118: Replace Windows | AS118: Baseline Infiltration | AT118: Baseline Lighting Levels | AU118: Install Daylighting Sensors | AV118: Install Occupancy Sensors | AW118: Install Plug Load Controls | AX118: Install High Efficiency HVAC Equipment
A119: new90.1-2004 | B119: 5500 ft2 | C119: psz-ac | D119: stand-alone | E119: new90.1-20045500 ft2psz-acstand-alone | F119: base-roof | G119: eff-win | H119: base-inf | I119: 40 fc | J119: no-day | K119: no-occ | L119: base-epd | M119: base-eff | N119: 224.28 | O119: 94.42 | P119: 0.01573870902 | Q119: 0.01411051035 | R119: 0.01972591362 | S119: 89.1738 | T119: 16.45924056 | U119: 105.6330406 | V119: no | W119: 5500 | X119: 642.39 | Y119: 3030.15 | AA119: 8242.3602 | AB119: 38952.77 | AC119: 82.423602 | AD119: 0 | AE119: 1970.900464 | AF119: -660 | AG119: 5.281652028 | AH119: 1316.182116 | AI119: -1210.549076 | AM119: New Construction | AN119: 5,500 SF | AO119: Packaged Air Conditioner | AP119: Stand Alone | AQ119: Baseline Roof Insulation | AR119: Replace Windows | AS119: Baseline Infiltration | AT119: Reduce Lighting Levels to 40 fc | AU119: No Daylighting Sensors | AV119: No Occupancy Sensors | AW119: No Plug Load Control | AX119: Baseline HVAC Equipment
A120: new90.1-2004 | B120: 5500 ft2 | C120: psz-ac | D120: stand-alone | E120: new90.1-20045500 ft2psz-acstand-alone | F120: base-roof | G120: eff-win | H120: base-inf | I120: 40 fc | J120: no-day | K120: no-occ | L120: base-epd | M120: high-eff | N120: 222.78 | O120: 94.42 | P120: 0.02039559884 | Q120: 0.02070420678 | R120: 0.01972591362 | S120: 130.8438 | T120: 16.45924056 | U120: 147.3030406 | V120: no | W120: 5500 | X120: 642.39 | Y120: 3030.15 | AA120: 10497.3602 | AB120: 72447.77 | AC120: 104.973602 | AD120: 0 | AE120: 2510.112588 | AF120: -660 | AG120: 7.365152028 | AH120: 1857.47774 | AI120: -1710.174699 | AM120: New Construction | AN120: 5,500 SF | AO120: Packaged Air Conditioner | AP120: Stand Alone | AQ120: Baseline Roof Insulation | AR120: Replace Windows | AS120: Baseline Infiltration | AT120: Reduce Lighting Levels to 40 fc | AU120: No Daylighting Sensors | AV120: No Occupancy Sensors | AW120: No Plug Load Control | AX120: Install High Efficiency HVAC Equipment
A121: new90.1-2004 | B121: 5500 ft2 | C121: psz-ac | D121: stand-alone | E121: new90.1-20045500 ft2psz-acstand-alone | F121: base-roof | G121: eff-win | H121: base-inf | I121: 40 fc | J121: no-day | K121: no-occ | L121: red-epd | M121: base-eff | N121: 193.5 | O121: 105.74 | P121: 0.07585205298 | Q121: 0.149413161 | R121: -0.09779900332 | S121: 944.2422 | T121: -81.60318215 | U121: 862.6390178 | V121: no | W121: 5500 | X121: 642.39 | Y121: 3030.15 | AA121: 9067.3602 | AB121: 39777.77 | AC121: 90.673602 | AD121: 0 | AE121: 2168.173192 | AF121: -660 | AG121: 43.13195089 | AH121: 1551.305143 | AI121: -688.6661252 | AM121: New Construction | AN121: 5,500 SF | AO121: Packaged Air Conditioner | AP121: Stand Alone | AQ121: Baseline Roof Insulation | AR121: Replace Windows | AS121: Baseline Infiltration | AT121: Reduce Lighting Levels to 40 fc | AU121: No Daylighting Sensors | AV121: No Occupancy Sensors | AW121: Install Plug Load Controls | AX121: Baseline HVAC Equipment
A122: new90.1-2004 | B122: 5500 ft2 | C122: psz-ac | D122: stand-alone | E122: new90.1-20045500 ft2psz-acstand-alone | F122: base-roof | G122: eff-win | H122: base-inf | I122: 40 fc | J122: no-day | K122: no-occ | L122: red-epd | M122: high-eff | N122: 192.18 | O122: 105.74 | P122: 0.07995643045 | Q122: 0.1552156139 | R122: -0.09779900332 | S122: 980.9118 | T122: -81.60318215 | U122: 899.3086178 | V122: no | W122: 5500 | X122: 642.39 | Y122: 3030.15 | AA122: 11322.3602 | AB122: 73272.77 | AC122: 113.223602 | AD122: 0 | AE122: 2707.385316 | AF122: -660 | AG122: 44.96543089 | AH122: 2092.350747 | AI122: -1193.042129 | AM122: New Construction | AN122: 5,500 SF | AO122: Packaged Air Conditioner | AP122: Stand Alone | AQ122: Baseline Roof Insulation | AR122: Replace Windows | AS122: Baseline Infiltration | AT122: Reduce Lighting Levels to 40 fc | AU122: No Daylighting Sensors | AV122: No Occupancy Sensors | AW122: Install Plug Load Controls | AX122: Install High Efficiency HVAC Equipment
A123: new90.1-2004 | B123: 5500 ft2 | C123: psz-ac | D123: stand-alone | E123: new90.1-20045500 ft2psz-acstand-alone | F123: base-roof | G123: eff-win | H123: base-inf | I123: 40 fc | J123: no-day | K123: yes-occ | L123: base-epd | M123: base-eff | N123: 209.59 | O123: 100.32 | P123: 0.04289074463 | Q123: 0.07868477735 | R123: -0.0415282392 | S123: 497.262 | T123: -34.65103276 | U123: 462.6109672 | V123: no | W123: 5500 | X123: 642.39 | Y123: 3030.15 | AA123: 10222.3602 | AB123: 40932.77 | AC123: 102.223602 | AD123: 0 | AE123: 2444.355012 | AF123: -660 | AG123: 23.13054836 | AH123: 1807.48556 | AI123: -1344.874593 | AM123: New Construction | AN123: 5,500 SF | AO123: Packaged Air Conditioner | AP123: Stand Alone | AQ123: Baseline Roof Insulation | AR123: Replace Windows | AS123: Baseline Infiltration | AT123: Reduce Lighting Levels to 40 fc | AU123: No Daylighting Sensors | AV123: Install Occupancy Sensors | AW123: No Plug Load Control | AX123: Baseline HVAC Equipment
A124: new90.1-2004 | B124: 5500 ft2 | C124: psz-ac | D124: stand-alone | E124: new90.1-20045500 ft2psz-acstand-alone | F124: base-roof | G124: eff-win | H124: base-inf | I124: 40 fc | J124: no-day | K124: yes-occ | L124: base-epd | M124: high-eff | N124: 208.23 | O124: 100.32 | P124: 0.04708983851 | Q124: 0.08466306211 | R124: -0.0415282392 | S124: 535.0428 | T124: -34.65103276 | U124: 500.3917672 | V124: no | W124: 5500 | X124: 642.39 | Y124: 3030.15 | AA124: 12477.3602 | AB124: 74427.77 | AC124: 124.773602 | AD124: 0 | AE124: 2983.567135 | AF124: -660 | AG124: 25.01958836 | AH124: 2348.586723 | AI124: -1848.194956 | AM124: New Construction | AN124: 5,500 SF | AO124: Packaged Air Conditioner | AP124: Stand Alone | AQ124: Baseline Roof Insulation | AR124: Replace Windows | AS124: Baseline Infiltration | AT124: Reduce Lighting Levels to 40 fc | AU124: No Daylighting Sensors | AV124: Install Occupancy Sensors | AW124: No Plug Load Control | AX124: Install High Efficiency HVAC Equipment
A125: new90.1-2004 | B125: 5500 ft2 | C125: psz-ac | D125: stand-alone | E125: new90.1-20045500 ft2psz-acstand-alone | F125: base-roof | G125: eff-win | H125: base-inf | I125: 40 fc | J125: no-day | K125: yes-occ | L125: red-epd | M125: base-eff | N125: 178.82 | O125: 112.01 | P125: 0.1018359196 | Q125: 0.21394347 | R125: -0.1628945183 | S125: 1352.0526 | T125: -135.918676 | U125: 1216.133924 | V125: no | W125: 5500 | X125: 642.39 | Y125: 3030.15 | AA125: 11047.3602 | AB125: 41757.77 | AC125: 110.473602 | AD125: 0 | AE125: 2641.62774 | AF125: -660 | AG125: 60.8066962 | AH125: 2042.434436 | AI125: -826.3005119 | AM125: New Construction | AN125: 5,500 SF | AO125: Packaged Air Conditioner | AP125: Stand Alone | AQ125: Baseline Roof Insulation | AR125: Replace Windows | AS125: Baseline Infiltration | AT125: Reduce Lighting Levels to 40 fc | AU125: No Daylighting Sensors | AV125: Install Occupancy Sensors | AW125: Install Plug Load Controls | AX125: Baseline HVAC Equipment
A126: new90.1-2004 | B126: 5500 ft2 | C126: psz-ac | D126: stand-alone | E126: new90.1-20045500 ft2psz-acstand-alone | F126: base-roof | G126: eff-win | H126: base-inf | I126: 40 fc | J126: no-day | K126: yes-occ | L126: red-epd | M126: high-eff | N126: 177.63 | O126: 112.01 | P126: 0.1055298593 | Q126: 0.2191744692 | R126: -0.1628945183 | S126: 1385.1108 | T126: -135.918676 | U126: 1249.192124 | V126: no | W126: 5500 | X126: 642.39 | Y126: 3030.15 | AA126: 13302.3602 | AB126: 75252.77 | AC126: 133.023602 | AD126: 0 | AE126: 3180.839863 | AF126: -660 | AG126: 62.4596062 | AH126: 2583.299469 | AI126: -1334.107345 | AM126: New Construction | AN126: 5,500 SF | AO126: Packaged Air Conditioner | AP126: Stand Alone | AQ126: Baseline Roof Insulation | AR126: Replace Windows | AS126: Baseline Infiltration | AT126: Reduce Lighting Levels to 40 fc | AU126: No Daylighting Sensors | AV126: Install Occupancy Sensors | AW126: Install Plug Load Controls | AX126: Install High Efficiency HVAC Equipment
A127: new90.1-2004 | B127: 5500 ft2 | C127: psz-ac | D127: stand-alone | E127: new90.1-20045500 ft2psz-acstand-alone | F127: base-roof | G127: eff-win | H127: base-inf | I127: 40 fc | J127: yes-day | K127: no-occ | L127: base-epd | M127: base-eff | N127: 201.51 | O127: 102.94 | P127: 0.05976605048 | Q127: 0.1142028221 | R127: -0.06872923588 | S127: 721.7244 | T127: -57.34745922 | U127: 664.3769408 | V127: no | W127: 5500 | X127: 642.39 | Y127: 3030.15 | AA127: 11267.3602 | AB127: 57707.77 | AC127: 112.673602 | AD127: 0 | AE127: 2694.2338 | AF127: -660 | AG127: 33.21884704 | AH127: 2067.452648 | AI127: -1403.075707 | AM127: New Construction | AN127: 5,500 SF | AO127: Packaged Air Conditioner | AP127: Stand Alone | AQ127: Baseline Roof Insulation | AR127: Replace Windows | AS127: Baseline Infiltration | AT127: Reduce Lighting Levels to 40 fc | AU127: Install Daylighting Sensors | AV127: No Occupancy Sensors | AW127: No Plug Load Control | AX127: Baseline HVAC Equipment
A128: new90.1-2004 | B128: 5500 ft2 | C128: psz-ac | D128: stand-alone | E128: new90.1-20045500 ft2psz-acstand-alone | F128: base-roof | G128: eff-win | H128: base-inf | I128: 40 fc | J128: yes-day | K128: no-occ | L128: base-epd | M128: high-eff | N128: 200.22 | O128: 102.94 | P128: 0.06374413942 | Q128: 0.119873401 | R128: -0.06872923588 | S128: 757.5606 | T128: -57.34745922 | U128: 700.2131408 | V128: no | W128: 5500 | X128: 642.39 | Y128: 3030.15 | AA128: 13522.3602 | AB128: 91202.77 | AC128: 135.223602 | AD128: 0 | AE128: 3233.445924 | AF128: -660 | AG128: 35.01065704 | AH128: 2608.456581 | AI128: -1908.24344 | AM128: New Construction | AN128: 5,500 SF | AO128: Packaged Air Conditioner | AP128: Stand Alone | AQ128: Baseline Roof Insulation | AR128: Replace Windows | AS128: Baseline Infiltration | AT128: Reduce Lighting Levels to 40 fc | AU128: Install Daylighting Sensors | AV128: No Occupancy Sensors | AW128: No Plug Load Control | AX128: Install High Efficiency HVAC Equipment
A129: new90.1-2004 | B129: 5500 ft2 | C129: psz-ac | D129: stand-alone | E129: new90.1-20045500 ft2psz-acstand-alone | F129: base-roof | G129: eff-win | H129: base-inf | I129: 40 fc | J129: yes-day | K129: no-occ | L129: red-epd | M129: base-eff | N129: 170.8 | O129: 114.69 | P129: 0.1183323599 | Q129: 0.2491977669 | R129: -0.1907184385 | S129: 1574.8482 | T129: -159.134868 | U129: 1415.713332 | V129: no | W129: 5500 | X129: 642.39 | Y129: 3030.15 | AA129: 12092.3602 | AB129: 58532.77 | AC129: 120.923602 | AD129: 0 | AE129: 2891.506529 | AF129: -660 | AG129: 70.7856666 | AH129: 2302.292195 | AI129: -886.5788632 | AM129: New Construction | AN129: 5,500 SF | AO129: Packaged Air Conditioner | AP129: Stand Alone | AQ129: Baseline Roof Insulation | AR129: Replace Windows | AS129: Baseline Infiltration | AT129: Reduce Lighting Levels to 40 fc | AU129: Install Daylighting Sensors | AV129: No Occupancy Sensors | AW129: Install Plug Load Controls | AX129: Baseline HVAC Equipment
A130: new90.1-2004 | B130: 5500 ft2 | C130: psz-ac | D130: stand-alone | E130: new90.1-20045500 ft2psz-acstand-alone | F130: base-roof | G130: eff-win | H130: base-inf | I130: 40 fc | J130: yes-day | K130: no-occ | L130: red-epd | M130: high-eff | N130: 169.68 | O130: 114.69 | P130: 0.1217895086 | Q130: 0.2541210603 | R130: -0.1907184385 | S130: 1605.9618 | T130: -159.134868 | U130: 1446.826932 | V130: no | W130: 5500 | X130: 642.39 | Y130: 3030.15 | AA130: 14347.3602 | AB130: 92027.77 | AC130: 143.473602 | AD130: 0 | AE130: 3430.718652 | AF130: -660 | AG130: 72.3413466 | AH130: 2843.059999 | AI130: -1396.233067 | AM130: New Construction | AN130: 5,500 SF | AO130: Packaged Air Conditioner | AP130: Stand Alone | AQ130: Baseline Roof Insulation | AR130: Replace Windows | AS130: Baseline Infiltration | AT130: Reduce Lighting Levels to 40 fc | AU130: Install Daylighting Sensors | AV130: No Occupancy Sensors | AW130: Install Plug Load Controls | AX130: Install High Efficiency HVAC Equipment
A131: new90.1-2004 | B131: 5500 ft2 | C131: psz-ac | D131: stand-alone | E131: new90.1-20045500 ft2psz-acstand-alone | F131: base-roof | G131: eff-win | H131: base-inf | I131: 40 fc | J131: yes-day | K131: yes-occ | L131: base-epd | M131: base-eff | N131: 191.4 | O131: 107.45 | P131: 0.07706758015 | Q131: 0.158644336 | R131: -0.1155523256 | S131: 1002.5802 | T131: -96.41649866 | U131: 906.1637013 | V131: no | W131: 5500 | X131: 642.39 | Y131: 3030.15 | AA131: 13247.3602 | AB131: 59687.77 | AC131: 132.473602 | AD131: 0 | AE131: 3167.688348 | AF131: -660 | AG131: 45.30818507 | AH131: 2552.996533 | AI131: -1646.832832 | AM131: New Construction | AN131: 5,500 SF | AO131: Packaged Air Conditioner | AP131: Stand Alone | AQ131: Baseline Roof Insulation | AR131: Replace Windows | AS131: Baseline Infiltration | AT131: Reduce Lighting Levels to 40 fc | AU131: Install Daylighting Sensors | AV131: Install Occupancy Sensors | AW131: No Plug Load Control | AX131: Baseline HVAC Equipment
A132: new90.1-2004 | B132: 5500 ft2 | C132: psz-ac | D132: stand-alone | E132: new90.1-20045500 ft2psz-acstand-alone | F132: base-roof | G132: eff-win | H132: base-inf | I132: 40 fc | J132: yes-day | K132: yes-occ | L132: base-epd | M132: high-eff | N132: 190.2 | O132: 107.45 | P132: 0.08076151988 | Q132: 0.1639192932 | R132: -0.1155523256 | S132: 1035.9162 | T132: -96.41649866 | U132: 939.4997013 | V132: no | W132: 5500 | X132: 642.39 | Y132: 3030.15 | AA132: 15502.3602 | AB132: 93182.77 | AC132: 155.023602 | AD132: 0 | AE132: 3706.900472 | AF132: -660 | AG132: 46.97498507 | AH132: 3093.875457 | AI132: -2154.375755 | AM132: New Construction | AN132: 5,500 SF | AO132: Packaged Air Conditioner | AP132: Stand Alone | AQ132: Baseline Roof Insulation | AR132: Replace Windows | AS132: Baseline Infiltration | AT132: Reduce Lighting Levels to 40 fc | AU132: Install Daylighting Sensors | AV132: Install Occupancy Sensors | AW132: No Plug Load Control | AX132: Install High Efficiency HVAC Equipment
A133: new90.1-2004 | B133: 5500 ft2 | C133: psz-ac | D133: stand-alone | E133: new90.1-20045500 ft2psz-acstand-alone | F133: base-roof | G133: eff-win | H133: base-inf | I133: 40 fc | J133: yes-day | K133: yes-occ | L133: red-epd | M133: base-eff | N133: 160.69 | O133: 119.45 | P133: 0.1348761583 | Q133: 0.2936392808 | R133: -0.2401370432 | S133: 1855.704 | T133: -200.3695969 | U133: 1655.334403 | V133: no | W133: 5500 | X133: 642.39 | Y133: 3030.15 | AA133: 14072.3602 | AB133: 60512.77 | AC133: 140.723602 | AD133: 0 | AE133: 3364.961076 | AF133: -660 | AG133: 82.76672015 | AH133: 2787.727796 | AI133: -1132.393393 | AM133: New Construction | AN133: 5,500 SF | AO133: Packaged Air Conditioner | AP133: Stand Alone | AQ133: Baseline Roof Insulation | AR133: Replace Windows | AS133: Baseline Infiltration | AT133: Reduce Lighting Levels to 40 fc | AU133: Install Daylighting Sensors | AV133: Install Occupancy Sensors | AW133: Install Plug Load Controls | AX133: Baseline HVAC Equipment
A134: new90.1-2004 | B134: 5500 ft2 | C134: psz-ac | D134: stand-alone | E134: new90.1-20045500 ft2psz-acstand-alone | F134: base-roof | G134: eff-win | H134: base-inf | I134: 40 fc | J134: yes-day | K134: yes-occ | L134: red-epd | M134: high-eff | N134: 159.65 | O134: 119.45 | P134: 0.1380649439 | Q134: 0.2982109104 | R134: -0.2401370432 | S134: 1884.5952 | T134: -200.3695969 | U134: 1684.225603 | V134: no | W134: 5500 | X134: 642.39 | Y134: 3030.15 | AA134: 16327.3602 | AB134: 94007.77 | AC134: 163.273602 | AD134: 0 | AE134: 3904.1732 | AF134: -660 | AG134: 84.21128015 | AH134: 3328.38448 | AI134: -1644.158877 | AM134: New Construction | AN134: 5,500 SF | AO134: Packaged Air Conditioner | AP134: Stand Alone | AQ134: Baseline Roof Insulation | AR134: Replace Windows | AS134: Baseline Infiltration | AT134: Reduce Lighting Levels to 40 fc | AU134: Install Daylighting Sensors | AV134: Install Occupancy Sensors | AW134: Install Plug Load Controls | AX134: Install High Efficiency HVAC Equipment
A135: new90.1-2004 | B135: 5500 ft2 | C135: psz-ac | D135: stand-alone | E135: new90.1-20045500 ft2psz-acstand-alone | F135: base-roof | G135: eff-win | H135: base-inf | I135: 25 fc | J135: no-day | K135: no-occ | L135: base-epd | M135: base-eff | N135: 209.59 | O135: 100.32 | P135: 0.04289074463 | Q135: 0.07868477735 | R135: -0.0415282392 | S135: 497.262 | T135: -34.65103276 | U135: 462.6109672 | V135: =IF(P135>0.2,"yes","no") -> no | W135: =IF(B135="5500 ft2",5500,IF(B135="10000 ft2",10000,25000)) -> 5500 | X135: =IF(B135="5500 ft2",IF(D135="stand-alone",642.39,IF(D135="ad-e&flr",522.37,402.25)),IF(B135="10000 ft2",IF(D135="stand-alone",866.06,IF(D135="ad-e&flr",704.17,542.29)),IF(B135="25000 ft2",IF(D135="stand-alone",1369.38,IF(D135="ad-e&flr",1113.42,857.45))))) -> 642.39 | Y135: =IF(B135="5500 ft2",IF(D135="stand-alone",3030.15,IF(D135="ad-e&flr",2424.14,1818.13)),IF(B135="10000 ft2",IF(D135="stand-alone",4085.12,IF(D135="ad-e&flr",3268.14,2451.05)),IF(B135="25000 ft2",IF(D135="stand-alone",6459.2,IF(D135="ad-e&flr",5167.32,3875.54))))) -> 3030.15 | AA135: =SUM(IF(F135="eff-roof",W135*IF(AND(W$4="no",X$4="no"),$C$4,$C$3)),IF(G135="eff-win",X135*IF(W$4="no",$D$4,$D$3),0),IF(H135="red-inf",Y135*IF(W$4="no",$F$4,$F$3),0),IF(I135="25 fc",W135*IF(W$4="no",$H$4,$H$3),0),IF(I135="40 fc",W135*IF(W$4="no",$G$4,$G$3),0),IF(J135="yes-day",W135*IF(W$4="no",$I$4,$I$3),0),IF(K135="yes-occ",W135*IF(W$4="no",$J$4,$J$3),0),IF(L135="red-epd",W135*IF(W$4="no",$K$4,$K$3),0),IF(AND(M135="high-eff",C135="psz-ac"),W135*IF(AND(W$4="no",Y$4="no"),$L$4,$L$3),0),IF(AND(M135="high-eff",C135="ptac"),W135*IF(AND(W$4="no",Y$4="no"),$M$4,$M$3),0),IF(AND(M135="high-eff",C135="pthp"),W135*IF(AND(W$4="no",Y$4="no"),$N$4,$N$3),0)) -> 8957.3602 | AB135: =SUM(IF(F135="eff-roof",W135*$C$4),IF(G135="eff-win",X135*$D$4,0),IF(H135="red-inf",Y135*$F$4,0),IF(I135="25 fc",W135*$H$4,0),IF(I135="40 fc",W135*$G$4,0),IF(J135="yes-day",W135*$I$4,0),IF(K135="yes-occ",W135*$J$4,0),IF(L135="red-epd",W135*$K$4,0),IF(AND(M135="high-eff",C135="psz-ac"),W135*$L$4,0),IF(AND(M135="high-eff",C135="ptac"),W135*$M$4,0),IF(AND(M135="high-eff",C135="pthp"),W135*$N$4,0)) -> 88947.77 | AC135: 89.573602 | AD135: 0 | AE135: =-PMT($AE$3,$AE$4,AA135+AC135-AD135) -> 2141.870162 | AF135: =SUM(IF(F135="eff-roof",($C$5*W135),0),IF(G135="eff-win",($D$5*X135),0),IF(H135="red-inf",$F$5*(Y135-X135),0),IF(I135="25 fc",($H$5*W135),0),IF(I135="40 fc",($G$5*W135),0),IF(J135="yes-day",($I$5*W135),0),IF(K135="yes-occ",($J$5*W135),0),IF(L135="red-epd",($K$5*W135),0),IF(M135="high-eff",($L$5*W135),0)) -> -1045 | AG135: =0.05*U135 -> 23.13054836 | AH135: 1120.00071 | AI135: =U135-AH135 -> -657.3897429 | AM135: New Construction | AN135: =IF(B135="5500 ft2","5,500 SF",IF(B135="10000 ft2","10,000 SF",IF(B135="25000 ft2","25,000 SF"))) -> 5,500 SF | AO135: Packaged Air Conditioner | AP135: Stand Alone | AQ135: Baseline Roof Insulation | AR135: Replace Windows | AS135: Baseline Infiltration | AT135: =IF(I135="base-lpd","Baseline Lighting Levels",IF(I135="40 fc","Reduce Lighting Levels to 40 fc",IF(I135="25 fc","Reduce Lighting Levels to 25 fc"))) -> Reduce Lighting Levels to 25 fc | AU135: No Daylighting Sensors | AV135: No Occupancy Sensors | AW135: No Plug Load Control | AX135: Baseline HVAC Equipment
A136: new90.1-2004 | B136: 5500 ft2 | C136: psz-ac | D136: stand-alone | E136: new90.1-20045500 ft2psz-acstand-alone | F136: base-roof | G136: eff-win | H136: base-inf | I136: 25 fc | J136: no-day | K136: no-occ | L136: base-epd | M136: high-eff | N136: 208.23 | O136: 100.32 | P136: 0.04708983851 | Q136: 0.08466306211 | R136: -0.0415282392 | S136: =277.8*($N$7-N136)*$S$3 -> 535.0428 | T136: =277.78*($O$7-O136)*$S$4 -> -34.65103276 | U136: =SUM(S136:T136) -> 500.3917672 | V136: no | W136: 5500 | X136: 642.39 | Y136: 3030.15 | AA136: 11212.3602 | AB136: 122442.77 | AC136: =MIN(0.01*AA136,500) -> 112.123602 | AD136: =IF(V136="yes",0,0) -> 0 | AE136: 2681.082285 | AF136: -1045 | AG136: 25.01958836 | AH136: =SUM(AE136:AG136) -> 1661.101874 | AI136: -1160.710106 | AM136: New Construction | AN136: 5,500 SF | AO136: =IF(C136="psz-ac","Packaged Air Conditioner",IF(C136="ptac","Split System Air Conditioner",IF(C136="pthp","Split System Heat Pump"))) -> Packaged Air Conditioner | AP136: =IF(D136="stand-alone","Stand Alone",IF(D136="ad-e&flr","Above Ground, 1 Side Attached",IF(D136="ad-e&w&flr","Above Ground, 2 Sides Attached"))) -> Stand Alone | AQ136: =IF(F136="base-roof","Baseline Roof Insulation",IF(F136="eff-roof","Increased Roof Insulation")) -> Baseline Roof Insulation | AR136: =IF(G136="base-win","Baseline Windows",IF(G136="eff-win","Replace Windows")) -> Replace Windows | AS136: =IF(H136="base-inf","Baseline Infiltration",IF(H136="red-inf","Reduce Infiltration")) -> Baseline Infiltration | AT136: Reduce Lighting Levels to 25 fc | AU136: =IF(J136="no-day","No Daylighting Sensors",IF(J136="yes-day","Install Daylighting Sensors")) -> No Daylighting Sensors | AV136: =IF(K136="no-occ","No Occupancy Sensors",IF(K136="yes-occ","Install Occupancy Sensors")) -> No Occupancy Sensors | AW136: =IF(L136="base-epd","No Plug Load Control",IF(L136="red-epd","Install Plug Load Controls")) -> No Plug Load Control | AX136: =IF(M136="base-eff","Baseline HVAC Equipment",IF(M136="high-eff","Install High Efficiency HVAC Equipment")) -> Install High Efficiency HVAC Equipment
A137: new90.1-2004 | B137: 5500 ft2 | C137: psz-ac | D137: stand-alone | E137: new90.1-20045500 ft2psz-acstand-alone | F137: base-roof | G137: eff-win | H137: base-inf | I137: 25 fc | J137: no-day | K137: no-occ | L137: red-epd | M137: base-eff | N137: 178.82 | O137: 112.01 | P137: 0.1018359196 | Q137: 0.21394347 | R137: -0.1628945183 | S137: 1352.0526 | T137: -135.918676 | U137: 1216.133924 | V137: no | W137: 5500 | X137: 642.39 | Y137: 3030.15 | AA137: 9782.3602 | AB137: 89772.77 | AC137: 97.823602 | AD137: 0 | AE137: 2339.14289 | AF137: -1045 | AG137: 60.8066962 | AH137: 1354.949586 | AI137: -138.8156621 | AM137: =IF(A137="new90.1-2004","New Construction",IF(A137="post1980","Post 1980 Construction",IF(A137="pre1980","Pre 1980 Construction"))) -> New Construction | AN137: 5,500 SF | AO137: Packaged Air Conditioner | AP137: Stand Alone | AQ137: Baseline Roof Insulation | AR137: Replace Windows | AS137: Baseline Infiltration | AT137: Reduce Lighting Levels to 25 fc | AU137: No Daylighting Sensors | AV137: No Occupancy Sensors | AW137: Install Plug Load Controls | AX137: Baseline HVAC Equipment
A138: new90.1-2004 | B138: 5500 ft2 | C138: psz-ac | D138: stand-alone | E138: new90.1-20045500 ft2psz-acstand-alone | F138: base-roof | G138: eff-win | H138: base-inf | I138: 25 fc | J138: no-day | K138: no-occ | L138: red-epd | M138: high-eff | N138: 177.63 | O138: 112.01 | P138: 0.1055298593 | Q138: 0.2191744692 | R138: -0.1628945183 | S138: 1385.1108 | T138: -135.918676 | U138: 1249.192124 | V138: no | W138: 5500 | X138: 642.39 | Y138: 3030.15 | AA138: 12037.3602 | AB138: 123267.77 | AC138: 120.373602 | AD138: 0 | AE138: 2878.355013 | AF138: -1045 | AG138: 62.4596062 | AH138: 1895.81462 | AI138: -646.6224956 | AM138: New Construction | AN138: 5,500 SF | AO138: Packaged Air Conditioner | AP138: Stand Alone | AQ138: Baseline Roof Insulation | AR138: Replace Windows | AS138: Baseline Infiltration | AT138: Reduce Lighting Levels to 25 fc | AU138: No Daylighting Sensors | AV138: No Occupancy Sensors | AW138: Install Plug Load Controls | AX138: Install High Efficiency HVAC Equipment
A139: new90.1-2004 | B139: 5500 ft2 | C139: psz-ac | D139: stand-alone | E139: new90.1-20045500 ft2psz-acstand-alone | F139: base-roof | G139: eff-win | H139: base-inf | I139: 25 fc | J139: no-day | K139: yes-occ | L139: base-epd | M139: base-eff | N139: 198.06 | O139: 105.12 | P139: 0.06366520909 | Q139: 0.1293683239 | R139: -0.09136212625 | S139: 817.5654 | T139: -76.23227208 | U139: 741.3331279 | V139: no | W139: 5500 | X139: 642.39 | Y139: 3030.15 | AA139: 10937.3602 | AB139: 90927.77 | AC139: 109.373602 | AD139: 0 | AE139: 2615.324709 | AF139: -1045 | AG139: 37.0666564 | AH139: 1607.391366 | AI139: -866.0582377 | AM139: New Construction | AN139: 5,500 SF | AO139: Packaged Air Conditioner | AP139: Stand Alone | AQ139: Baseline Roof Insulation | AR139: Replace Windows | AS139: Baseline Infiltration | AT139: Reduce Lighting Levels to 25 fc | AU139: No Daylighting Sensors | AV139: Install Occupancy Sensors | AW139: No Plug Load Control | AX139: Baseline HVAC Equipment
A140: new90.1-2004 | B140: 5500 ft2 | C140: psz-ac | D140: stand-alone | E140: new90.1-20045500 ft2psz-acstand-alone | F140: base-roof | G140: eff-win | H140: base-inf | I140: 25 fc | J140: no-day | K140: yes-occ | L140: base-epd | M140: high-eff | N140: 196.8 | O140: 105.12 | P140: 0.06758015376 | Q140: 0.1349070289 | R140: -0.09136212625 | S140: 852.5682 | T140: -76.23227208 | U140: 776.3359279 | V140: no | W140: 5500 | X140: 642.39 | Y140: 3030.15 | AA140: 13192.3602 | AB140: 124422.77 | AC140: 131.923602 | AD140: 0 | AE140: 3154.536833 | AF140: -1045 | AG140: 38.8167964 | AH140: 2148.353629 | AI140: -1372.017701 | AM140: New Construction | AN140: 5,500 SF | AO140: Packaged Air Conditioner | AP140: Stand Alone | AQ140: Baseline Roof Insulation | AR140: Replace Windows | AS140: Baseline Infiltration | AT140: Reduce Lighting Levels to 25 fc | AU140: No Daylighting Sensors | AV140: Install Occupancy Sensors | AW140: No Plug Load Control | AX140: Install High Efficiency HVAC Equipment
A141: new90.1-2004 | B141: 5500 ft2 | C141: psz-ac | D141: stand-alone | E141: new90.1-20045500 ft2psz-acstand-alone | F141: base-roof | G141: eff-win | H141: base-inf | I141: 25 fc | J141: no-day | K141: yes-occ | L141: red-epd | M141: base-eff | N141: 167.29 | O141: 117.06 | P141: 0.1218368668 | Q141: 0.2646270166 | R141: -0.2153239203 | S141: 1672.356 | T141: -179.6656049 | U141: 1492.690395 | V141: no | W141: 5500 | X141: 642.39 | Y141: 3030.15 | AA141: 11762.3602 | AB141: 91752.77 | AC141: 117.623602 | AD141: 0 | AE141: 2812.597437 | AF141: -1045 | AG141: 74.63451976 | AH141: 1842.231957 | AI141: -349.541562 | AM141: New Construction | AN141: 5,500 SF | AO141: Packaged Air Conditioner | AP141: Stand Alone | AQ141: Baseline Roof Insulation | AR141: Replace Windows | AS141: Baseline Infiltration | AT141: Reduce Lighting Levels to 25 fc | AU141: No Daylighting Sensors | AV141: Install Occupancy Sensors | AW141: Install Plug Load Controls | AX141: Baseline HVAC Equipment
A142: new90.1-2004 | B142: 5500 ft2 | C142: psz-ac | D142: stand-alone | E142: new90.1-20045500 ft2psz-acstand-alone | F142: base-roof | G142: eff-win | H142: base-inf | I142: 25 fc | J142: no-day | K142: yes-occ | L142: red-epd | M142: high-eff | N142: 166.19 | O142: 117.06 | P142: 0.1252150852 | Q142: 0.269462394 | R142: -0.2153239203 | S142: 1702.914 | T142: -179.6656049 | U142: 1523.248395 | V142: no | W142: 5500 | X142: 642.39 | Y142: 3030.15 | AA142: 14017.3602 | AB142: 125247.77 | AC142: 140.173602 | AD142: 0 | AE142: 3351.809561 | AF142: -1045 | AG142: 76.16241976 | AH142: 2382.971981 | AI142: -859.7235855 | AM142: New Construction | AN142: 5,500 SF | AO142: Packaged Air Conditioner | AP142: Stand Alone | AQ142: Baseline Roof Insulation | AR142: Replace Windows | AS142: Baseline Infiltration | AT142: Reduce Lighting Levels to 25 fc | AU142: No Daylighting Sensors | AV142: Install Occupancy Sensors | AW142: Install Plug Load Controls | AX142: Install High Efficiency HVAC Equipment
A143: new90.1-2004 | B143: 5500 ft2 | C143: psz-ac | D143: stand-alone | E143: new90.1-20045500 ft2psz-acstand-alone | F143: base-roof | G143: eff-win | H143: base-inf | I143: 25 fc | J143: yes-day | K143: no-occ | L143: base-epd | M143: base-eff | N143: 191.4 | O143: 107.45 | P143: 0.07706758015 | Q143: 0.158644336 | R143: -0.1155523256 | S143: 1002.5802 | T143: -96.41649866 | U143: 906.1637013 | V143: no | W143: 5500 | X143: 642.39 | Y143: 3030.15 | AA143: 11982.3602 | AB143: 107702.77 | AC143: 119.823602 | AD143: 0 | AE143: 2865.203498 | AF143: -1045 | AG143: 45.30818507 | AH143: 1865.511683 | AI143: -959.3479819 | AM143: New Construction | AN143: 5,500 SF | AO143: Packaged Air Conditioner | AP143: Stand Alone | AQ143: Baseline Roof Insulation | AR143: Replace Windows | AS143: Baseline Infiltration | AT143: Reduce Lighting Levels to 25 fc | AU143: Install Daylighting Sensors | AV143: No Occupancy Sensors | AW143: No Plug Load Control | AX143: Baseline HVAC Equipment
A144: new90.1-2004 | B144: 5500 ft2 | C144: psz-ac | D144: stand-alone | E144: new90.1-20045500 ft2psz-acstand-alone | F144: base-roof | G144: eff-win | H144: base-inf | I144: 25 fc | J144: yes-day | K144: no-occ | L144: base-epd | M144: high-eff | N144: 190.2 | O144: 107.45 | P144: 0.08076151988 | Q144: 0.1639192932 | R144: -0.1155523256 | S144: 1035.9162 | T144: -96.41649866 | U144: 939.4997013 | V144: no | W144: 5500 | X144: 642.39 | Y144: 3030.15 | AA144: 14237.3602 | AB144: 141197.77 | AC144: 142.373602 | AD144: 0 | AE144: 3404.415622 | AF144: -1045 | AG144: 46.97498507 | AH144: 2406.390607 | AI144: -1466.890905 | AM144: New Construction | AN144: 5,500 SF | AO144: Packaged Air Conditioner | AP144: Stand Alone | AQ144: Baseline Roof Insulation | AR144: Replace Windows | AS144: Baseline Infiltration | AT144: Reduce Lighting Levels to 25 fc | AU144: Install Daylighting Sensors | AV144: No Occupancy Sensors | AW144: No Plug Load Control | AX144: Install High Efficiency HVAC Equipment
A145: new90.1-2004 | B145: 5500 ft2 | C145: psz-ac | D145: stand-alone | E145: new90.1-20045500 ft2psz-acstand-alone | F145: base-roof | G145: eff-win | H145: base-inf | I145: 25 fc | J145: yes-day | K145: no-occ | L145: red-epd | M145: base-eff | N145: 160.69 | O145: 119.45 | P145: 0.1348761583 | Q145: 0.2936392808 | R145: -0.2401370432 | S145: 1855.704 | T145: -200.3695969 | U145: 1655.334403 | V145: no | W145: 5500 | X145: 642.39 | Y145: 3030.15 | AA145: 12807.3602 | AB145: 108527.77 | AC145: 128.073602 | AD145: 0 | AE145: 3062.476226 | AF145: -1045 | AG145: 82.76672015 | AH145: 2100.242946 | AI145: -444.9085434 | AM145: New Construction | AN145: 5,500 SF | AO145: Packaged Air Conditioner | AP145: Stand Alone | AQ145: Baseline Roof Insulation | AR145: Replace Windows | AS145: Baseline Infiltration | AT145: Reduce Lighting Levels to 25 fc | AU145: Install Daylighting Sensors | AV145: No Occupancy Sensors | AW145: Install Plug Load Controls | AX145: Baseline HVAC Equipment
A146: new90.1-2004 | B146: 5500 ft2 | C146: psz-ac | D146: stand-alone | E146: new90.1-20045500 ft2psz-acstand-alone | F146: base-roof | G146: eff-win | H146: base-inf | I146: 25 fc | J146: yes-day | K146: no-occ | L146: red-epd | M146: high-eff | N146: 159.65 | O146: 119.45 | P146: 0.1380649439 | Q146: 0.2982109104 | R146: -0.2401370432 | S146: 1884.5952 | T146: -200.3695969 | U146: 1684.225603 | V146: no | W146: 5500 | X146: 642.39 | Y146: 3030.15 | AA146: 15062.3602 | AB146: 142022.77 | AC146: 150.623602 | AD146: 0 | AE146: 3601.68835 | AF146: -1045 | AG146: 84.21128015 | AH146: 2640.89963 | AI146: -956.674027 | AM146: New Construction | AN146: 5,500 SF | AO146: Packaged Air Conditioner | AP146: Stand Alone | AQ146: Baseline Roof Insulation | AR146: Replace Windows | AS146: Baseline Infiltration | AT146: Reduce Lighting Levels to 25 fc | AU146: Install Daylighting Sensors | AV146: No Occupancy Sensors | AW146: Install Plug Load Controls | AX146: Install High Efficiency HVAC Equipment
A147: new90.1-2004 | B147: 5500 ft2 | C147: psz-ac | D147: stand-alone | E147: new90.1-20045500 ft2psz-acstand-alone | F147: base-roof | G147: eff-win | H147: base-inf | I147: 25 fc | J147: yes-day | K147: yes-occ | L147: base-epd | M147: base-eff | N147: 183.52 | O147: 110.97 | P147: 0.09051730942 | Q147: 0.1932832212 | R147: -0.1520971761 | S147: 1221.4866 | T147: -126.9094075 | U147: 1094.577193 | V147: no | W147: 5500 | X147: 642.39 | Y147: 3030.15 | AA147: 13962.3602 | AB147: 109682.77 | AC147: 139.623602 | AD147: 0 | AE147: 3338.658046 | AF147: -1045 | AG147: 54.72885963 | AH147: 2348.386905 | AI147: -1253.809713 | AM147: New Construction | AN147: 5,500 SF | AO147: Packaged Air Conditioner | AP147: Stand Alone | AQ147: Baseline Roof Insulation | AR147: Replace Windows | AS147: Baseline Infiltration | AT147: Reduce Lighting Levels to 25 fc | AU147: Install Daylighting Sensors | AV147: Install Occupancy Sensors | AW147: No Plug Load Control | AX147: Baseline HVAC Equipment
A148: new90.1-2004 | B148: 5500 ft2 | C148: psz-ac | D148: stand-alone | E148: new90.1-20045500 ft2psz-acstand-alone | F148: base-roof | G148: eff-win | H148: base-inf | I148: 25 fc | J148: yes-day | K148: yes-occ | L148: base-epd | M148: high-eff | N148: 182.39 | O148: 110.97 | P148: 0.09400603028 | Q148: 0.1982504725 | R148: -0.1520971761 | S148: 1252.878 | T148: -126.9094075 | U148: 1125.968593 | V148: no | W148: 5500 | X148: 642.39 | Y148: 3030.15 | AA148: 16217.3602 | AB148: 143177.77 | AC148: 162.173602 | AD148: 0 | AE148: 3877.870169 | AF148: -1045 | AG148: 56.29842963 | AH148: 2889.168599 | AI148: -1763.200006 | AM148: New Construction | AN148: 5,500 SF | AO148: Packaged Air Conditioner | AP148: Stand Alone | AQ148: Baseline Roof Insulation | AR148: Replace Windows | AS148: Baseline Infiltration | AT148: Reduce Lighting Levels to 25 fc | AU148: Install Daylighting Sensors | AV148: Install Occupancy Sensors | AW148: No Plug Load Control | AX148: Install High Efficiency HVAC Equipment
A149: new90.1-2004 | B149: 5500 ft2 | C149: psz-ac | D149: stand-alone | E149: new90.1-20045500 ft2psz-acstand-alone | F149: base-roof | G149: eff-win | H149: base-inf | I149: 25 fc | J149: yes-day | K149: yes-occ | L149: red-epd | M149: base-eff | N149: 152.8 | O149: 123.2 | P149: 0.1476313006 | Q149: 0.328322124 | R149: -0.2790697674 | S149: 2074.8882 | T149: -232.8549402 | U149: 1842.03326 | V149: no | W149: 5500 | X149: 642.39 | Y149: 3030.15 | AA149: 14787.3602 | AB149: 110507.77 | AC149: 147.873602 | AD149: 0 | AE149: 3535.930774 | AF149: -1045 | AG149: 92.10166299 | AH149: 2583.032437 | AI149: -740.999177 | AM149: New Construction | AN149: 5,500 SF | AO149: Packaged Air Conditioner | AP149: Stand Alone | AQ149: Baseline Roof Insulation | AR149: Replace Windows | AS149: Baseline Infiltration | AT149: Reduce Lighting Levels to 25 fc | AU149: Install Daylighting Sensors | AV149: Install Occupancy Sensors | AW149: Install Plug Load Controls | AX149: Baseline HVAC Equipment
A150: new90.1-2004 | B150: 5500 ft2 | C150: psz-ac | D150: stand-alone | E150: new90.1-20045500 ft2psz-acstand-alone | F150: base-roof | G150: eff-win | H150: base-inf | I150: 25 fc | J150: yes-day | K150: yes-occ | L150: red-epd | M150: high-eff | N150: 151.83 | O150: 123.2 | P150: 0.1506306534 | Q150: 0.3325860477 | R150: -0.2790697674 | S150: 2101.8348 | T150: -232.8549402 | U150: 1868.97986 | V150: no | W150: 5500 | X150: 642.39 | Y150: 3030.15 | AA150: 17042.3602 | AB150: 144002.77 | AC150: 170.423602 | AD150: 0 | AE150: 4075.142897 | AF150: -1045 | AG150: 93.44899299 | AH150: 3123.59189 | AI150: -1254.612031 | AM150: New Construction | AN150: 5,500 SF | AO150: Packaged Air Conditioner | AP150: Stand Alone | AQ150: Baseline Roof Insulation | AR150: Replace Windows | AS150: Baseline Infiltration | AT150: Reduce Lighting Levels to 25 fc | AU150: Install Daylighting Sensors | AV150: Install Occupancy Sensors | AW150: Install Plug Load Controls | AX150: Install High Efficiency HVAC Equipment
A151: new90.1-2004 | B151: 5500 ft2 | C151: psz-ac | D151: stand-alone | E151: new90.1-20045500 ft2psz-acstand-alone | F151: base-roof | G151: eff-win | H151: red-inf | I151: base-lpd | J151: no-day | K151: no-occ | L151: base-epd | M151: base-eff | N151: 224.19 | O151: 92.83 | P151: 0.02093232513 | Q151: 0.01450613214 | R151: 0.0362333887 | S151: 91.674 | T151: 30.23302608 | U151: 121.9070261 | V151: no | W151: 5500 | X151: 642.39 | Y151: 3030.15 | AA151: 5915.3247 | AB151: 28925.7345 | AC151: 59.153247 | AD151: 0 | AE151: 1414.463323 | AF151: 0 | AG151: 6.095351304 | AH151: 1420.558674 | AI151: -1298.651648 | AM151: New Construction | AN151: 5,500 SF | AO151: Packaged Air Conditioner | AP151: Stand Alone | AQ151: Baseline Roof Insulation | AR151: Replace Windows | AS151: Reduce Infiltration | AT151: Baseline Lighting Levels | AU151: No Daylighting Sensors | AV151: No Occupancy Sensors | AW151: No Plug Load Control | AX151: Baseline HVAC Equipment
A152: new90.1-2004 | B152: 5500 ft2 | C152: psz-ac | D152: stand-alone | E152: new90.1-20045500 ft2psz-acstand-alone | F152: base-roof | G152: eff-win | H152: red-inf | I152: base-lpd | J152: no-day | K152: no-occ | L152: base-epd | M152: high-eff | N152: 222.68 | O152: 92.83 | P152: 0.02558921496 | Q152: 0.02114378654 | R152: 0.0362333887 | S152: 133.6218 | T152: 30.23302608 | U152: 163.8548261 | V152: no | W152: 5500 | X152: 642.39 | Y152: 3030.15 | AA152: 8170.3247 | AB152: 62420.7345 | AC152: 81.703247 | AD152: 0 | AE152: 1953.675446 | AF152: 0 | AG152: 8.192741304 | AH152: 1961.868188 | AI152: -1798.013362 | AM152: New Construction | AN152: 5,500 SF | AO152: Packaged Air Conditioner | AP152: Stand Alone | AQ152: Baseline Roof Insulation | AR152: Replace Windows | AS152: Reduce Infiltration | AT152: Baseline Lighting Levels | AU152: No Daylighting Sensors | AV152: No Occupancy Sensors | AW152: No Plug Load Control | AX152: Install High Efficiency HVAC Equipment
A153: new90.1-2004 | B153: 5500 ft2 | C153: psz-ac | D153: stand-alone | E153: new90.1-20045500 ft2psz-acstand-alone | F153: base-roof | G153: eff-win | H153: red-inf | I153: base-lpd | J153: no-day | K153: no-occ | L153: red-epd | M153: base-eff | N153: 193.42 | O153: 104.13 | P153: 0.08106145516 | Q153: 0.1497648248 | R153: -0.08108388704 | S153: 946.4646 | T153: -67.65614147 | U153: 878.8084585 | V153: no | W153: 5500 | X153: 642.39 | Y153: 3030.15 | AA153: 6740.3247 | AB153: 29750.7345 | AC153: 67.403247 | AD153: 0 | AE153: 1611.736051 | AF153: 0 | AG153: 43.94042293 | AH153: 1655.676474 | AI153: -776.8680153 | AM153: New Construction | AN153: 5,500 SF | AO153: Packaged Air Conditioner | AP153: Stand Alone | AQ153: Baseline Roof Insulation | AR153: Replace Windows | AS153: Reduce Infiltration | AT153: Baseline Lighting Levels | AU153: No Daylighting Sensors | AV153: No Occupancy Sensors | AW153: Install Plug Load Controls | AX153: Baseline HVAC Equipment
A154: new90.1-2004 | B154: 5500 ft2 | C154: psz-ac | D154: stand-alone | E154: new90.1-20045500 ft2psz-acstand-alone | F154: base-roof | G154: eff-win | H154: red-inf | I154: base-lpd | J154: no-day | K154: no-occ | L154: red-epd | M154: high-eff | N154: 192.09 | O154: 104.13 | P154: 0.08516583264 | Q154: 0.1556112357 | R154: -0.08108388704 | S154: 983.412 | T154: -67.65614147 | U154: 915.7558585 | V154: no | W154: 5500 | X154: 642.39 | Y154: 3030.15 | AA154: 8995.3247 | AB154: 63245.7345 | AC154: 89.953247 | AD154: 0 | AE154: 2150.948174 | AF154: 0 | AG154: 45.78779293 | AH154: 2196.735967 | AI154: -1280.980109 | AM154: New Construction | AN154: 5,500 SF | AO154: Packaged Air Conditioner | AP154: Stand Alone | AQ154: Baseline Roof Insulation | AR154: Replace Windows | AS154: Reduce Infiltration | AT154: Baseline Lighting Levels | AU154: No Daylighting Sensors | AV154: No Occupancy Sensors | AW154: Install Plug Load Controls | AX154: Install High Efficiency HVAC Equipment
A155: new90.1-2004 | B155: 5500 ft2 | C155: psz-ac | D155: stand-alone | E155: new90.1-20045500 ft2psz-acstand-alone | F155: base-roof | G155: eff-win | H155: red-inf | I155: base-lpd | J155: no-day | K155: yes-occ | L155: base-epd | M155: base-eff | N155: 209.51 | O155: 98.71 | P155: 0.04814750501 | Q155: 0.07903644116 | R155: -0.02481312292 | S155: 499.4844 | T155: -20.70399208 | U155: 478.7804079 | V155: no | W155: 5500 | X155: 642.39 | Y155: 3030.15 | AA155: 7895.3247 | AB155: 30905.7345 | AC155: 78.953247 | AD155: 0 | AE155: 1887.91787 | AF155: 0 | AG155: 23.9390204 | AH155: 1911.856891 | AI155: -1433.076483 | AM155: New Construction | AN155: 5,500 SF | AO155: Packaged Air Conditioner | AP155: Stand Alone | AQ155: Baseline Roof Insulation | AR155: Replace Windows | AS155: Reduce Infiltration | AT155: Baseline Lighting Levels | AU155: No Daylighting Sensors | AV155: Install Occupancy Sensors | AW155: No Plug Load Control | AX155: Baseline HVAC Equipment
A156: new90.1-2004 | B156: 5500 ft2 | C156: psz-ac | D156: stand-alone | E156: new90.1-20045500 ft2psz-acstand-alone | F156: base-roof | G156: eff-win | H156: red-inf | I156: base-lpd | J156: no-day | K156: yes-occ | L156: base-epd | M156: high-eff | N156: 208.14 | O156: 98.71 | P156: 0.05236238496 | Q156: 0.0850586839 | R156: -0.02481312292 | S156: 537.543 | T156: -20.70399208 | U156: 516.8390079 | V156: no | W156: 5500 | X156: 642.39 | Y156: 3030.15 | AA156: 10150.3247 | AB156: 64400.7345 | AC156: 101.503247 | AD156: 0 | AE156: 2427.129994 | AF156: 0 | AG156: 25.8419504 | AH156: 2452.971944 | AI156: -1936.132936 | AM156: New Construction | AN156: 5,500 SF | AO156: Packaged Air Conditioner | AP156: Stand Alone | AQ156: Baseline Roof Insulation | AR156: Replace Windows | AS156: Reduce Infiltration | AT156: Baseline Lighting Levels | AU156: No Daylighting Sensors | AV156: Install Occupancy Sensors | AW156: No Plug Load Control | AX156: Install High Efficiency HVAC Equipment
A157: new90.1-2004 | B157: 5500 ft2 | C157: psz-ac | D157: stand-alone | E157: new90.1-20045500 ft2psz-acstand-alone | F157: base-roof | G157: eff-win | H157: red-inf | I157: base-lpd | J157: no-day | K157: yes-occ | L157: red-epd | M157: base-eff | N157: 178.75 | O157: 110.33 | P157: 0.1072347546 | Q157: 0.2142511759 | R157: -0.1454526578 | S157: 1353.9972 | T157: -121.3652422 | U157: 1232.631958 | V157: no | W157: 5500 | X157: 642.39 | Y157: 3030.15 | AA157: 8720.3247 | AB157: 31730.7345 | AC157: 87.203247 | AD157: 0 | AE157: 2085.190598 | AF157: 0 | AG157: 61.63159789 | AH157: 2146.822196 | AI157: -914.1902386 | AM157: New Construction | AN157: 5,500 SF | AO157: Packaged Air Conditioner | AP157: Stand Alone | AQ157: Baseline Roof Insulation | AR157: Replace Windows | AS157: Reduce Infiltration | AT157: Baseline Lighting Levels | AU157: No Daylighting Sensors | AV157: Install Occupancy Sensors | AW157: Install Plug Load Controls | AX157: Baseline HVAC Equipment
A158: new90.1-2004 | B158: 5500 ft2 | C158: psz-ac | D158: stand-alone | E158: new90.1-20045500 ft2psz-acstand-alone | F158: base-roof | G158: eff-win | H158: red-inf | I158: base-lpd | J158: no-day | K158: yes-occ | L158: red-epd | M158: high-eff | N158: 177.55 | O158: 110.33 | P158: 0.1109444804 | Q158: 0.219526133 | R158: -0.1454526578 | S158: 1387.3332 | T158: -121.3652422 | U158: 1265.967958 | V158: no | W158: 5500 | X158: 642.39 | Y158: 3030.15 | AA158: 10975.3247 | AB158: 65225.7345 | AC158: 109.753247 | AD158: 0 | AE158: 2624.402722 | AF158: 0 | AG158: 63.29839789 | AH158: 2687.70112 | AI158: -1421.733162 | AM158: New Construction | AN158: 5,500 SF | AO158: Packaged Air Conditioner | AP158: Stand Alone | AQ158: Baseline Roof Insulation | AR158: Replace Windows | AS158: Reduce Infiltration | AT158: Baseline Lighting Levels | AU158: No Daylighting Sensors | AV158: Install Occupancy Sensors | AW158: Install Plug Load Controls | AX158: Install High Efficiency HVAC Equipment
A159: new90.1-2004 | B159: 5500 ft2 | C159: psz-ac | D159: stand-alone | E159: new90.1-20045500 ft2psz-acstand-alone | F159: base-roof | G159: eff-win | H159: red-inf | I159: base-lpd | J159: yes-day | K159: no-occ | L159: base-epd | M159: base-eff | N159: 201.41 | O159: 101.36 | P159: 0.0649596666 | Q159: 0.1146424019 | R159: -0.0523255814 | S159: 724.5024 | T159: -43.66030128 | U159: 680.8420987 | V159: no | W159: 5500 | X159: 642.39 | Y159: 3030.15 | AA159: 8940.3247 | AB159: 47680.7345 | AC159: 89.403247 | AD159: 0 | AE159: 2137.796659 | AF159: 0 | AG159: 34.04210494 | AH159: 2171.838764 | AI159: -1490.996665 | AM159: New Construction | AN159: 5,500 SF | AO159: Packaged Air Conditioner | AP159: Stand Alone | AQ159: Baseline Roof Insulation | AR159: Replace Windows | AS159: Reduce Infiltration | AT159: Baseline Lighting Levels | AU159: Install Daylighting Sensors | AV159: No Occupancy Sensors | AW159: No Plug Load Control | AX159: Baseline HVAC Equipment
A160: new90.1-2004 | B160: 5500 ft2 | C160: psz-ac | D160: stand-alone | E160: new90.1-20045500 ft2psz-acstand-alone | F160: base-roof | G160: eff-win | H160: red-inf | I160: base-lpd | J160: yes-day | K160: no-occ | L160: base-epd | M160: high-eff | N160: 200.12 | O160: 101.36 | P160: 0.0689535416 | Q160: 0.1203129808 | R160: -0.0523255814 | S160: 760.3386 | T160: -43.66030128 | U160: 716.6782987 | V160: no | W160: 5500 | X160: 642.39 | Y160: 3030.15 | AA160: 11195.3247 | AB160: 81175.7345 | AC160: 111.953247 | AD160: 0 | AE160: 2677.008783 | AF160: 0 | AG160: 35.83391494 | AH160: 2712.842698 | AI160: -1996.164399 | AM160: New Construction | AN160: 5,500 SF | AO160: Packaged Air Conditioner | AP160: Stand Alone | AQ160: Baseline Roof Insulation | AR160: Replace Windows | AS160: Reduce Infiltration | AT160: Baseline Lighting Levels | AU160: Install Daylighting Sensors | AV160: No Occupancy Sensors | AW160: No Plug Load Control | AX160: Install High Efficiency HVAC Equipment
A161: new90.1-2004 | B161: 5500 ft2 | C161: psz-ac | D161: stand-alone | E161: new90.1-20045500 ft2psz-acstand-alone | F161: base-roof | G161: eff-win | H161: red-inf | I161: base-lpd | J161: yes-day | K161: no-occ | L161: red-epd | M161: base-eff | N161: 170.71 | O161: 112.96 | P161: 0.1239206277 | Q161: 0.2495933887 | R161: -0.1727574751 | S161: 1577.3484 | T161: -144.1482963 | U161: 1433.200104 | V161: no | W161: 5500 | X161: 642.39 | Y161: 3030.15 | AA161: 9765.3247 | AB161: 48505.7345 | AC161: 97.653247 | AD161: 0 | AE161: 2335.069387 | AF161: 0 | AG161: 71.66000519 | AH161: 2406.729393 | AI161: -973.5292889 | AM161: New Construction | AN161: 5,500 SF | AO161: Packaged Air Conditioner | AP161: Stand Alone | AQ161: Baseline Roof Insulation | AR161: Replace Windows | AS161: Reduce Infiltration | AT161: Baseline Lighting Levels | AU161: Install Daylighting Sensors | AV161: No Occupancy Sensors | AW161: Install Plug Load Controls | AX161: Baseline HVAC Equipment
A162: new90.1-2004 | B162: 5500 ft2 | C162: psz-ac | D162: stand-alone | E162: new90.1-20045500 ft2psz-acstand-alone | F162: base-roof | G162: eff-win | H162: red-inf | I162: base-lpd | J162: yes-day | K162: no-occ | L162: red-epd | M162: high-eff | N162: 169.59 | O162: 112.96 | P162: 0.1273935624 | Q162: 0.2545166821 | R162: -0.1727574751 | S162: 1608.462 | T162: -144.1482963 | U162: 1464.313704 | V162: no | W162: 5500 | X162: 642.39 | Y162: 3030.15 | AA162: 12020.3247 | AB162: 82000.7345 | AC162: 120.203247 | AD162: 0 | AE162: 2874.281511 | AF162: 0 | AG162: 73.21568519 | AH162: 2947.497196 | AI162: -1483.183492 | AM162: New Construction | AN162: 5,500 SF | AO162: Packaged Air Conditioner | AP162: Stand Alone | AQ162: Baseline Roof Insulation | AR162: Replace Windows | AS162: Reduce Infiltration | AT162: Baseline Lighting Levels | AU162: Install Daylighting Sensors | AV162: No Occupancy Sensors | AW162: Install Plug Load Controls | AX162: Install High Efficiency HVAC Equipment
A163: new90.1-2004 | B163: 5500 ft2 | C163: psz-ac | D163: stand-alone | E163: new90.1-20045500 ft2psz-acstand-alone | F163: base-roof | G163: eff-win | H163: red-inf | I163: base-lpd | J163: yes-day | K163: yes-occ | L163: base-epd | M163: base-eff | N163: 191.32 | O163: 105.79 | P163: 0.08245062907 | Q163: 0.1589959998 | R163: -0.09831810631 | S163: 1004.8026 | T163: -82.03632006 | U163: 922.7662799 | V163: no | W163: 5500 | X163: 642.39 | Y163: 3030.15 | AA163: 10920.3247 | AB163: 49660.7345 | AC163: 109.203247 | AD163: 0 | AE163: 2611.251207 | AF163: 0 | AG163: 46.138314 | AH163: 2657.389521 | AI163: -1734.623241 | AM163: New Construction | AN163: 5,500 SF | AO163: Packaged Air Conditioner | AP163: Stand Alone | AQ163: Baseline Roof Insulation | AR163: Replace Windows | AS163: Reduce Infiltration | AT163: Baseline Lighting Levels | AU163: Install Daylighting Sensors | AV163: Install Occupancy Sensors | AW163: No Plug Load Control | AX163: Baseline HVAC Equipment
A164: new90.1-2004 | B164: 5500 ft2 | C164: psz-ac | D164: stand-alone | E164: new90.1-20045500 ft2psz-acstand-alone | F164: base-roof | G164: eff-win | H164: red-inf | I164: base-lpd | J164: yes-day | K164: yes-occ | L164: base-epd | M164: high-eff | N164: 190.12 | O164: 105.79 | P164: 0.08617614094 | Q164: 0.164270957 | R164: -0.09831810631 | S164: 1038.1386 | T164: -82.03632006 | U164: 956.1022799 | V164: no | W164: 5500 | X164: 642.39 | Y164: 3030.15 | AA164: 13175.3247 | AB164: 83155.7345 | AC164: 131.753247 | AD164: 0 | AE164: 3150.46333 | AF164: 0 | AG164: 47.805114 | AH164: 3198.268444 | AI164: -2242.166164 | AM164: New Construction | AN164: 5,500 SF | AO164: Packaged Air Conditioner | AP164: Stand Alone | AQ164: Baseline Roof Insulation | AR164: Replace Windows | AS164: Reduce Infiltration | AT164: Baseline Lighting Levels | AU164: Install Daylighting Sensors | AV164: Install Occupancy Sensors | AW164: No Plug Load Control | AX164: Install High Efficiency HVAC Equipment
A165: new90.1-2004 | B165: 5500 ft2 | C165: psz-ac | D165: stand-alone | E165: new90.1-20045500 ft2psz-acstand-alone | F165: base-roof | G165: eff-win | H165: red-inf | I165: base-lpd | J165: yes-day | K165: yes-occ | L165: red-epd | M165: base-eff | N165: 160.61 | O165: 117.68 | P165: 0.1405591425 | Q165: 0.2939909447 | R165: -0.2217607973 | S165: 1857.9264 | T165: -185.0365149 | U165: 1672.889885 | V165: no | W165: 5500 | X165: 642.39 | Y165: 3030.15 | AA165: 11745.3247 | AB165: 50485.7345 | AC165: 117.453247 | AD165: 0 | AE165: 2808.523935 | AF165: 0 | AG165: 83.64449425 | AH165: 2892.168429 | AI165: -1219.278544 | AM165: New Construction | AN165: 5,500 SF | AO165: Packaged Air Conditioner | AP165: Stand Alone | AQ165: Baseline Roof Insulation | AR165: Replace Windows | AS165: Reduce Infiltration | AT165: Baseline Lighting Levels | AU165: Install Daylighting Sensors | AV165: Install Occupancy Sensors | AW165: Install Plug Load Controls | AX165: Baseline HVAC Equipment
A166: new90.1-2004 | B166: 5500 ft2 | C166: psz-ac | D166: stand-alone | E166: new90.1-20045500 ft2psz-acstand-alone | F166: base-roof | G166: eff-win | H166: red-inf | I166: base-lpd | J166: yes-day | K166: yes-occ | L166: red-epd | M166: high-eff | N166: 159.58 | O166: 117.68 | P166: 0.1437637141 | Q166: 0.2985186162 | R166: -0.2217607973 | S166: 1886.5398 | T166: -185.0365149 | U166: 1701.503285 | V166: no | W166: 5500 | X166: 642.39 | Y166: 3030.15 | AA166: 14000.3247 | AB166: 83980.7345 | AC166: 140.003247 | AD166: 0 | AE166: 3347.736058 | AF166: 0 | AG166: 85.07516425 | AH166: 3432.811223 | AI166: -1731.307938 | AM166: New Construction | AN166: 5,500 SF | AO166: Packaged Air Conditioner | AP166: Stand Alone | AQ166: Baseline Roof Insulation | AR166: Replace Windows | AS166: Reduce Infiltration | AT166: Baseline Lighting Levels | AU166: Install Daylighting Sensors | AV166: Install Occupancy Sensors | AW166: Install Plug Load Controls | AX166: Install High Efficiency HVAC Equipment
A167: new90.1-2004 | B167: 5500 ft2 | C167: psz-ac | D167: stand-alone | E167: new90.1-20045500 ft2psz-acstand-alone | F167: base-roof | G167: eff-win | H167: red-inf | I167: 40 fc | J167: no-day | K167: no-occ | L167: base-epd | M167: base-eff | N167: 224.19 | O167: 92.83 | P167: 0.02093232513 | Q167: 0.01450613214 | R167: 0.0362333887 | S167: 91.674 | T167: 30.23302608 | U167: 121.9070261 | V167: no | W167: 5500 | X167: 642.39 | Y167: 3030.15 | AA167: 9545.3247 | AB167: 40255.7345 | AC167: 95.453247 | AD167: 0 | AE167: 2282.463327 | AF167: -660 | AG167: 6.095351304 | AH167: 1628.558678 | AI167: -1506.651652 | AM167: New Construction | AN167: 5,500 SF | AO167: Packaged Air Conditioner | AP167: Stand Alone | AQ167: Baseline Roof Insulation | AR167: Replace Windows | AS167: Reduce Infiltration | AT167: Reduce Lighting Levels to 40 fc | AU167: No Daylighting Sensors | AV167: No Occupancy Sensors | AW167: No Plug Load Control | AX167: Baseline HVAC Equipment
A168: new90.1-2004 | B168: 5500 ft2 | C168: psz-ac | D168: stand-alone | E168: new90.1-20045500 ft2psz-acstand-alone | F168: base-roof | G168: eff-win | H168: red-inf | I168: 40 fc | J168: no-day | K168: no-occ | L168: base-epd | M168: high-eff | N168: 222.68 | O168: 92.83 | P168: 0.02558921496 | Q168: 0.02114378654 | R168: 0.0362333887 | S168: 133.6218 | T168: 30.23302608 | U168: 163.8548261 | V168: no | W168: 5500 | X168: 642.39 | Y168: 3030.15 | AA168: 11800.3247 | AB168: 73750.7345 | AC168: 118.003247 | AD168: 0 | AE168: 2821.67545 | AF168: -660 | AG168: 8.192741304 | AH168: 2169.868191 | AI168: -2006.013365 | AM168: New Construction | AN168: 5,500 SF | AO168: Packaged Air Conditioner | AP168: Stand Alone | AQ168: Baseline Roof Insulation | AR168: Replace Windows | AS168: Reduce Infiltration | AT168: Reduce Lighting Levels to 40 fc | AU168: No Daylighting Sensors | AV168: No Occupancy Sensors | AW168: No Plug Load Control | AX168: Install High Efficiency HVAC Equipment
A169: new90.1-2004 | B169: 5500 ft2 | C169: psz-ac | D169: stand-alone | E169: new90.1-20045500 ft2psz-acstand-alone | F169: base-roof | G169: eff-win | H169: red-inf | I169: 40 fc | J169: no-day | K169: no-occ | L169: red-epd | M169: base-eff | N169: 193.42 | O169: 104.13 | P169: 0.08106145516 | Q169: 0.1497648248 | R169: -0.08108388704 | S169: 946.4646 | T169: -67.65614147 | U169: 878.8084585 | V169: no | W169: 5500 | X169: 642.39 | Y169: 3030.15 | AA169: 10370.3247 | AB169: 41080.7345 | AC169: 103.703247 | AD169: 0 | AE169: 2479.736055 | AF169: -660 | AG169: 43.94042293 | AH169: 1863.676478 | AI169: -984.8680191 | AM169: New Construction | AN169: 5,500 SF | AO169: Packaged Air Conditioner | AP169: Stand Alone | AQ169: Baseline Roof Insulation | AR169: Replace Windows | AS169: Reduce Infiltration | AT169: Reduce Lighting Levels to 40 fc | AU169: No Daylighting Sensors | AV169: No Occupancy Sensors | AW169: Install Plug Load Controls | AX169: Baseline HVAC Equipment
A170: new90.1-2004 | B170: 5500 ft2 | C170: psz-ac | D170: stand-alone | E170: new90.1-20045500 ft2psz-acstand-alone | F170: base-roof | G170: eff-win | H170: red-inf | I170: 40 fc | J170: no-day | K170: no-occ | L170: red-epd | M170: high-eff | N170: 192.09 | O170: 104.13 | P170: 0.08516583264 | Q170: 0.1556112357 | R170: -0.08108388704 | S170: 983.412 | T170: -67.65614147 | U170: 915.7558585 | V170: no | W170: 5500 | X170: 642.39 | Y170: 3030.15 | AA170: 12625.3247 | AB170: 74575.7345 | AC170: 126.253247 | AD170: 0 | AE170: 3018.948178 | AF170: -660 | AG170: 45.78779293 | AH170: 2404.735971 | AI170: -1488.980113 | AM170: New Construction | AN170: 5,500 SF | AO170: Packaged Air Conditioner | AP170: Stand Alone | AQ170: Baseline Roof Insulation | AR170: Replace Windows | AS170: Reduce Infiltration | AT170: Reduce Lighting Levels to 40 fc | AU170: No Daylighting Sensors | AV170: No Occupancy Sensors | AW170: Install Plug Load Controls | AX170: Install High Efficiency HVAC Equipment
A171: new90.1-2004 | B171: 5500 ft2 | C171: psz-ac | D171: stand-alone | E171: new90.1-20045500 ft2psz-acstand-alone | F171: base-roof | G171: eff-win | H171: red-inf | I171: 40 fc | J171: no-day | K171: yes-occ | L171: base-epd | M171: base-eff | N171: 209.51 | O171: 98.71 | P171: 0.04814750501 | Q171: 0.07903644116 | R171: -0.02481312292 | S171: 499.4844 | T171: -20.70399208 | U171: 478.7804079 | V171: no | W171: 5500 | X171: 642.39 | Y171: 3030.15 | AA171: 11525.3247 | AB171: 42235.7345 | AC171: 115.253247 | AD171: 0 | AE171: 2755.917874 | AF171: -660 | AG171: 23.9390204 | AH171: 2119.856894 | AI171: -1641.076487 | AM171: New Construction | AN171: 5,500 SF | AO171: Packaged Air Conditioner | AP171: Stand Alone | AQ171: Baseline Roof Insulation | AR171: Replace Windows | AS171: Reduce Infiltration | AT171: Reduce Lighting Levels to 40 fc | AU171: No Daylighting Sensors | AV171: Install Occupancy Sensors | AW171: No Plug Load Control | AX171: Baseline HVAC Equipment
A172: new90.1-2004 | B172: 5500 ft2 | C172: psz-ac | D172: stand-alone | E172: new90.1-20045500 ft2psz-acstand-alone | F172: base-roof | G172: eff-win | H172: red-inf | I172: 40 fc | J172: no-day | K172: yes-occ | L172: base-epd | M172: high-eff | N172: 208.14 | O172: 98.71 | P172: 0.05236238496 | Q172: 0.0850586839 | R172: -0.02481312292 | S172: 537.543 | T172: -20.70399208 | U172: 516.8390079 | V172: no | W172: 5500 | X172: 642.39 | Y172: 3030.15 | AA172: 13780.3247 | AB172: 75730.7345 | AC172: 137.803247 | AD172: 0 | AE172: 3295.129998 | AF172: -660 | AG172: 25.8419504 | AH172: 2660.971948 | AI172: -2144.13294 | AM172: New Construction | AN172: 5,500 SF | AO172: Packaged Air Conditioner | AP172: Stand Alone | AQ172: Baseline Roof Insulation | AR172: Replace Windows | AS172: Reduce Infiltration | AT172: Reduce Lighting Levels to 40 fc | AU172: No Daylighting Sensors | AV172: Install Occupancy Sensors | AW172: No Plug Load Control | AX172: Install High Efficiency HVAC Equipment
A173: new90.1-2004 | B173: 5500 ft2 | C173: psz-ac | D173: stand-alone | E173: new90.1-20045500 ft2psz-acstand-alone | F173: base-roof | G173: eff-win | H173: red-inf | I173: 40 fc | J173: no-day | K173: yes-occ | L173: red-epd | M173: base-eff | N173: 178.75 | O173: 110.33 | P173: 0.1072347546 | Q173: 0.2142511759 | R173: -0.1454526578 | S173: 1353.9972 | T173: -121.3652422 | U173: 1232.631958 | V173: no | W173: 5500 | X173: 642.39 | Y173: 3030.15 | AA173: 12350.3247 | AB173: 43060.7345 | AC173: 123.503247 | AD173: 0 | AE173: 2953.190602 | AF173: -660 | AG173: 61.63159789 | AH173: 2354.8222 | AI173: -1122.190242 | AM173: New Construction | AN173: 5,500 SF | AO173: Packaged Air Conditioner | AP173: Stand Alone | AQ173: Baseline Roof Insulation | AR173: Replace Windows | AS173: Reduce Infiltration | AT173: Reduce Lighting Levels to 40 fc | AU173: No Daylighting Sensors | AV173: Install Occupancy Sensors | AW173: Install Plug Load Controls | AX173: Baseline HVAC Equipment
A174: new90.1-2004 | B174: 5500 ft2 | C174: psz-ac | D174: stand-alone | E174: new90.1-20045500 ft2psz-acstand-alone | F174: base-roof | G174: eff-win | H174: red-inf | I174: 40 fc | J174: no-day | K174: yes-occ | L174: red-epd | M174: high-eff | N174: 177.55 | O174: 110.33 | P174: 0.1109444804 | Q174: 0.219526133 | R174: -0.1454526578 | S174: 1387.3332 | T174: -121.3652422 | U174: 1265.967958 | V174: no | W174: 5500 | X174: 642.39 | Y174: 3030.15 | AA174: 14605.3247 | AB174: 76555.7345 | AC174: 146.053247 | AD174: 0 | AE174: 3492.402726 | AF174: -660 | AG174: 63.29839789 | AH174: 2895.701124 | AI174: -1629.733166 | AM174: New Construction | AN174: 5,500 SF | AO174: Packaged Air Conditioner | AP174: Stand Alone | AQ174: Baseline Roof Insulation | AR174: Replace Windows | AS174: Reduce Infiltration | AT174: Reduce Lighting Levels to 40 fc | AU174: No Daylighting Sensors | AV174: Install Occupancy Sensors | AW174: Install Plug Load Controls | AX174: Install High Efficiency HVAC Equipment
A175: new90.1-2004 | B175: 5500 ft2 | C175: psz-ac | D175: stand-alone | E175: new90.1-20045500 ft2psz-acstand-alone | F175: base-roof | G175: eff-win | H175: red-inf | I175: 40 fc | J175: yes-day | K175: no-occ | L175: base-epd | M175: base-eff | N175: 201.41 | O175: 101.36 | P175: 0.0649596666 | Q175: 0.1146424019 | R175: -0.0523255814 | S175: 724.5024 | T175: -43.66030128 | U175: 680.8420987 | V175: no | W175: 5500 | X175: 642.39 | Y175: 3030.15 | AA175: 12570.3247 | AB175: 59010.7345 | AC175: 125.703247 | AD175: 0 | AE175: 3005.796663 | AF175: -660 | AG175: 34.04210494 | AH175: 2379.838768 | AI175: -1698.996669 | AM175: New Construction | AN175: 5,500 SF | AO175: Packaged Air Conditioner | AP175: Stand Alone | AQ175: Baseline Roof Insulation | AR175: Replace Windows | AS175: Reduce Infiltration | AT175: Reduce Lighting Levels to 40 fc | AU175: Install Daylighting Sensors | AV175: No Occupancy Sensors | AW175: No Plug Load Control | AX175: Baseline HVAC Equipment
A176: new90.1-2004 | B176: 5500 ft2 | C176: psz-ac | D176: stand-alone | E176: new90.1-20045500 ft2psz-acstand-alone | F176: base-roof | G176: eff-win | H176: red-inf | I176: 40 fc | J176: yes-day | K176: no-occ | L176: base-epd | M176: high-eff | N176: 200.12 | O176: 101.36 | P176: 0.0689535416 | Q176: 0.1203129808 | R176: -0.0523255814 | S176: 760.3386 | T176: -43.66030128 | U176: 716.6782987 | V176: no | W176: 5500 | X176: 642.39 | Y176: 3030.15 | AA176: 14825.3247 | AB176: 92505.7345 | AC176: 148.253247 | AD176: 0 | AE176: 3545.008787 | AF176: -660 | AG176: 35.83391494 | AH176: 2920.842701 | AI176: -2204.164403 | AM176: New Construction | AN176: 5,500 SF | AO176: Packaged Air Conditioner | AP176: Stand Alone | AQ176: Baseline Roof Insulation | AR176: Replace Windows | AS176: Reduce Infiltration | AT176: Reduce Lighting Levels to 40 fc | AU176: Install Daylighting Sensors | AV176: No Occupancy Sensors | AW176: No Plug Load Control | AX176: Install High Efficiency HVAC Equipment
A177: new90.1-2004 | B177: 5500 ft2 | C177: psz-ac | D177: stand-alone | E177: new90.1-20045500 ft2psz-acstand-alone | F177: base-roof | G177: eff-win | H177: red-inf | I177: 40 fc | J177: yes-day | K177: no-occ | L177: red-epd | M177: base-eff | N177: 170.71 | O177: 112.96 | P177: 0.1239206277 | Q177: 0.2495933887 | R177: -0.1727574751 | S177: 1577.3484 | T177: -144.1482963 | U177: 1433.200104 | V177: no | W177: 5500 | X177: 642.39 | Y177: 3030.15 | AA177: 13395.3247 | AB177: 59835.7345 | AC177: 133.953247 | AD177: 0 | AE177: 3203.069391 | AF177: -660 | AG177: 71.66000519 | AH177: 2614.729396 | AI177: -1181.529293 | AM177: New Construction | AN177: 5,500 SF | AO177: Packaged Air Conditioner | AP177: Stand Alone | AQ177: Baseline Roof Insulation | AR177: Replace Windows | AS177: Reduce Infiltration | AT177: Reduce Lighting Levels to 40 fc | AU177: Install Daylighting Sensors | AV177: No Occupancy Sensors | AW177: Install Plug Load Controls | AX177: Baseline HVAC Equipment
A178: new90.1-2004 | B178: 5500 ft2 | C178: psz-ac | D178: stand-alone | E178: new90.1-20045500 ft2psz-acstand-alone | F178: base-roof | G178: eff-win | H178: red-inf | I178: 40 fc | J178: yes-day | K178: no-occ | L178: red-epd | M178: high-eff | N178: 169.59 | O178: 112.96 | P178: 0.1273935624 | Q178: 0.2545166821 | R178: -0.1727574751 | S178: 1608.462 | T178: -144.1482963 | U178: 1464.313704 | V178: no | W178: 5500 | X178: 642.39 | Y178: 3030.15 | AA178: 15650.3247 | AB178: 93330.7345 | AC178: 156.503247 | AD178: 0 | AE178: 3742.281515 | AF178: -660 | AG178: 73.21568519 | AH178: 3155.4972 | AI178: -1691.183496 | AM178: New Construction | AN178: 5,500 SF | AO178: Packaged Air Conditioner | AP178: Stand Alone | AQ178: Baseline Roof Insulation | AR178: Replace Windows | AS178: Reduce Infiltration | AT178: Reduce Lighting Levels to 40 fc | AU178: Install Daylighting Sensors | AV178: No Occupancy Sensors | AW178: Install Plug Load Controls | AX178: Install High Efficiency HVAC Equipment
A179: new90.1-2004 | B179: 5500 ft2 | C179: psz-ac | D179: stand-alone | E179: new90.1-20045500 ft2psz-acstand-alone | F179: base-roof | G179: eff-win | H179: red-inf | I179: 40 fc | J179: yes-day | K179: yes-occ | L179: base-epd | M179: base-eff | N179: 191.32 | O179: 105.79 | P179: 0.08245062907 | Q179: 0.1589959998 | R179: -0.09831810631 | S179: 1004.8026 | T179: -82.03632006 | U179: 922.7662799 | V179: no | W179: 5500 | X179: 642.39 | Y179: 3030.15 | AA179: 14550.3247 | AB179: 60990.7345 | AC179: 145.503247 | AD179: 0 | AE179: 3479.25121 | AF179: -660 | AG179: 46.138314 | AH179: 2865.389524 | AI179: -1942.623245 | AM179: New Construction | AN179: 5,500 SF | AO179: Packaged Air Conditioner | AP179: Stand Alone | AQ179: Baseline Roof Insulation | AR179: Replace Windows | AS179: Reduce Infiltration | AT179: Reduce Lighting Levels to 40 fc | AU179: Install Daylighting Sensors | AV179: Install Occupancy Sensors | AW179: No Plug Load Control | AX179: Baseline HVAC Equipment
A180: new90.1-2004 | B180: 5500 ft2 | C180: psz-ac | D180: stand-alone | E180: new90.1-20045500 ft2psz-acstand-alone | F180: base-roof | G180: eff-win | H180: red-inf | I180: 40 fc | J180: yes-day | K180: yes-occ | L180: base-epd | M180: high-eff | N180: 190.12 | O180: 105.79 | P180: 0.08617614094 | Q180: 0.164270957 | R180: -0.09831810631 | S180: 1038.1386 | T180: -82.03632006 | U180: 956.1022799 | V180: no | W180: 5500 | X180: 642.39 | Y180: 3030.15 | AA180: 16805.3247 | AB180: 94485.7345 | AC180: 168.053247 | AD180: 0 | AE180: 4018.463334 | AF180: -660 | AG180: 47.805114 | AH180: 3406.268448 | AI180: -2450.166168 | AM180: New Construction | AN180: 5,500 SF | AO180: Packaged Air Conditioner | AP180: Stand Alone | AQ180: Baseline Roof Insulation | AR180: Replace Windows | AS180: Reduce Infiltration | AT180: Reduce Lighting Levels to 40 fc | AU180: Install Daylighting Sensors | AV180: Install Occupancy Sensors | AW180: No Plug Load Control | AX180: Install High Efficiency HVAC Equipment
A181: new90.1-2004 | B181: 5500 ft2 | C181: psz-ac | D181: stand-alone | E181: new90.1-20045500 ft2psz-acstand-alone | F181: base-roof | G181: eff-win | H181: red-inf | I181: 40 fc | J181: yes-day | K181: yes-occ | L181: red-epd | M181: base-eff | N181: 160.61 | O181: 117.68 | P181: 0.1405591425 | Q181: 0.2939909447 | R181: -0.2217607973 | S181: 1857.9264 | T181: -185.0365149 | U181: 1672.889885 | V181: no | W181: 5500 | X181: 642.39 | Y181: 3030.15 | AA181: 15375.3247 | AB181: 61815.7345 | AC181: 153.753247 | AD181: 0 | AE181: 3676.523939 | AF181: -660 | AG181: 83.64449425 | AH181: 3100.168433 | AI181: -1427.278548 | AM181: New Construction | AN181: 5,500 SF | AO181: Packaged Air Conditioner | AP181: Stand Alone | AQ181: Baseline Roof Insulation | AR181: Replace Windows | AS181: Reduce Infiltration | AT181: Reduce Lighting Levels to 40 fc | AU181: Install Daylighting Sensors | AV181: Install Occupancy Sensors | AW181: Install Plug Load Controls | AX181: Baseline HVAC Equipment
A182: new90.1-2004 | B182: 5500 ft2 | C182: psz-ac | D182: stand-alone | E182: new90.1-20045500 ft2psz-acstand-alone | F182: base-roof | G182: eff-win | H182: red-inf | I182: 40 fc | J182: yes-day | K182: yes-occ | L182: red-epd | M182: high-eff | N182: 159.58 | O182: 117.68 | P182: 0.1437637141 | Q182: 0.2985186162 | R182: -0.2217607973 | S182: 1886.5398 | T182: -185.0365149 | U182: 1701.503285 | V182: no | W182: 5500 | X182: 642.39 | Y182: 3030.15 | AA182: 17630.3247 | AB182: 95310.7345 | AC182: 176.303247 | AD182: 0 | AE182: 4215.736062 | AF182: -660 | AG182: 85.07516425 | AH182: 3640.811226 | AI182: -1939.307941 | AM182: New Construction | AN182: 5,500 SF | AO182: Packaged Air Conditioner | AP182: Stand Alone | AQ182: Baseline Roof Insulation | AR182: Replace Windows | AS182: Reduce Infiltration | AT182: Reduce Lighting Levels to 40 fc | AU182: Install Daylighting Sensors | AV182: Install Occupancy Sensors | AW182: Install Plug Load Controls | AX182: Install High Efficiency HVAC Equipment
A183: new90.1-2004 | B183: 5500 ft2 | C183: psz-ac | D183: stand-alone | E183: new90.1-20045500 ft2psz-acstand-alone | F183: base-roof | G183: eff-win | H183: red-inf | I183: 25 fc | J183: no-day | K183: no-occ | L183: base-epd | M183: base-eff | N183: 209.51 | O183: 98.71 | P183: 0.04814750501 | Q183: 0.07903644116 | R183: -0.02481312292 | S183: 499.4844 | T183: -20.70399208 | U183: 478.7804079 | V183: no | W183: 5500 | X183: 642.39 | Y183: 3030.15 | AA183: 10260.3247 | AB183: 90250.7345 | AC183: 102.603247 | AD183: 0 | AE183: 2453.433024 | AF183: -1045 | AG183: 23.9390204 | AH183: 1432.372045 | AI183: -953.5916367 | AM183: New Construction | AN183: 5,500 SF | AO183: Packaged Air Conditioner | AP183: Stand Alone | AQ183: Baseline Roof Insulation | AR183: Replace Windows | AS183: Reduce Infiltration | AT183: Reduce Lighting Levels to 25 fc | AU183: No Daylighting Sensors | AV183: No Occupancy Sensors | AW183: No Plug Load Control | AX183: Baseline HVAC Equipment
A184: new90.1-2004 | B184: 5500 ft2 | C184: psz-ac | D184: stand-alone | E184: new90.1-20045500 ft2psz-acstand-alone | F184: base-roof | G184: eff-win | H184: red-inf | I184: 25 fc | J184: no-day | K184: no-occ | L184: base-epd | M184: high-eff | N184: 208.14 | O184: 98.71 | P184: 0.05236238496 | Q184: 0.0850586839 | R184: -0.02481312292 | S184: 537.543 | T184: -20.70399208 | U184: 516.8390079 | V184: no | W184: 5500 | X184: 642.39 | Y184: 3030.15 | AA184: 12515.3247 | AB184: 123745.7345 | AC184: 125.153247 | AD184: 0 | AE184: 2992.645148 | AF184: -1045 | AG184: 25.8419504 | AH184: 1973.487098 | AI184: -1456.64809 | AM184: New Construction | AN184: 5,500 SF | AO184: Packaged Air Conditioner | AP184: Stand Alone | AQ184: Baseline Roof Insulation | AR184: Replace Windows | AS184: Reduce Infiltration | AT184: Reduce Lighting Levels to 25 fc | AU184: No Daylighting Sensors | AV184: No Occupancy Sensors | AW184: No Plug Load Control | AX184: Install High Efficiency HVAC Equipment
A185: new90.1-2004 | B185: 5500 ft2 | C185: psz-ac | D185: stand-alone | E185: new90.1-20045500 ft2psz-acstand-alone | F185: base-roof | G185: eff-win | H185: red-inf | I185: 25 fc | J185: no-day | K185: no-occ | L185: red-epd | M185: base-eff | N185: 178.75 | O185: 110.33 | P185: 0.1072347546 | Q185: 0.2142511759 | R185: -0.1454526578 | S185: 1353.9972 | T185: -121.3652422 | U185: 1232.631958 | V185: no | W185: 5500 | X185: 642.39 | Y185: 3030.15 | AA185: 11085.3247 | AB185: 91075.7345 | AC185: 110.853247 | AD185: 0 | AE185: 2650.705752 | AF185: -1045 | AG185: 61.63159789 | AH185: 1667.33735 | AI185: -434.7053925 | AM185: New Construction | AN185: 5,500 SF | AO185: Packaged Air Conditioner | AP185: Stand Alone | AQ185: Baseline Roof Insulation | AR185: Replace Windows | AS185: Reduce Infiltration | AT185: Reduce Lighting Levels to 25 fc | AU185: No Daylighting Sensors | AV185: No Occupancy Sensors | AW185: Install Plug Load Controls | AX185: Baseline HVAC Equipment
A186: new90.1-2004 | B186: 5500 ft2 | C186: psz-ac | D186: stand-alone | E186: new90.1-20045500 ft2psz-acstand-alone | F186: base-roof | G186: eff-win | H186: red-inf | I186: 25 fc | J186: no-day | K186: no-occ | L186: red-epd | M186: high-eff | N186: 177.55 | O186: 110.33 | P186: 0.1109444804 | Q186: 0.219526133 | R186: -0.1454526578 | S186: 1387.3332 | T186: -121.3652422 | U186: 1265.967958 | V186: no | W186: 5500 | X186: 642.39 | Y186: 3030.15 | AA186: 13340.3247 | AB186: 124570.7345 | AC186: 133.403247 | AD186: 0 | AE186: 3189.917876 | AF186: -1045 | AG186: 63.29839789 | AH186: 2208.216274 | AI186: -942.2483161 | AM186: New Construction | AN186: 5,500 SF | AO186: Packaged Air Conditioner | AP186: Stand Alone | AQ186: Baseline Roof Insulation | AR186: Replace Windows | AS186: Reduce Infiltration | AT186: Reduce Lighting Levels to 25 fc | AU186: No Daylighting Sensors | AV186: No Occupancy Sensors | AW186: Install Plug Load Controls | AX186: Install High Efficiency HVAC Equipment
A187: new90.1-2004 | B187: 5500 ft2 | C187: psz-ac | D187: stand-alone | E187: new90.1-20045500 ft2psz-acstand-alone | F187: base-roof | G187: eff-win | H187: red-inf | I187: 25 fc | J187: no-day | K187: yes-occ | L187: base-epd | M187: base-eff | N187: 197.98 | O187: 103.47 | P187: 0.06903247194 | Q187: 0.1297199877 | R187: -0.07423172757 | S187: 819.7878 | T187: -61.93872106 | U187: 757.8490789 | V187: no | W187: 5500 | X187: 642.39 | Y187: 3030.15 | AA187: 12240.3247 | AB187: 92230.7345 | AC187: 122.403247 | AD187: 0 | AE187: 2926.887572 | AF187: -1045 | AG187: 37.89245395 | AH187: 1919.780026 | AI187: -1161.930947 | AM187: New Construction | AN187: 5,500 SF | AO187: Packaged Air Conditioner | AP187: Stand Alone | AQ187: Baseline Roof Insulation | AR187: Replace Windows | AS187: Reduce Infiltration | AT187: Reduce Lighting Levels to 25 fc | AU187: No Daylighting Sensors | AV187: Install Occupancy Sensors | AW187: No Plug Load Control | AX187: Baseline HVAC Equipment
A188: new90.1-2004 | B188: 5500 ft2 | C188: psz-ac | D188: stand-alone | E188: new90.1-20045500 ft2psz-acstand-alone | F188: base-roof | G188: eff-win | H188: red-inf | I188: 25 fc | J188: no-day | K188: yes-occ | L188: base-epd | M188: high-eff | N188: 196.72 | O188: 103.47 | P188: 0.07294741661 | Q188: 0.1352586927 | R188: -0.07423172757 | S188: 854.7906 | T188: -61.93872106 | U188: 792.8518789 | V188: no | W188: 5500 | X188: 642.39 | Y188: 3030.15 | AA188: 14495.3247 | AB188: 125725.7345 | AC188: 144.953247 | AD188: 0 | AE188: 3466.099695 | AF188: -1045 | AG188: 39.64259395 | AH188: 2460.742289 | AI188: -1667.89041 | AM188: New Construction | AN188: 5,500 SF | AO188: Packaged Air Conditioner | AP188: Stand Alone | AQ188: Baseline Roof Insulation | AR188: Replace Windows | AS188: Reduce Infiltration | AT188: Reduce Lighting Levels to 25 fc | AU188: No Daylighting Sensors | AV188: Install Occupancy Sensors | AW188: No Plug Load Control | AX188: Install High Efficiency HVAC Equipment
A189: new90.1-2004 | B189: 5500 ft2 | C189: psz-ac | D189: stand-alone | E189: new90.1-20045500 ft2psz-acstand-alone | F189: base-roof | G189: eff-win | H189: red-inf | I189: 25 fc | J189: no-day | K189: yes-occ | L189: red-epd | M189: base-eff | N189: 167.23 | O189: 115.31 | P189: 0.1274251346 | Q189: 0.2648907644 | R189: -0.1971553156 | S189: 1674.0228 | T189: -164.505778 | U189: 1509.517022 | V189: no | W189: 5500 | X189: 642.39 | Y189: 3030.15 | AA189: 13065.3247 | AB189: 93055.7345 | AC189: 130.653247 | AD189: 0 | AE189: 3124.1603 | AF189: -1045 | AG189: 75.4758511 | AH189: 2154.636151 | AI189: -645.119129 | AM189: New Construction | AN189: 5,500 SF | AO189: Packaged Air Conditioner | AP189: Stand Alone | AQ189: Baseline Roof Insulation | AR189: Replace Windows | AS189: Reduce Infiltration | AT189: Reduce Lighting Levels to 25 fc | AU189: No Daylighting Sensors | AV189: Install Occupancy Sensors | AW189: Install Plug Load Controls | AX189: Baseline HVAC Equipment
A190: new90.1-2004 | B190: 5500 ft2 | C190: psz-ac | D190: stand-alone | E190: new90.1-20045500 ft2psz-acstand-alone | F190: base-roof | G190: eff-win | H190: red-inf | I190: 25 fc | J190: no-day | K190: yes-occ | L190: red-epd | M190: high-eff | N190: 166.13 | O190: 115.31 | P190: 0.1308349251 | Q190: 0.2697261418 | R190: -0.1971553156 | S190: 1704.5808 | T190: -164.505778 | U190: 1540.075022 | V190: no | W190: 5500 | X190: 642.39 | Y190: 3030.15 | AA190: 15320.3247 | AB190: 126550.7345 | AC190: 153.203247 | AD190: 0 | AE190: 3663.372423 | AF190: -1045 | AG190: 77.0037511 | AH190: 2695.376175 | AI190: -1155.301153 | AM190: New Construction | AN190: 5,500 SF | AO190: Packaged Air Conditioner | AP190: Stand Alone | AQ190: Baseline Roof Insulation | AR190: Replace Windows | AS190: Reduce Infiltration | AT190: Reduce Lighting Levels to 25 fc | AU190: No Daylighting Sensors | AV190: Install Occupancy Sensors | AW190: Install Plug Load Controls | AX190: Install High Efficiency HVAC Equipment
A191: new90.1-2004 | B191: 5500 ft2 | C191: psz-ac | D191: stand-alone | E191: new90.1-20045500 ft2psz-acstand-alone | F191: base-roof | G191: eff-win | H191: red-inf | I191: 25 fc | J191: yes-day | K191: no-occ | L191: base-epd | M191: base-eff | N191: 191.32 | O191: 105.79 | P191: 0.08245062907 | Q191: 0.1589959998 | R191: -0.09831810631 | S191: 1004.8026 | T191: -82.03632006 | U191: 922.7662799 | V191: no | W191: 5500 | X191: 642.39 | Y191: 3030.15 | AA191: 13285.3247 | AB191: 109005.7345 | AC191: 132.853247 | AD191: 0 | AE191: 3176.766361 | AF191: -1045 | AG191: 46.138314 | AH191: 2177.904675 | AI191: -1255.138395 | AM191: New Construction | AN191: 5,500 SF | AO191: Packaged Air Conditioner | AP191: Stand Alone | AQ191: Baseline Roof Insulation | AR191: Replace Windows | AS191: Reduce Infiltration | AT191: Reduce Lighting Levels to 25 fc | AU191: Install Daylighting Sensors | AV191: No Occupancy Sensors | AW191: No Plug Load Control | AX191: Baseline HVAC Equipment
A192: new90.1-2004 | B192: 5500 ft2 | C192: psz-ac | D192: stand-alone | E192: new90.1-20045500 ft2psz-acstand-alone | F192: base-roof | G192: eff-win | H192: red-inf | I192: 25 fc | J192: yes-day | K192: no-occ | L192: base-epd | M192: high-eff | N192: 190.12 | O192: 105.79 | P192: 0.08617614094 | Q192: 0.164270957 | R192: -0.09831810631 | S192: 1038.1386 | T192: -82.03632006 | U192: 956.1022799 | V192: no | W192: 5500 | X192: 642.39 | Y192: 3030.15 | AA192: 15540.3247 | AB192: 142500.7345 | AC192: 155.403247 | AD192: 0 | AE192: 3715.978484 | AF192: -1045 | AG192: 47.805114 | AH192: 2718.783598 | AI192: -1762.681318 | AM192: New Construction | AN192: 5,500 SF | AO192: Packaged Air Conditioner | AP192: Stand Alone | AQ192: Baseline Roof Insulation | AR192: Replace Windows | AS192: Reduce Infiltration | AT192: Reduce Lighting Levels to 25 fc | AU192: Install Daylighting Sensors | AV192: No Occupancy Sensors | AW192: No Plug Load Control | AX192: Install High Efficiency HVAC Equipment
A193: new90.1-2004 | B193: 5500 ft2 | C193: psz-ac | D193: stand-alone | E193: new90.1-20045500 ft2psz-acstand-alone | F193: base-roof | G193: eff-win | H193: red-inf | I193: 25 fc | J193: yes-day | K193: no-occ | L193: red-epd | M193: base-eff | N193: 160.61 | O193: 117.68 | P193: 0.1405591425 | Q193: 0.2939909447 | R193: -0.2217607973 | S193: 1857.9264 | T193: -185.0365149 | U193: 1672.889885 | V193: no | W193: 5500 | X193: 642.39 | Y193: 3030.15 | AA193: 14110.3247 | AB193: 109830.7345 | AC193: 141.103247 | AD193: 0 | AE193: 3374.039089 | AF193: -1045 | AG193: 83.64449425 | AH193: 2412.683583 | AI193: -739.793698 | AM193: New Construction | AN193: 5,500 SF | AO193: Packaged Air Conditioner | AP193: Stand Alone | AQ193: Baseline Roof Insulation | AR193: Replace Windows | AS193: Reduce Infiltration | AT193: Reduce Lighting Levels to 25 fc | AU193: Install Daylighting Sensors | AV193: No Occupancy Sensors | AW193: Install Plug Load Controls | AX193: Baseline HVAC Equipment
A194: new90.1-2004 | B194: 5500 ft2 | C194: psz-ac | D194: stand-alone | E194: new90.1-20045500 ft2psz-acstand-alone | F194: base-roof | G194: eff-win | H194: red-inf | I194: 25 fc | J194: yes-day | K194: no-occ | L194: red-epd | M194: high-eff | N194: 159.58 | O194: 117.68 | P194: 0.1437637141 | Q194: 0.2985186162 | R194: -0.2217607973 | S194: 1886.5398 | T194: -185.0365149 | U194: 1701.503285 | V194: no | W194: 5500 | X194: 642.39 | Y194: 3030.15 | AA194: 16365.3247 | AB194: 143325.7345 | AC194: 163.653247 | AD194: 0 | AE194: 3913.251212 | AF194: -1045 | AG194: 85.07516425 | AH194: 2953.326377 | AI194: -1251.823092 | AM194: New Construction | AN194: 5,500 SF | AO194: Packaged Air Conditioner | AP194: Stand Alone | AQ194: Baseline Roof Insulation | AR194: Replace Windows | AS194: Reduce Infiltration | AT194: Reduce Lighting Levels to 25 fc | AU194: Install Daylighting Sensors | AV194: No Occupancy Sensors | AW194: Install Plug Load Controls | AX194: Install High Efficiency HVAC Equipment
A195: new90.1-2004 | B195: 5500 ft2 | C195: psz-ac | D195: stand-alone | E195: new90.1-20045500 ft2psz-acstand-alone | F195: base-roof | G195: eff-win | H195: red-inf | I195: 25 fc | J195: yes-day | K195: yes-occ | L195: base-epd | M195: base-eff | N195: 183.44 | O195: 109.3 | P195: 0.09593193048 | Q195: 0.193634885 | R195: -0.1347591362 | S195: 1223.709 | T195: -112.4426013 | U195: 1111.266399 | V195: no | W195: 5500 | X195: 642.39 | Y195: 3030.15 | AA195: 15265.3247 | AB195: 110985.7345 | AC195: 152.653247 | AD195: 0 | AE195: 3650.220908 | AF195: -1045 | AG195: 55.56331993 | AH195: 2660.784228 | AI195: -1549.517829 | AM195: New Construction | AN195: 5,500 SF | AO195: Packaged Air Conditioner | AP195: Stand Alone | AQ195: Baseline Roof Insulation | AR195: Replace Windows | AS195: Reduce Infiltration | AT195: Reduce Lighting Levels to 25 fc | AU195: Install Daylighting Sensors | AV195: Install Occupancy Sensors | AW195: No Plug Load Control | AX195: Baseline HVAC Equipment
A196: new90.1-2004 | B196: 5500 ft2 | C196: psz-ac | D196: stand-alone | E196: new90.1-20045500 ft2psz-acstand-alone | F196: base-roof | G196: eff-win | H196: red-inf | I196: 25 fc | J196: yes-day | K196: yes-occ | L196: base-epd | M196: high-eff | N196: 182.31 | O196: 109.3 | P196: 0.09945222347 | Q196: 0.1986021364 | R196: -0.1347591362 | S196: 1255.1004 | T196: -112.4426013 | U196: 1142.657799 | V196: no | W196: 5500 | X196: 642.39 | Y196: 3030.15 | AA196: 17520.3247 | AB196: 144480.7345 | AC196: 175.203247 | AD196: 0 | AE196: 4189.433032 | AF196: -1045 | AG196: 57.13288993 | AH196: 3201.565922 | AI196: -2058.908123 | AM196: New Construction | AN196: 5,500 SF | AO196: Packaged Air Conditioner | AP196: Stand Alone | AQ196: Baseline Roof Insulation | AR196: Replace Windows | AS196: Reduce Infiltration | AT196: Reduce Lighting Levels to 25 fc | AU196: Install Daylighting Sensors | AV196: Install Occupancy Sensors | AW196: No Plug Load Control | AX196: Install High Efficiency HVAC Equipment
A197: new90.1-2004 | B197: 5500 ft2 | C197: psz-ac | D197: stand-alone | E197: new90.1-20045500 ft2psz-acstand-alone | F197: base-roof | G197: eff-win | H197: red-inf | I197: 25 fc | J197: yes-day | K197: yes-occ | L197: red-epd | M197: base-eff | N197: 152.73 | O197: 121.4 | P197: 0.1533774291 | Q197: 0.3286298299 | R197: -0.2603820598 | S197: 2076.8328 | T197: -217.2619754 | U197: 1859.570825 | V197: no | W197: 5500 | X197: 642.39 | Y197: 3030.15 | AA197: 16090.3247 | AB197: 111810.7345 | AC197: 160.903247 | AD197: 0 | AE197: 3847.493636 | AF197: -1045 | AG197: 92.97854123 | AH197: 2895.472178 | AI197: -1035.901353 | AM197: New Construction | AN197: 5,500 SF | AO197: Packaged Air Conditioner | AP197: Stand Alone | AQ197: Baseline Roof Insulation | AR197: Replace Windows | AS197: Reduce Infiltration | AT197: Reduce Lighting Levels to 25 fc | AU197: Install Daylighting Sensors | AV197: Install Occupancy Sensors | AW197: Install Plug Load Controls | AX197: Baseline HVAC Equipment
A198: new90.1-2004 | B198: 5500 ft2 | C198: psz-ac | D198: stand-alone | E198: new90.1-20045500 ft2psz-acstand-alone | F198: base-roof | G198: eff-win | H198: red-inf | I198: 25 fc | J198: yes-day | K198: yes-occ | L198: red-epd | M198: high-eff | N198: 151.76 | O198: 121.4 | P198: 0.1563925679 | Q198: 0.3328937536 | R198: -0.2603820598 | S198: 2103.7794 | T198: -217.2619754 | U198: 1886.517425 | V198: no | W198: 5500 | X198: 642.39 | Y198: 3030.15 | AA198: 18345.3247 | AB198: 145305.7345 | AC198: 183.453247 | AD198: 0 | AE198: 4386.70576 | AF198: -1045 | AG198: 94.32587123 | AH198: 3436.031631 | AI198: -1549.514207 | AM198: New Construction | AN198: 5,500 SF | AO198: Packaged Air Conditioner | AP198: Stand Alone | AQ198: Baseline Roof Insulation | AR198: Replace Windows | AS198: Reduce Infiltration | AT198: Reduce Lighting Levels to 25 fc | AU198: Install Daylighting Sensors | AV198: Install Occupancy Sensors | AW198: Install Plug Load Controls | AX198: Install High Efficiency HVAC Equipment
A199: new90.1-2004 | B199: 5500 ft2 | C199: psz-ac | D199: stand-alone | E199: new90.1-20045500 ft2psz-acstand-alone | F199: eff-roof | G199: base-win | H199: base-inf | I199: base-lpd | J199: no-day | K199: no-occ | L199: base-epd | M199: base-eff | N199: 226.37 | O199: 89.84 | P199: 0.02345809588 | Q199: 0.004923293332 | R199: 0.06727574751 | S199: 31.1136 | T199: 56.13467307 | U199: 87.24827307 | V199: =IF(P199>0.2,"yes","no") -> no | W199: =IF(B199="5500 ft2",5500,IF(B199="10000 ft2",10000,25000)) -> 5500 | X199: =IF(B199="5500 ft2",IF(D199="stand-alone",642.39,IF(D199="ad-e&flr",522.37,402.25)),IF(B199="10000 ft2",IF(D199="stand-alone",866.06,IF(D199="ad-e&flr",704.17,542.29)),IF(B199="25000 ft2",IF(D199="stand-alone",1369.38,IF(D199="ad-e&flr",1113.42,857.45))))) -> 642.39 | Y199: =IF(B199="5500 ft2",IF(D199="stand-alone",3030.15,IF(D199="ad-e&flr",2424.14,1818.13)),IF(B199="10000 ft2",IF(D199="stand-alone",4085.12,IF(D199="ad-e&flr",3268.14,2451.05)),IF(B199="25000 ft2",IF(D199="stand-alone",6459.2,IF(D199="ad-e&flr",5167.32,3875.54))))) -> 3030.15 | AA199: =SUM(IF(F199="eff-roof",W199*IF(AND(W$4="no",X$4="no"),$C$4,$C$3)),IF(G199="eff-win",X199*IF(W$4="no",$D$4,$D$3),0),IF(H199="red-inf",Y199*IF(W$4="no",$F$4,$F$3),0),IF(I199="25 fc",W199*IF(W$4="no",$H$4,$H$3),0),IF(I199="40 fc",W199*IF(W$4="no",$G$4,$G$3),0),IF(J199="yes-day",W199*IF(W$4="no",$I$4,$I$3),0),IF(K199="yes-occ",W199*IF(W$4="no",$J$4,$J$3),0),IF(L199="red-epd",W199*IF(W$4="no",$K$4,$K$3),0),IF(AND(M199="high-eff",C199="psz-ac"),W199*IF(AND(W$4="no",Y$4="no"),$L$4,$L$3),0),IF(AND(M199="high-eff",C199="ptac"),W199*IF(AND(W$4="no",Y$4="no"),$M$4,$M$3),0),IF(AND(M199="high-eff",C199="pthp"),W199*IF(AND(W$4="no",Y$4="no"),$N$4,$N$3),0)) -> 16500 | AB199: =SUM(IF(F199="eff-roof",W199*$C$4),IF(G199="eff-win",X199*$D$4,0),IF(H199="red-inf",Y199*$F$4,0),IF(I199="25 fc",W199*$H$4,0),IF(I199="40 fc",W199*$G$4,0),IF(J199="yes-day",W199*$I$4,0),IF(K199="yes-occ",W199*$J$4,0),IF(L199="red-epd",W199*$K$4,0),IF(AND(M199="high-eff",C199="psz-ac"),W199*$L$4,0),IF(AND(M199="high-eff",C199="ptac"),W199*$M$4,0),IF(AND(M199="high-eff",C199="pthp"),W199*$N$4,0)) -> 66825 | AC199: 165 | AD199: 0 | AE199: =-PMT($AE$3,$AE$4,AA199+AC199-AD199) -> 3945.454562 | AF199: =SUM(IF(F199="eff-roof",($C$5*W199),0),IF(G199="eff-win",($D$5*X199),0),IF(H199="red-inf",$F$5*(Y199-X199),0),IF(I199="25 fc",($H$5*W199),0),IF(I199="40 fc",($G$5*W199),0),IF(J199="yes-day",($I$5*W199),0),IF(K199="yes-occ",($J$5*W199),0),IF(L199="red-epd",($K$5*W199),0),IF(M199="high-eff",($L$5*W199),0)) -> 0 | AG199: =0.05*U199 -> 4.362413654 | AH199: 3949.816976 | AI199: =U199-AH199 -> -3862.568703 | AM199: New Construction | AN199: =IF(B199="5500 ft2","5,500 SF",IF(B199="10000 ft2","10,000 SF",IF(B199="25000 ft2","25,000 SF"))) -> 5,500 SF | AO199: Packaged Air Conditioner | AP199: Stand Alone | AQ199: Increased Roof Insulation | AR199: Baseline Windows | AS199: Baseline Infiltration | AT199: =IF(I199="base-lpd","Baseline Lighting Levels",IF(I199="40 fc","Reduce Lighting Levels to 40 fc",IF(I199="25 fc","Reduce Lighting Levels to 25 fc"))) -> Baseline Lighting Levels | AU199: No Daylighting Sensors | AV199: No Occupancy Sensors | AW199: No Plug Load Control | AX199: Baseline HVAC Equipment
A200: new90.1-2004 | B200: 5500 ft2 | C200: psz-ac | D200: stand-alone | E200: new90.1-20045500 ft2psz-acstand-alone | F200: eff-roof | G200: base-win | H200: base-inf | I200: base-lpd | J200: no-day | K200: no-occ | L200: base-epd | M200: high-eff | N200: 224.75 | O200: 89.84 | P200: 0.02846227919 | Q200: 0.01204448547 | R200: 0.06727574751 | S200: =277.8*($N$7-N200)*$S$3 -> 76.1172 | T200: =277.78*($O$7-O200)*$S$4 -> 56.13467307 | U200: =SUM(S200:T200) -> 132.2518731 | V200: no | W200: 5500 | X200: 642.39 | Y200: 3030.15 | AA200: 18755 | AB200: 100320 | AC200: =MIN(0.01*AA200,500) -> 187.55 | AD200: =IF(V200="yes",0,0) -> 0 | AE200: 4484.666686 | AF200: 0 | AG200: 6.612593654 | AH200: =SUM(AE200:AG200) -> 4491.27928 | AI200: -4359.027407 | AM200: New Construction | AN200: 5,500 SF | AO200: =IF(C200="psz-ac","Packaged Air Conditioner",IF(C200="ptac","Split System Air Conditioner",IF(C200="pthp","Split System Heat Pump"))) -> Packaged Air Conditioner | AP200: =IF(D200="stand-alone","Stand Alone",IF(D200="ad-e&flr","Above Ground, 1 Side Attached",IF(D200="ad-e&w&flr","Above Ground, 2 Sides Attached"))) -> Stand Alone | AQ200: =IF(F200="base-roof","Baseline Roof Insulation",IF(F200="eff-roof","Increased Roof Insulation")) -> Increased Roof Insulation | AR200: =IF(G200="base-win","Baseline Windows",IF(G200="eff-win","Replace Windows")) -> Baseline Windows | AS200: =IF(H200="base-inf","Baseline Infiltration",IF(H200="red-inf","Reduce Infiltration")) -> Baseline Infiltration | AT200: Baseline Lighting Levels | AU200: =IF(J200="no-day","No Daylighting Sensors",IF(J200="yes-day","Install Daylighting Sensors")) -> No Daylighting Sensors | AV200: =IF(K200="no-occ","No Occupancy Sensors",IF(K200="yes-occ","Install Occupancy Sensors")) -> No Occupancy Sensors | AW200: =IF(L200="base-epd","No Plug Load Control",IF(L200="red-epd","Install Plug Load Controls")) -> No Plug Load Control | AX200: =IF(M200="base-eff","Baseline HVAC Equipment",IF(M200="high-eff","Install High Efficiency HVAC Equipment")) -> Install High Efficiency HVAC Equipment
... 925 more rows
